Department Family,Entity,Date,Expense Type,Expense Area,Supplier,Transaction Number,Amount,Description
Department for Education,Core,06/11/2023,Auditors Services,Operational Finance,National Audit Office,CORE-PINV-067211,"257,500.00",Assurance
Department for Education,Core,03/11/2023,Other Costs,Operational Finance,Agile Management Solutions Ltd,CORE-PINV-067145,"23,632.00",Software Development
Department for Education,Core,03/11/2023,Other Costs,Operational Finance,Agile Management Solutions Ltd,CORE-PINV-067145,"23,632.00",Software Development
Department for Education,Core,03/11/2023,Other Costs,Operational Finance,Agile Management Solutions Ltd,CORE-PINV-067145,"59,080.00",Software Development
Department for Education,Core,03/11/2023,Other Costs,Operational Finance,Agile Management Solutions Ltd,CORE-PINV-067145,"129,976.00",Software Development
Department for Education,Core,08/11/2023,Other Costs,Operational Finance,Mercurius It Ltd.,CORE-PINV-067382,"21,888.00",Software Development
Department for Education,Core,24/11/2023,Other Costs,Operational Finance,Mercurius It Ltd.,CORE-PINV-068292,"37,196.00",Software Development
Department for Education,Core,13/11/2023,Accommodation and Estates - Maintenance,Estates,Government Property Agency,CORE-PINV-066600,"7,285.83",Maintenance and Repairs
Department for Education,Core,13/11/2023,Accommodation and Estates - Rent and Rates,Estates,Government Property Agency,CORE-PINV-066600,"33,154.19",Rentals
Department for Education,Core,13/11/2023,Accommodation and Estates - Rent and Rates,Estates,Government Property Agency,CORE-PINV-066598,"129,209.14",Rentals
Department for Education,Core,13/11/2023,Accommodation and Estates - Rent and Rates,Estates,Government Property Agency,CORE-PCR-002453,"-913,553.22",Rentals
Department for Education,Core,13/11/2023,Accommodation and Estates - Maintenance,Estates,Government Property Agency,CORE-PINV-066599,"128,956.30",Maintenance and Repairs
Department for Education,Core,13/11/2023,Accommodation and Estates - Other,Estates,Government Property Agency,CORE-PINV-066599,"24,676.93",Estates Management
Department for Education,Core,13/11/2023,Accommodation and Estates - Rent and Rates,Estates,Government Property Agency,CORE-PINV-066599,"228,226.75",Rentals
Department for Education,Core,13/11/2023,Accommodation and Estates - Rent and Rates,Estates,Government Property Agency,CORE-PINV-067307,"102,129.69",Rentals
Department for Education,Core,13/11/2023,Accommodation and Estates - Maintenance,Estates,Government Property Agency,CORE-PINV-067355,"8,947.61",Maintenance and Repairs
Department for Education,Core,13/11/2023,Accommodation and Estates - Other,Estates,Government Property Agency,CORE-PINV-067355,"6,342.02",Estates Management
Department for Education,Core,13/11/2023,Accommodation and Estates - Rent and Rates,Estates,Government Property Agency,CORE-PINV-067355,"44,251.19",Rentals
Department for Education,Core,13/11/2023,Accommodation and Estates - Rent and Rates,Estates,Government Property Agency,CORE-PINV-067303,"62,362.03",Rentals
Department for Education,Core,13/11/2023,Accommodation and Estates - Rent and Rates,Estates,Government Property Agency,CORE-PCR-002473,"-31,333.96",Rentals
Department for Education,Core,13/11/2023,Accommodation and Estates - Rent and Rates,Estates,Government Property Agency,CORE-PCR-002472,"-31,028.07",Rentals
Department for Education,Core,13/11/2023,Accommodation and Estates - Rent and Rates,Estates,Government Property Agency,CORE-PINV-067304,"147,329.25",Rentals
Department for Education,Core,13/11/2023,Accommodation and Estates - Maintenance,Estates,Government Property Agency,CORE-PINV-067592,"15,622.30",Maintenance and Repairs
Department for Education,Core,13/11/2023,Accommodation and Estates - Other,Estates,Government Property Agency,CORE-PINV-067592,"5,520.22",Estates Management
Department for Education,Core,13/11/2023,Accommodation and Estates - Rent and Rates,Estates,Government Property Agency,CORE-PINV-067592,"46,990.37",Rentals
Department for Education,Core,13/11/2023,Accommodation and Estates - Maintenance,Estates,Government Property Agency,CORE-PINV-067595,"4,920.53",Maintenance and Repairs
Department for Education,Core,13/11/2023,Accommodation and Estates - Other,Estates,Government Property Agency,CORE-PINV-067595,"2,098.75",Estates Management
Department for Education,Core,13/11/2023,Accommodation and Estates - Rent and Rates,Estates,Government Property Agency,CORE-PINV-067595,"40,892.62",Rentals
Department for Education,Core,13/11/2023,Accommodation and Estates - Maintenance,Estates,Government Property Agency,CORE-PINV-067594,"16,535.26",Maintenance and Repairs
Department for Education,Core,13/11/2023,Accommodation and Estates - Other,Estates,Government Property Agency,CORE-PINV-067594,"3,755.00",Estates Management
Department for Education,Core,13/11/2023,Accommodation and Estates - Rent and Rates,Estates,Government Property Agency,CORE-PINV-067594,"95,234.42",Rentals
Department for Education,Core,13/11/2023,Accommodation and Estates - Maintenance,Estates,Government Property Agency,CORE-PINV-067593,"257,156.16",Maintenance and Repairs
Department for Education,Core,13/11/2023,Accommodation and Estates - Other,Estates,Government Property Agency,CORE-PINV-067593,"23,435.22",Estates Management
Department for Education,Core,13/11/2023,Accommodation and Estates - Rent and Rates,Estates,Government Property Agency,CORE-PINV-067593,"261,191.33",Rentals
Department for Education,Core,13/11/2023,Accommodation and Estates - Maintenance,Estates,Government Property Agency,CORE-PINV-067597,"29,169.80",Maintenance and Repairs
Department for Education,Core,13/11/2023,Accommodation and Estates - Other,Estates,Government Property Agency,CORE-PINV-067597,"12,188.85",Estates Management
Department for Education,Core,13/11/2023,Accommodation and Estates - Rent and Rates,Estates,Government Property Agency,CORE-PINV-067597,"161,246.38",Rentals
Department for Education,Core,13/11/2023,Accommodation and Estates - Other,Estates,Government Property Agency,CORE-PINV-067596,"3,755.00",Estates Management
Department for Education,Core,13/11/2023,Accommodation and Estates - Rent and Rates,Estates,Government Property Agency,CORE-PINV-067596,"102,558.81",Rentals
Department for Education,Core,13/11/2023,Accommodation and Estates - Maintenance,Estates,Government Property Agency,CORE-PINV-067600,"128,956.30",Maintenance and Repairs
Department for Education,Core,13/11/2023,Accommodation and Estates - Other,Estates,Government Property Agency,CORE-PINV-067600,"24,676.93",Estates Management
Department for Education,Core,13/11/2023,Accommodation and Estates - Rent and Rates,Estates,Government Property Agency,CORE-PINV-067600,"228,226.75",Rentals
Department for Education,Core,14/11/2023,Accommodation and Estates - Other,Estates,Government Property Agency,CORE-PINV-067606,"11,354.06",Estates Management
Department for Education,Core,14/11/2023,Accommodation and Estates - Rent and Rates,Estates,Government Property Agency,CORE-PINV-067606,"32,010.92",Rentals
Department for Education,Core,14/11/2023,Accommodation and Estates - Rent and Rates,Estates,Government Property Agency,CORE-PINV-067606,"181,218.62",Rentals
Department for Education,Core,13/11/2023,Accommodation and Estates - Maintenance,Estates,Government Property Agency,CORE-PINV-067604,"15,099.95",Maintenance and Repairs
Department for Education,Core,13/11/2023,Accommodation and Estates - Other,Estates,Government Property Agency,CORE-PINV-067604,"8,120.84",Estates Management
Department for Education,Core,13/11/2023,Accommodation and Estates - Rent and Rates,Estates,Government Property Agency,CORE-PINV-067604,"83,848.52",Rentals
Department for Education,Core,13/11/2023,Accommodation and Estates - Maintenance,Estates,Government Property Agency,CORE-PINV-067601,"298,887.99",Maintenance and Repairs
Department for Education,Core,13/11/2023,Accommodation and Estates - Other,Estates,Government Property Agency,CORE-PINV-067601,"46,137.54",Estates Management
Department for Education,Core,13/11/2023,Accommodation and Estates - Rent and Rates,Estates,Government Property Agency,CORE-PINV-067601,"550,746.91",Rentals
Department for Education,Core,14/11/2023,Accommodation and Estates - Maintenance,Estates,Government Property Agency,CORE-PINV-067605,"11,371.93",Maintenance and Repairs
Department for Education,Core,14/11/2023,Accommodation and Estates - Other,Estates,Government Property Agency,CORE-PINV-067605,"7,042.96",Estates Management
Department for Education,Core,14/11/2023,Accommodation and Estates - Rent and Rates,Estates,Government Property Agency,CORE-PINV-067605,"64,694.83",Rentals
Department for Education,Core,13/11/2023,Accommodation and Estates - Maintenance,Estates,Government Property Agency,CORE-PINV-067591,"41,912.42",Maintenance and Repairs
Department for Education,Core,13/11/2023,Accommodation and Estates - Other,Estates,Government Property Agency,CORE-PINV-067591,"15,873.12",Estates Management
Department for Education,Core,13/11/2023,Accommodation and Estates - Rent and Rates,Estates,Government Property Agency,CORE-PINV-067591,"230,560.11",Rentals
Department for Education,Core,13/11/2023,Accommodation and Estates - Maintenance,Estates,Government Property Agency,CORE-PINV-067602,"261,557.38",Maintenance and Repairs
Department for Education,Core,13/11/2023,Accommodation and Estates - Other,Estates,Government Property Agency,CORE-PINV-067602,"46,190.06",Estates Management
Department for Education,Core,13/11/2023,Accommodation and Estates - Rent and Rates,Estates,Government Property Agency,CORE-PINV-067602,"484,533.35",Rentals
Department for Education,Core,14/11/2023,Accommodation and Estates - Maintenance,Estates,Government Property Agency,CORE-PINV-067607,"8,947.61",Maintenance and Repairs
Department for Education,Core,14/11/2023,Accommodation and Estates - Other,Estates,Government Property Agency,CORE-PINV-067607,"6,342.02",Estates Management
Department for Education,Core,14/11/2023,Accommodation and Estates - Rent and Rates,Estates,Government Property Agency,CORE-PINV-067607,"44,251.19",Rentals
Department for Education,Core,03/11/2023,Other Costs,Estates,Arcadis Llp,CORE-PINV-066212,"62,109.34",Building Improvements
Department for Education,Core,17/11/2023,Other Costs,Estates,Willmott Dixon Construction Limited,CORE-PINV-067905,"4,003,069.28",Building Improvements
Department for Education,Core,27/11/2023,Other Costs,Estates,Alexander Mann Solutions Limited,CORE-PCR-002592,"-70,063.49",Building Improvements
Department for Education,Core,29/11/2023,Other Costs,Estates,Alexander Mann Solutions Limited,CORE-PINV-067652,"108,502.94",Building Improvements
Department for Education,Core,17/11/2023,Other Goods and Services,Operational Finance,Cabinet Office,CORE-PINV-067848,"65,113.00",Professional Services
Department for Education,Core,27/11/2023,Other Goods and Services,Commercial,Willis Limited,CORE-PINV-068330,"94,644.00",Professional Services
Department for Education,Core,27/11/2023,Other Goods and Services,Commercial,Willis Limited,CORE-PINV-068328,"68,847.00",Professional Services
Department for Education,Core,30/11/2023,Other Goods and Services,Commercial,Government Actuarys Dept,CORE-PINV-068710,"61,277.77",Professional Services
Department for Education,Core,13/11/2023,Other Goods and Services,Commercial,Topmark Claims Management Part Of The Davies Group,CORE-PINV-067490,"31,254.00",Professional Services
Department for Education,Core,30/11/2023,Grants Expenditure,Commercial,Waltham Forest London Borough Council,CUPS0074189,"125,000.00",Capital grants - Private Sector
Department for Education,Core,30/11/2023,Grants Expenditure,Commercial,Southern Water Services Limited,CUPS0074190,"263,974.00",Capital grants - Private Sector
Department for Education,Core,08/11/2023,Staff - Secondee,Commercial,Cabinet Office,CORE-PINV-067419,"49,761.00",Fast Streamer Programme
Department for Education,Core,16/11/2023,Staff - Temporary Staff,Commercial,Alexander Mann Solutions Limited,CORE-PINV-067788,"31,038.48",Short term and agency staff
Department for Education,Core,16/11/2023,Staff - Temporary Staff,Commercial,Alexander Mann Solutions Limited,CORE-PINV-067790,"26,869.20",Short term and agency staff
Department for Education,Core,16/11/2023,Staff - Temporary Staff,Commercial,Alexander Mann Solutions Limited,CORE-PCR-002523,"-27,069.98",Short term and agency staff
Department for Education,Core,28/11/2023,Staff - Secondee,Commercial,Cabinet Office,CORE-PINV-068584,"2,315,112.30",Staff seconded from the Government Commercial Org
Department for Education,Core,28/11/2023,Staff - Secondee,Commercial,Cabinet Office,CORE-PINV-068583,"97,762.50",Staff seconded from the Government Commercial Org
Department for Education,Core,21/11/2023,Staff - Other,Human Resources,Linkedin Technology Uk Limited,CORE-PINV-068017,"50,375.00",Recruitment Advertising
Department for Education,Core,22/11/2023,Other Goods and Services,Customer Experience and Digital,Cognizant Worldwide Limited,CORE-PINV-068085,"156,672.00",Professional Services
Department for Education,Core,14/11/2023,Other Goods and Services,Customer Experience and Digital,Andigital Limited,CORE-PINV-067554,"62,955.00",Professional Services
Department for Education,Core,14/11/2023,Other Goods and Services,Customer Experience and Digital,Andigital Limited,CORE-PINV-067553,"39,552.00",Professional Services
Department for Education,Core,14/11/2023,Other Goods and Services,Customer Experience and Digital,Andigital Limited,CORE-PINV-067562,"131,394.00",Professional Services
Department for Education,Core,14/11/2023,Other Goods and Services,Customer Experience and Digital,Andigital Limited,CORE-PINV-067555,"86,544.00",Professional Services
Department for Education,Core,16/11/2023,Other Goods and Services,Customer Experience and Digital,Andigital Limited,CORE-PINV-067567,"62,553.00",Professional Services
Department for Education,Core,29/11/2023,Other Goods and Services,Technology,Ncc Group Security Services Limited,CORE-PINV-068501,"214,440.00",Professional Services
Department for Education,Core,08/11/2023,IS/IT,Technology,Bytes Software Services Limited,CORE-PINV-067391,"1,658,260.18",End User Software and Hardware
Department for Education,Core,09/11/2023,Other Goods and Services,Technology,Methods Business And Digital Technology Ltd,CORE-PINV-067263,"96,130.50",Professional Services
Department for Education,Core,03/11/2023,Other Goods and Services,Technology,Sol-Tec Limited,CORE-PINV-066829,"47,148.76",Professional Services
Department for Education,Core,03/11/2023,Other Goods and Services,Technology,Sol-Tec Limited,CORE-PINV-066830,"77,705.26",Professional Services
Department for Education,Core,14/11/2023,Other Goods and Services,Technology,Nexer Digital Ltd,CORE-PINV-067418,"36,134.40",Professional Services
Department for Education,Core,23/11/2023,Other Goods and Services,Technology,Farsight Consulting Limited,CORE-PINV-068189,"32,226.00",Professional Services
Department for Education,Core,02/11/2023,Other Goods and Services,SARDIS,I.F.F Research Limited,CORE-PINV-067049,"26,214.65",Research and Evaluation
Department for Education,Core,01/11/2023,Other Goods and Services,SARDIS,Ecorys Uk Ltd,CORE-PINV-067046,"223,743.00",Research and Evaluation
Department for Education,Core,17/11/2023,Other Goods and Services,SARDIS,Pearson Education Limited,CORE-PINV-067901,"56,692.00",Research and Evaluation
Department for Education,Core,17/11/2023,Other Goods and Services,SARDIS,Pearson Education Limited,CORE-PINV-067899,"386,495.00",Research and Evaluation
Department for Education,Core,17/11/2023,Other Goods and Services,SARDIS,Pearson Education Limited,CORE-PINV-067900,"83,484.00",Research and Evaluation
Department for Education,Core,24/11/2023,Other Goods and Services,SARDIS,Ipsos (Market Research) Ltd,CORE-PINV-068306,"22,500.00",Research and Evaluation
Department for Education,Core,21/11/2023,Grants,SARDIS,Oecd,CUPS0073813,"174,816.01",Professional Services - Grants and Awards
Department for Education,Core,06/11/2023,Other Costs,SARDIS,National Centre For Social Research,CORE-PINV-067159,"500,000.00",Research and development
Department for Education,Core,30/11/2023,Other Costs,SARDIS,National Foundation For Educational Research Nfer,CORE-PINV-068591,"28,430.00",Research and development
Department for Education,Core,08/11/2023,Other Costs,Data,Engine Partners Uk Llp - Engine Transformation,CORE-PINV-065974,"12,480.00",Software Development
Department for Education,Core,08/11/2023,Other Costs,Data,Engine Partners Uk Llp - Engine Transformation,CORE-PINV-065974,"12,480.00",Software Development
Department for Education,Core,08/11/2023,Other Costs,Data,Engine Partners Uk Llp - Engine Transformation,CORE-PINV-065974,"16,200.00",Software Development
Department for Education,Core,08/11/2023,Other Costs,Data,Engine Partners Uk Llp - Engine Transformation,CORE-PINV-065974,"16,380.00",Software Development
Department for Education,Core,08/11/2023,Other Costs,Data,Engine Partners Uk Llp - Engine Transformation,CORE-PINV-065974,"17,100.00",Software Development
Department for Education,Core,08/11/2023,Other Costs,Data,Engine Partners Uk Llp - Engine Transformation,CORE-PINV-065974,"18,900.00",Software Development
Department for Education,Core,08/11/2023,Other Costs,Data,Engine Partners Uk Llp - Engine Transformation,CORE-PINV-065974,"19,530.00",Software Development
Department for Education,Core,08/11/2023,Other Costs,Data,Engine Partners Uk Llp - Engine Transformation,CORE-PINV-065974,"21,000.00",Software Development
Department for Education,Core,08/11/2023,Other Costs,Data,Engine Partners Uk Llp - Engine Transformation,CORE-PINV-065974,"22,050.00",Software Development
Department for Education,Core,15/11/2023,IS/IT,Data,Engine Partners Uk Llp - Engine Transformation,CORE-PINV-067583,"73,350.00",ICT repair and maintenance
Department for Education,Core,16/11/2023,IS/IT,Data,Engine Partners Uk Llp - Engine Transformation,CORE-PINV-067587,"105,696.00",ICT repair and maintenance
Department for Education,Core,17/11/2023,Other Costs,Data,Engine Partners Uk Llp - Engine Transformation,CORE-PINV-067677,"279,674.00",Software Development
Department for Education,Core,16/11/2023,Other Costs,Data,Engine Partners Uk Llp - Engine Transformation,CORE-PINV-067678,"165,720.00",Software Development
Department for Education,Core,15/11/2023,Other Costs,Data,Engine Partners Uk Llp - Engine Transformation,CORE-PINV-067680,"108,150.00",Software Development
Department for Education,Core,24/11/2023,Staff - Temporary Staff,Data,Alexander Mann Solutions Limited,CORE-PCR-002555,"-82,865.72",Short term and agency staff
Department for Education,Core,24/11/2023,Staff - Temporary Staff,Data,Alexander Mann Solutions Limited,CORE-PCR-002569,"-38,245.72",Short term and agency staff
Department for Education,Core,24/11/2023,Staff - Temporary Staff,Data,Alexander Mann Solutions Limited,CORE-PCR-002570,"-56,431.19",Short term and agency staff
Department for Education,Core,29/11/2023,Staff - Temporary Staff,Data,Alexander Mann Solutions Limited,CORE-PCR-002600,"-43,362.05",Short term and agency staff
Department for Education,Core,29/11/2023,Staff - Temporary Staff,Data,Alexander Mann Solutions Limited,CORE-PCR-002598,"-84,013.97",Short term and agency staff
Department for Education,Core,07/11/2023,IS/IT,SARDIS,Hive It Limited,CORE-PINV-067220,"127,935.36",Systems Operations
Department for Education,Core,01/11/2023,IS/IT,Data,Solirius Ltd,CORE-PINV-066908,"41,209.20",Support - Managed Services
Department for Education,Core,01/11/2023,IS/IT,Data,Solirius Ltd,CORE-PINV-066933,"42,108.00",ICT repair and maintenance
Department for Education,Core,01/11/2023,IS/IT,Data,Solirius Ltd,CORE-PINV-066909,"30,043.20",Support - Managed Services
Department for Education,Core,01/11/2023,IS/IT,Data,Solirius Ltd,CORE-PINV-067010,"42,036.00",ICT repair and maintenance
Department for Education,Core,13/11/2023,IS/IT,Data,Scrumconnect Limited,CORE-PINV-067413,"62,700.00",Support - Managed Services
Department for Education,Core,16/11/2023,Staff - Temporary Staff,Data,Alexander Mann Solutions Limited,CORE-PCR-002537,"-56,138.40",Short term and agency staff
Department for Education,Core,16/11/2023,IS/IT,Data,Solirius Ltd,CORE-PINV-067845,"36,974.40",Support - Managed Services
Department for Education,Core,16/11/2023,IS/IT,Data,Solirius Ltd,CORE-PINV-067841,"31,483.20",Support - Managed Services
Department for Education,Core,16/11/2023,IS/IT,Data,Cognizant Worldwide Limited,CORE-PINV-067609,"80,499.00",ICT repair and maintenance
Department for Education,Core,24/11/2023,Staff - Temporary Staff,Data,Alexander Mann Solutions Limited,CORE-PCR-002558,"-53,643.36",Short term and agency staff
Department for Education,Core,17/11/2023,IS/IT,Data,Bramble Hub Limited,CORE-PINV-067888,"73,440.00",Support - Managed Services
Department for Education,Core,24/11/2023,Staff - Temporary Staff,Data,Alexander Mann Solutions Limited,CORE-PCR-002568,"-26,197.92",Short term and agency staff
Department for Education,Core,17/11/2023,IS/IT,Data,Solirius Ltd,CORE-PINV-067832,"43,548.00",Support - Managed Services
Department for Education,Core,27/11/2023,Staff - Temporary Staff,Data,Alexander Mann Solutions Limited,CORE-PINV-067651,"127,822.32",Short term and agency staff
Department for Education,Core,29/11/2023,IS/IT,Data,Rm Plc,CORE-PINV-068468,"578,918.50",Systems Operations
Department for Education,Core,30/11/2023,IS/IT,Data,Bramble Hub Limited,CORE-PINV-068396,"25,740.00",ICT repair and maintenance
Department for Education,Core,30/11/2023,IS/IT,Data,Bramble Hub Limited,CORE-PINV-068402,"25,740.00",Support - Managed Services
Department for Education,Core,17/11/2023,IS/IT,Data,Opencast Software Europe Ltd,CORE-PINV-067948,"29,040.00",Systems Operations
Department for Education,Core,17/11/2023,IS/IT,Data,Opencast Software Europe Ltd,CORE-PINV-067946,"166,740.00",Systems Operations
Department for Education,Core,17/11/2023,IS/IT,Data,Opencast Software Europe Ltd,CORE-PINV-067947,"277,020.00",Systems Operations
Department for Education,Core,03/11/2023,Other Costs,Strategic Policy Directorate,Deloitte Llp,CORE-PINV-067121,"27,000.00",Research and development
Department for Education,Core,23/11/2023,Other Goods and Services,Strategic Policy Directorate,Imperial College London,CORE-PINV-067169,855,"Conferences, Exhibitions and Events"
Department for Education,Core,23/11/2023,Other Goods and Services,Strategic Policy Directorate,Imperial College London,CORE-PINV-067169,"22,798.00","Conferences, Exhibitions and Events"
Department for Education,Core,30/11/2023,IS/IT,Strategic Policy Directorate,Esri (Uk) Limited,CORE-PINV-068576,"103,056.00",End User Software and Hardware
Department for Education,Core,01/11/2023,Grants Expenditure,Capital Directorate,Kensington Aldridge Academy,DU00102241,"29,680.57",Current grants - Academy Trust
Department for Education,Core,08/11/2023,Grants Expenditure,Capital Directorate,Portakabin Limited,D-PINV060019,"166,226.58",Current grants - Academy Trust
Department for Education,Core,10/11/2023,Other Costs,Capital Directorate,Mott Macdonald Limited,D-PINV059910,"31,468.80",Research and development
Department for Education,Core,03/11/2023,Grants Expenditure,Capital Directorate,Greenheart Learning Partnership,DU00102466,"26,161.03",Capital grants - Academy Trust
Department for Education,Core,03/11/2023,Grants Expenditure,Capital Directorate,Sandwell Metro Borough Council,DU00102467,"44,996.88",Capital grants - Central Government
Department for Education,Core,03/11/2023,Grants Expenditure,Capital Directorate,Blackpool Borough Council,DU00102474,"28,719.23",Capital grants - Local Government
Department for Education,Core,03/11/2023,Grants Expenditure,Capital Directorate,Manchester City Council,DU00102477,"39,878.00",Capital grants - Local Government
Department for Education,Core,03/11/2023,Grants Expenditure,Capital Directorate,Brighter Futures Learning Partnership Trust,DU00102480,"97,732.00",Capital grants - Academy Trust
Department for Education,Core,03/11/2023,Grants Expenditure,Capital Directorate,St Pauls Church Of England Academy,DU00102484,"27,384.74",Capital grants - Local Government
Department for Education,Core,03/11/2023,Grants Expenditure,Capital Directorate,Cidari Education Limited,DU00102486,"26,981.98",Capital grants - Academy Trust
Department for Education,Core,03/11/2023,Grants Expenditure,Capital Directorate,Cidari Education Limited,DU00102487,"33,835.96",Capital grants - Academy Trust
Department for Education,Core,03/11/2023,Grants Expenditure,Capital Directorate,The Delta Education Trust,DU00102488,"39,696.29",Capital grants - Academy Trust
Department for Education,Core,03/11/2023,Grants Expenditure,Capital Directorate,Rochdale Borough Council,DU00102489,"29,506.65",Capital grants - Local Government
Department for Education,Core,03/11/2023,Grants Expenditure,Capital Directorate,Halton Borough Council,DU00102490,"31,254.06",Capital grants - Local Government
Department for Education,Core,03/11/2023,Grants Expenditure,Capital Directorate,East Sussex County Council,DU00102491,"40,165.36",Capital grants - Local Government
Department for Education,Core,03/11/2023,Grants Expenditure,Capital Directorate,Chiltern Learning Trust,DU00102492,"53,921.88",Capital grants - Academy Trust
Department for Education,Core,03/11/2023,Grants Expenditure,Capital Directorate,Liverpool City Council,DU00102493,"26,189.56",Capital grants - Local Government
Department for Education,Core,03/11/2023,Grants Expenditure,Capital Directorate,Ark Schools,DU00102494,"138,321.84",Capital grants - Academy Trust
Department for Education,Core,03/11/2023,Grants Expenditure,Capital Directorate,The Heath Family (North West),DU00102495,"27,988.84",Capital grants - Academy Trust
Department for Education,Core,03/11/2023,Grants Expenditure,Capital Directorate,The Heath Family (North West),DU00102497,"46,167.50",Capital grants - Academy Trust
Department for Education,Core,03/11/2023,Grants Expenditure,Capital Directorate,Salford City Council,DU00102502,"28,799.43",Capital grants - Local Government
Department for Education,Core,03/11/2023,Grants Expenditure,Capital Directorate,The Elliot Foundation Academies Trust,DU00102504,"44,981.54",Capital grants - Academy Trust
Department for Education,Core,03/11/2023,Grants Expenditure,Capital Directorate,The Elliot Foundation Academies Trust,DU00102505,"51,073.62",Capital grants - Academy Trust
Department for Education,Core,03/11/2023,Grants Expenditure,Capital Directorate,The Elliot Foundation Academies Trust,DU00102506,"96,810.71",Capital grants - Academy Trust
Department for Education,Core,03/11/2023,Grants Expenditure,Capital Directorate,Venn Academy Trust,DU00102507,"66,960.30",Capital grants - Academy Trust
Department for Education,Core,03/11/2023,Grants Expenditure,Capital Directorate,Castle Phoenix Trust,DU00102508,"62,870.46",Capital grants - Academy Trust
Department for Education,Core,03/11/2023,Grants Expenditure,Capital Directorate,Learning Accord Multi Academy Trust,DU00102518,"52,434.35",Capital grants - Academy Trust
Department for Education,Core,03/11/2023,Grants Expenditure,Capital Directorate,Tameside Metro Borough Council,DU00102519,"28,582.08",Capital grants - Local Government
Department for Education,Core,03/11/2023,Grants Expenditure,Capital Directorate,Manchester Diocesan Board Of Education,DU00102520,"28,033.26",Capital grants - Local Government
Department for Education,Core,03/11/2023,Grants Expenditure,Capital Directorate,New Bridge Multi Academy Trust,DU00102522,"59,587.26",Capital grants - Academy Trust
Department for Education,Core,03/11/2023,Grants Expenditure,Capital Directorate,New Bridge Multi Academy Trust,DU00102523,"45,939.81",Capital grants - Academy Trust
Department for Education,Core,03/11/2023,Grants Expenditure,Capital Directorate,Derbyshire County Council,DU00102525,"42,033.84",Capital grants - Local Government
Department for Education,Core,03/11/2023,Grants Expenditure,Capital Directorate,Richard Huish Trust,DU00102530,"52,612.52",Capital grants - Academy Trust
Department for Education,Core,03/11/2023,Grants Expenditure,Capital Directorate,Rochdale Borough Council,DU00102531,"56,656.90",Capital grants - Local Government
Department for Education,Core,03/11/2023,Grants Expenditure,Capital Directorate,Matrix Academy Trust,DU00102533,"25,476.00",Capital grants - Academy Trust
Department for Education,Core,03/11/2023,Grants Expenditure,Capital Directorate,Sandwell Metro Borough Council,DU00102538,"32,900.46",Capital grants - Local Government
Department for Education,Core,03/11/2023,Grants Expenditure,Capital Directorate,Norfolk County Council,DU00102541,"65,500.32",Capital grants - Local Government
Department for Education,Core,03/11/2023,Grants Expenditure,Capital Directorate,Wirral Metro Borough Council,DU00102547,"30,763.25",Capital grants - Local Government
Department for Education,Core,03/11/2023,Grants Expenditure,Capital Directorate,Diocese Of Salford,DU00102548,"68,909.82",Capital grants - Local Government
Department for Education,Core,03/11/2023,Grants Expenditure,Capital Directorate,Cornwall Education Learning Trust,DU00102551,"57,095.61",Capital grants - Academy Trust
Department for Education,Core,03/11/2023,Grants Expenditure,Capital Directorate,Unity Schools Partnership,DU00102552,"41,902.42",Capital grants - Academy Trust
Department for Education,Core,10/11/2023,Grants Expenditure,Capital Directorate,South Pennine Academies,DU00102556,"159,399.21",Capital grants - Academy Trust
Department for Education,Core,10/11/2023,Grants Expenditure,Capital Directorate,Cornwall Education Learning Trust,DU00102559,"42,033.89",Capital grants - Academy Trust
Department for Education,Core,10/11/2023,Grants Expenditure,Capital Directorate,Bradford City Council,DU00102569,"29,301.78",Capital grants - Local Government
Department for Education,Core,10/11/2023,Grants Expenditure,Capital Directorate,Halton Borough Council,DU00102575,"33,044.58",Capital grants - Local Government
Department for Education,Core,10/11/2023,Grants Expenditure,Capital Directorate,Liverpool City Council,DU00102576,"34,239.82",Capital grants - Local Government
Department for Education,Core,10/11/2023,Grants Expenditure,Capital Directorate,Sandwell Metro Borough Council,DU00102577,"60,661.09",Capital grants - Local Government
Department for Education,Core,10/11/2023,Grants Expenditure,Capital Directorate,Rochdale Borough Council,DU00102582,"36,676.56",Capital grants - Local Government
Department for Education,Core,10/11/2023,Grants Expenditure,Capital Directorate,Liverpool City Council,DU00102587,"40,774.33",Capital grants - Local Government
Department for Education,Core,10/11/2023,Grants Expenditure,Capital Directorate,Archdiocese Of Liverpool,DU00102588,"28,364.34",Capital grants - Local Government
Department for Education,Core,10/11/2023,Grants Expenditure,Capital Directorate,Macmillan Academy,DU00102590,"152,414.54",Capital grants - Academy Trust
Department for Education,Core,10/11/2023,Grants Expenditure,Capital Directorate,Coast And Vale Learning Trust,DU00102593,"69,330.00",Capital grants - Academy Trust
Department for Education,Core,10/11/2023,Grants Expenditure,Capital Directorate,Coast And Vale Learning Trust,DU00102594,"54,013.00",Capital grants - Academy Trust
Department for Education,Core,10/11/2023,Grants Expenditure,Capital Directorate,Sandwell Metro Borough Council,DU00102598,"40,494.38",Capital grants - Local Government
Department for Education,Core,10/11/2023,Grants Expenditure,Capital Directorate,Rochdale Borough Council,DU00102602,"33,162.32",Capital grants - Local Government
Department for Education,Core,10/11/2023,Grants Expenditure,Capital Directorate,Tameside Metro Borough Council,DU00102605,"28,434.06",Capital grants - Local Government
Department for Education,Core,10/11/2023,Grants Expenditure,Capital Directorate,New Bridge Multi Academy Trust,DU00102607,"250,330.81",Capital grants - Academy Trust
Department for Education,Core,10/11/2023,Grants Expenditure,Capital Directorate,Salford City Council,DU00102609,"30,020.20",Capital grants - Local Government
Department for Education,Core,10/11/2023,Grants Expenditure,Capital Directorate,Diocese Of Hallam Schools Payment Account,DU00102611,"68,727.82",Capital grants - Local Government
Department for Education,Core,10/11/2023,Grants Expenditure,Capital Directorate,Manchester Diocesan Board Of Education,DU00102612,"45,192.00",Capital grants - Local Government
Department for Education,Core,10/11/2023,Grants Expenditure,Capital Directorate,Bedford Borough Council,DU00102613,"35,338.32",Capital grants - Local Government
Department for Education,Core,10/11/2023,Grants Expenditure,Capital Directorate,Bradford City Council,DU00102614,"32,495.96",Capital grants - Local Government
Department for Education,Core,10/11/2023,Grants Expenditure,Capital Directorate,Springfield School,DU00102615,"272,638.43",Capital grants - Academy Trust
Department for Education,Core,10/11/2023,Grants Expenditure,Capital Directorate,St Edmundsbury And Ipswich Diocesan Multi-Academy Trust,DU00102616,"38,453.82",Capital grants - Academy Trust
Department for Education,Core,10/11/2023,Grants Expenditure,Capital Directorate,Denton West End Primary School,DU00102617,"46,357.00",Capital grants - Academy Trust
Department for Education,Core,10/11/2023,Grants Expenditure,Capital Directorate,Rochdale Borough Council,DU00102618,"26,440.12",Capital grants - Local Government
Department for Education,Core,10/11/2023,Grants Expenditure,Capital Directorate,New Bridge Multi Academy Trust,DU00102620,"82,667.06",Capital grants - Academy Trust
Department for Education,Core,10/11/2023,Grants Expenditure,Capital Directorate,Xp School Trust Ltd,DU00102621,"43,921.00",Capital grants - Academy Trust
Department for Education,Core,17/11/2023,Grants Expenditure,Capital Directorate,Wade Deacon Trust,DU00102624,"112,050.00",Capital grants - Academy Trust
Department for Education,Core,17/11/2023,Grants Expenditure,Capital Directorate,Wade Deacon Trust,DU00102625,"75,260.08",Capital grants - Academy Trust
Department for Education,Core,17/11/2023,Grants Expenditure,Capital Directorate,Wade Deacon Trust,DU00102626,"33,828.00",Capital grants - Academy Trust
Department for Education,Core,17/11/2023,Grants Expenditure,Capital Directorate,Redhill Academy Trust,DU00102628,"104,080.11",Capital grants - Academy Trust
Department for Education,Core,17/11/2023,Grants Expenditure,Capital Directorate,Redhill Academy Trust,DU00102630,"51,330.00",Capital grants - Academy Trust
Department for Education,Core,17/11/2023,Grants Expenditure,Capital Directorate,Redhill Academy Trust,DU00102631,"57,479.66",Capital grants - Academy Trust
Department for Education,Core,17/11/2023,Grants Expenditure,Capital Directorate,Redhill Academy Trust,DU00102632,"74,221.48",Capital grants - Academy Trust
Department for Education,Core,17/11/2023,Grants Expenditure,Capital Directorate,Redhill Academy Trust,DU00102633,"100,034.42",Capital grants - Academy Trust
Department for Education,Core,17/11/2023,Grants Expenditure,Capital Directorate,The Diocese Of Ely Multi-Academy Trust,DU00102640,"56,125.00",Capital grants - Academy Trust
Department for Education,Core,17/11/2023,Grants Expenditure,Capital Directorate,Diocese Of Salford,DU00102641,"34,323.06",Capital grants - Local Government
Department for Education,Core,17/11/2023,Grants Expenditure,Capital Directorate,Oldham Metro Borough Council,DU00102642,"26,870.28",Capital grants - Local Government
Department for Education,Core,17/11/2023,Grants Expenditure,Capital Directorate,Diocese Of Hallam Schools Payment Account,DU00102644,"58,035.39",Capital grants - Local Government
Department for Education,Core,17/11/2023,Grants Expenditure,Capital Directorate,Salford City Council,DU00102645,"31,161.89",Capital grants - Local Government
Department for Education,Core,17/11/2023,Grants Expenditure,Capital Directorate,Salford City Council,DU00102646,"46,451.41",Capital grants - Local Government
Department for Education,Core,17/11/2023,Grants Expenditure,Capital Directorate,Walsall Metro Borough Council,DU00102648,"30,764.06",Capital grants - Local Government
Department for Education,Core,17/11/2023,Grants Expenditure,Capital Directorate,Wade Deacon Trust,DU00102649,"33,828.00",Capital grants - Academy Trust
Department for Education,Core,17/11/2023,Grants Expenditure,Capital Directorate,St Joseph Catholic Multi Academy Trust,DU00102650,"34,153.00",Capital grants - Academy Trust
Department for Education,Core,17/11/2023,Grants Expenditure,Capital Directorate,Bedford Borough Council,DU00102651,"26,537.00",Capital grants - Local Government
Department for Education,Core,17/11/2023,Grants Expenditure,Capital Directorate,Diocese Of Salford,DU00102653,"104,013.19",Capital grants - Local Government
Department for Education,Core,17/11/2023,Grants Expenditure,Capital Directorate,Tameside Metro Borough Council,DU00102654,"31,300.00",Capital grants - Local Government
Department for Education,Core,17/11/2023,Grants Expenditure,Capital Directorate,Focus Academy Trust (Uk) Ltd,DU00102658,"54,603.65",Capital grants - Academy Trust
Department for Education,Core,17/11/2023,Grants Expenditure,Capital Directorate,Leading Edge Academies Partnership,DU00102660,"25,549.99",Capital grants - Academy Trust
Department for Education,Core,17/11/2023,Grants Expenditure,Capital Directorate,St Ralph Sherwin Catholic Multi Academy Trust,DU00102661,"39,640.52",Capital grants - Academy Trust
Department for Education,Core,17/11/2023,Grants Expenditure,Capital Directorate,St Ralph Sherwin Catholic Multi Academy Trust,DU00102664,"32,848.98",Capital grants - Academy Trust
Department for Education,Core,17/11/2023,Grants Expenditure,Capital Directorate,St Ralph Sherwin Catholic Multi Academy Trust,DU00102665,"31,993.98",Capital grants - Academy Trust
Department for Education,Core,17/11/2023,Grants Expenditure,Capital Directorate,Cranmer Education Trust,DU00102668,"69,807.94",Capital grants - Academy Trust
Department for Education,Core,17/11/2023,Grants Expenditure,Capital Directorate,New Park Academy,DU00102672,"28,455.51",Capital grants - Local Government
Department for Education,Core,17/11/2023,Grants Expenditure,Capital Directorate,Salford City Council,DU00102674,"26,155.02",Capital grants - Local Government
Department for Education,Core,17/11/2023,Grants Expenditure,Capital Directorate,Salford City Council,DU00102675,"31,439.50",Capital grants - Local Government
Department for Education,Core,17/11/2023,Grants Expenditure,Capital Directorate,Diocese Of Salford,DU00102680,"45,536.03",Capital grants - Academy Trust
Department for Education,Core,17/11/2023,Grants Expenditure,Capital Directorate,The Elliot Foundation Academies Trust,DU00102681,"63,399.12",Capital grants - Academy Trust
Department for Education,Core,17/11/2023,Grants Expenditure,Capital Directorate,Esteem Multi-Academy Trust,DU00102684,"30,283.91",Capital grants - Academy Trust
Department for Education,Core,17/11/2023,Grants Expenditure,Capital Directorate,The Elliot Foundation Academies Trust,DU00102686,"28,684.79",Capital grants - Academy Trust
Department for Education,Core,17/11/2023,Grants Expenditure,Capital Directorate,Tyne Coast Academy Trust,DU00102687,"189,577.61",Capital grants - Academy Trust
Department for Education,Core,17/11/2023,Grants Expenditure,Capital Directorate,Minehead Middle School,DU00102689,"38,612.65",Capital grants - Local Government
Department for Education,Core,17/11/2023,Grants Expenditure,Capital Directorate,East Midlands Education Trust,DU00102695,"53,692.93",Capital grants - Academy Trust
Department for Education,Core,17/11/2023,Grants Expenditure,Capital Directorate,Tudhoe Learning Trust,DU00102696,"39,221.28",Capital grants - Academy Trust
Department for Education,Core,17/11/2023,Grants Expenditure,Capital Directorate,Frank Field Education Trust,DU00102697,"59,251.76",Capital grants - Academy Trust
Department for Education,Core,17/11/2023,Grants Expenditure,Capital Directorate,Lincolnshire County Council,DU00102698,"78,661.40",Capital grants - Local Government
Department for Education,Core,17/11/2023,Grants Expenditure,Capital Directorate,Range High School,DU00102700,"212,274.90",Capital grants - Local Government
Department for Education,Core,17/11/2023,Grants Expenditure,Capital Directorate,Salford City Council,DU00102702,"50,670.03",Capital grants - Local Government
Department for Education,Core,17/11/2023,Grants Expenditure,Capital Directorate,Roman Catholic Diocese Of East Anglia,DU00102703,"26,714.66",Capital grants - Local Government
Department for Education,Core,17/11/2023,Grants Expenditure,Capital Directorate,Salford City Council,DU00102704,"25,197.94",Capital grants - Local Government
Department for Education,Core,17/11/2023,Grants Expenditure,Capital Directorate,Bridgwater And Taunton College Trust,DU00102705,"54,250.00",Capital grants - Academy Trust
Department for Education,Core,17/11/2023,Grants Expenditure,Capital Directorate,Suffolk County Council,DU00102706,"150,380.76",Capital grants - Local Government
Department for Education,Core,24/11/2023,Grants Expenditure,Capital Directorate,The Diocese Of Norwich Education And Academies Trust,DU00102858,"70,830.98",Capital grants - Academy Trust
Department for Education,Core,24/11/2023,Grants Expenditure,Capital Directorate,Wickersley Partnership Trust,DU00102859,"105,705.93",Capital grants - Academy Trust
Department for Education,Core,24/11/2023,Grants Expenditure,Capital Directorate,Wickersley Partnership Trust,DU00102865,"28,334.76",Capital grants - Academy Trust
Department for Education,Core,24/11/2023,Grants Expenditure,Capital Directorate,Wickersley Partnership Trust,DU00102866,"36,750.49",Capital grants - Academy Trust
Department for Education,Core,24/11/2023,Grants Expenditure,Capital Directorate,Wickersley Partnership Trust,DU00102868,"81,529.62",Capital grants - Academy Trust
Department for Education,Core,24/11/2023,Grants Expenditure,Capital Directorate,Somersham Primary School,DU00102869,"35,896.63",Capital grants - Local Government
Department for Education,Core,24/11/2023,Grants Expenditure,Capital Directorate,Ely College,DU00102870,"284,787.79",Capital grants - Local Government
Department for Education,Core,24/11/2023,Grants Expenditure,Capital Directorate,The Harbour School,DU00102874,"91,893.76",Capital grants - Local Government
Department for Education,Core,24/11/2023,Grants Expenditure,Capital Directorate,Diocese Of Salford,DU00102877,"47,874.91",Capital grants - Academy Trust
Department for Education,Core,24/11/2023,Grants Expenditure,Capital Directorate,Cambridgeshire County Council,DU00102879,"48,663.13",Capital grants - Local Government
Department for Education,Core,24/11/2023,Grants Expenditure,Capital Directorate,The David Ross Education Trust,DU00102883,"112,990.66",Capital grants - Academy Trust
Department for Education,Core,24/11/2023,Grants Expenditure,Capital Directorate,The David Ross Education Trust,DU00102884,"84,809.59",Capital grants - Academy Trust
Department for Education,Core,24/11/2023,Grants Expenditure,Capital Directorate,Astrea Academy Trust,DU00102886,"40,990.93",Capital grants - Academy Trust
Department for Education,Core,24/11/2023,Grants Expenditure,Capital Directorate,Cambridgeshire County Council,DU00102898,"49,928.70",Capital grants - Local Government
Department for Education,Core,24/11/2023,Grants Expenditure,Capital Directorate,Diocese Of Salford,DU00102899,"45,559.68",Capital grants - Local Government
Department for Education,Core,24/11/2023,Grants Expenditure,Capital Directorate,Academies Enterprise Trust,DU00102902,"189,954.34",Capital grants - Academy Trust
Department for Education,Core,24/11/2023,Grants Expenditure,Capital Directorate,Sandwell Metro Borough Council,DU00102903,"59,803.40",Capital grants - Local Government
Department for Education,Core,24/11/2023,Grants Expenditure,Capital Directorate,Fylde Coast Academy Trust,DU00102904,"47,524.72",Capital grants - Academy Trust
Department for Education,Core,24/11/2023,Grants Expenditure,Capital Directorate,Walsall Metro Borough Council,DU00102905,"47,279.00",Capital grants - Local Government
Department for Education,Core,24/11/2023,Grants Expenditure,Capital Directorate,Dudley Academies Trust,DU00102906,"66,449.06",Capital grants - Academy Trust
Department for Education,Core,24/11/2023,Grants Expenditure,Capital Directorate,Saxon Mount School,DU00102907,"48,641.91",Capital grants - Academy Trust
Department for Education,Core,24/11/2023,Grants Expenditure,Capital Directorate,Sandwell Metro Borough Council,DU00102908,"42,077.70",Capital grants - Local Government
Department for Education,Core,24/11/2023,Grants Expenditure,Capital Directorate,Pickwick Academy Trust,DU00102909,"70,692.17",Capital grants - Academy Trust
Department for Education,Core,24/11/2023,Grants Expenditure,Capital Directorate,Leeds Diocesan Board Of Finance,DU00102910,"75,496.42",Capital grants - Local Government
Department for Education,Core,24/11/2023,Grants Expenditure,Capital Directorate,Moorlands Learning Trust,DU00102915,"56,298.70",Capital grants - Academy Trust
Department for Education,Core,02/11/2023,Other Goods and Services,Capital Directorate,Mott Macdonald Limited,D-PINV059868,"75,385.20",Professional Services
Department for Education,Core,15/11/2023,Other Goods and Services,Capital Directorate,Ove Arup And Partners Limited,D-PINV059961,"72,247.20",Professional Services
Department for Education,Core,02/11/2023,Other Goods and Services,Capital Directorate,Lyreco Uk Limited,D-PINV059047,"146,164.18",Defibrillators for state-funded schools in England for AED programme
Department for Education,Core,02/11/2023,Office Costs,Capital Directorate,Cmt Equipment Ltd,D-PINV059090,"203,976.00",Purchase and delivery of internal and external AED cabinets for Defibrillators
Department for Education,Core,02/11/2023,Office Costs,Capital Directorate,Cmt Equipment Ltd,D-PINV059110,"489,960.00",Purchase and delivery of internal and external AED cabinets for Defibrillators
Department for Education,Core,02/11/2023,Office Costs,Capital Directorate,Cmt Equipment Ltd,D-PINV059768,"1,427,446.80",Purchase and delivery of internal and external AED cabinets for Defibrillators
Department for Education,Core,02/11/2023,Office Costs,Capital Directorate,Cmt Equipment Ltd,D-PINV058830,"45,972.00",Purchase and delivery of internal and external AED cabinets for Defibrillators
Department for Education,Core,02/11/2023,Office Costs,Capital Directorate,Cmt Equipment Ltd,D-PINV058831,"182,430.00",Purchase and delivery of internal and external AED cabinets for Defibrillators
Department for Education,Core,02/11/2023,Office Costs,Capital Directorate,Cmt Equipment Ltd,D-PINV058832,"238,338.00",Purchase and delivery of internal and external AED cabinets for Defibrillators
Department for Education,Core,02/11/2023,Office Costs,Capital Directorate,Cmt Equipment Ltd,D-PINV058829,"247,690.80",Purchase and delivery of internal and external AED cabinets for Defibrillators
Department for Education,Core,17/11/2023,IS/IT,Capital Directorate,Cognizant Worldwide Limited,D-PINV060038,"51,615.63",Systems Development
Department for Education,Core,20/11/2023,Grants Expenditure,Capital Directorate,Bedford Borough Council,CL070716,"3,060,716.22",Capital grants - Local Government
Department for Education,Core,20/11/2023,Grants Expenditure,Capital Directorate,Blackpool Borough Council,CL070717,"41,402.80",Capital grants - Local Government
Department for Education,Core,20/11/2023,Grants Expenditure,Capital Directorate,Bolton Metro Borough Council,CL070718,"384,289.37",Capital grants - Local Government
Department for Education,Core,20/11/2023,Grants Expenditure,Capital Directorate,Bracknell Forest Borough Council,CL070719,"146,557.77",Capital grants - Local Government
Department for Education,Core,20/11/2023,Grants Expenditure,Capital Directorate,Bradford City Council,CL070720,"1,025,683.85",Capital grants - Local Government
Department for Education,Core,20/11/2023,Grants Expenditure,Capital Directorate,Bristol City Council,CL070721,"1,622,151.65",Capital grants - Local Government
Department for Education,Core,20/11/2023,Grants Expenditure,Capital Directorate,Buckinghamshire Council,CL070722,"432,719.76",Capital grants - Local Government
Department for Education,Core,20/11/2023,Grants Expenditure,Capital Directorate,Bury Metro Borough Council,CL070723,"648,790.70",Capital grants - Local Government
Department for Education,Core,20/11/2023,Grants Expenditure,Capital Directorate,Calderdale Metro Borough Council,CL070724,"689,476.49",Capital grants - Local Government
Department for Education,Core,20/11/2023,Grants Expenditure,Capital Directorate,Cambridgeshire County Council,CL070725,"251,028.67",Capital grants - Local Government
Department for Education,Core,20/11/2023,Grants Expenditure,Capital Directorate,Cheshire East Council,CL070726,"1,179,107.39",Capital grants - Local Government
Department for Education,Core,20/11/2023,Grants Expenditure,Capital Directorate,Cheshire West And Chester Council,CL070727,"548,598.33",Capital grants - Local Government
Department for Education,Core,20/11/2023,Grants Expenditure,Capital Directorate,Cornwall Council,CL070729,"897,469.42",Capital grants - Local Government
Department for Education,Core,20/11/2023,Grants Expenditure,Capital Directorate,Coventry City Council,CL070730,"2,241,768.41",Capital grants - Local Government
Department for Education,Core,20/11/2023,Grants Expenditure,Capital Directorate,Darlington Borough Council,CL070731,"114,961.40",Capital grants - Local Government
Department for Education,Core,20/11/2023,Grants Expenditure,Capital Directorate,Derby City Council,CL070732,"98,803.97",Capital grants - Local Government
Department for Education,Core,20/11/2023,Grants Expenditure,Capital Directorate,Derbyshire County Council,CL070733,"1,861,774.71",Capital grants - Local Government
Department for Education,Core,20/11/2023,Grants Expenditure,Capital Directorate,Devon County Council,CL070734,"629,627.65",Capital grants - Local Government
Department for Education,Core,20/11/2023,Grants Expenditure,Capital Directorate,Doncaster Metro Borough Council,CL070735,"371,551.23",Capital grants - Local Government
Department for Education,Core,20/11/2023,Grants Expenditure,Capital Directorate,Durham County Council,CL070737,"1,101,993.41",Capital grants - Local Government
Department for Education,Core,20/11/2023,Grants Expenditure,Capital Directorate,Ealing London Borough Council,CL070738,"2,029,197.46",Capital grants - Local Government
Department for Education,Core,20/11/2023,Grants Expenditure,Capital Directorate,East Riding Of Yorkshire Council,CL070739,"408,939.75",Capital grants - Local Government
Department for Education,Core,20/11/2023,Grants Expenditure,Capital Directorate,East Sussex County Council,CL070740,"318,023.39",Capital grants - Local Government
Department for Education,Core,20/11/2023,Grants Expenditure,Capital Directorate,Gateshead Council,CL070741,"1,398,929.02",Capital grants - Local Government
Department for Education,Core,20/11/2023,Grants Expenditure,Capital Directorate,Hackney London Borough Council,CL070742,"26,666.63",Capital grants - Local Government
Department for Education,Core,20/11/2023,Grants Expenditure,Capital Directorate,Havering London Borough Council,CL070744,"124,611.13",Capital grants - Local Government
Department for Education,Core,20/11/2023,Grants Expenditure,Capital Directorate,Herefordshire Council,CL070745,"901,261.07",Capital grants - Local Government
Department for Education,Core,20/11/2023,Grants Expenditure,Capital Directorate,Hertfordshire County Council,CL070746,"2,146,072.70",Capital grants - Local Government
Department for Education,Core,20/11/2023,Grants Expenditure,Capital Directorate,London Borough Of Hillingdon,CL070747,"53,653.34",Capital grants - Local Government
Department for Education,Core,20/11/2023,Grants Expenditure,Capital Directorate,Royal Borough Of Kensington And Chelsea Council,CL070750,"847,782.93",Capital grants - Local Government
Department for Education,Core,20/11/2023,Grants Expenditure,Capital Directorate,Royal Borough Of Kingston Upon Thames Council,CL070751,"1,347,333.57",Capital grants - Local Government
Department for Education,Core,20/11/2023,Grants Expenditure,Capital Directorate,Kirklees Metro Council,CL070752,"1,226,540.60",Capital grants - Local Government
Department for Education,Core,20/11/2023,Grants Expenditure,Capital Directorate,Knowsley Metro Borough Council,CL070753,"606,584.65",Capital grants - Local Government
Department for Education,Core,20/11/2023,Grants Expenditure,Capital Directorate,Lancashire County Council,CL070754,"3,316,772.46",Capital grants - Local Government
Department for Education,Core,20/11/2023,Grants Expenditure,Capital Directorate,Leeds City Council,CL070755,"2,886,832.78",Capital grants - Local Government
Department for Education,Core,20/11/2023,Grants Expenditure,Capital Directorate,Leicester City Council,CL070756,"831,412.26",Capital grants - Local Government
Department for Education,Core,20/11/2023,Grants Expenditure,Capital Directorate,Leicestershire County Council,CL070757,"1,583,962.52",Capital grants - Local Government
Department for Education,Core,20/11/2023,Grants Expenditure,Capital Directorate,Lincolnshire County Council,CL070758,"182,136.79",Capital grants - Local Government
Department for Education,Core,20/11/2023,Grants Expenditure,Capital Directorate,Liverpool City Council,CL070759,"2,260,815.13",Capital grants - Local Government
Department for Education,Core,20/11/2023,Grants Expenditure,Capital Directorate,Luton Borough Council,CL070760,"236,672.87",Capital grants - Local Government
Department for Education,Core,20/11/2023,Grants Expenditure,Capital Directorate,Manchester City Council,CL070761,"450,667.78",Capital grants - Local Government
Department for Education,Core,20/11/2023,Grants Expenditure,Capital Directorate,Medway Council,CL070762,"1,894,436.34",Capital grants - Local Government
Department for Education,Core,20/11/2023,Grants Expenditure,Capital Directorate,Newcastle Upon Tyne City Council,CL070763,"1,044,385.37",Capital grants - Local Government
Department for Education,Core,20/11/2023,Grants Expenditure,Capital Directorate,Norfolk County Council,CL070764,"1,770,958.27",Capital grants - Local Government
Department for Education,Core,20/11/2023,Grants Expenditure,Capital Directorate,North East Lincolnshire Council,CL070765,"225,629.09",Capital grants - Local Government
Department for Education,Core,20/11/2023,Grants Expenditure,Capital Directorate,North Lincolnshire Council,CL070766,"55,959.57",Capital grants - Local Government
Department for Education,Core,20/11/2023,Grants Expenditure,Capital Directorate,North Somerset Council,CL070767,"743,862.00",Capital grants - Local Government
Department for Education,Core,20/11/2023,Grants Expenditure,Capital Directorate,Northumberland County Council,CL070768,"595,169.81",Capital grants - Local Government
Department for Education,Core,20/11/2023,Grants Expenditure,Capital Directorate,Nottingham City Council,CL070769,"53,151.32",Capital grants - Local Government
Department for Education,Core,20/11/2023,Grants Expenditure,Capital Directorate,Nottinghamshire County Council,CL070770,"4,262,006.75",Capital grants - Local Government
Department for Education,Core,20/11/2023,Grants Expenditure,Capital Directorate,Oldham Metro Borough Council,CL070771,"611,982.22",Capital grants - Local Government
Department for Education,Core,20/11/2023,Grants Expenditure,Capital Directorate,Redcar And Cleveland Borough Council,CL070773,"360,776.66",Capital grants - Local Government
Department for Education,Core,20/11/2023,Grants Expenditure,Capital Directorate,Richmond Upon Thames London Borough Council,CL070774,"243,653.99",Capital grants - Local Government
Department for Education,Core,20/11/2023,Grants Expenditure,Capital Directorate,Rutland County Council,CL070775,"195,330.34",Capital grants - Local Government
Department for Education,Core,20/11/2023,Grants Expenditure,Capital Directorate,Salford City Council,CL070776,"829,216.81",Capital grants - Local Government
Department for Education,Core,20/11/2023,Grants Expenditure,Capital Directorate,Sandwell Metro Borough Council,CL070777,"1,113,390.96",Capital grants - Local Government
Department for Education,Core,20/11/2023,Grants Expenditure,Capital Directorate,Sefton Metropolitan Borough Council,CL070778,"97,646.97",Capital grants - Local Government
Department for Education,Core,20/11/2023,Grants Expenditure,Capital Directorate,Sheffield City Council,CL070779,"1,077,028.40",Capital grants - Local Government
Department for Education,Core,20/11/2023,Grants Expenditure,Capital Directorate,Shropshire Council,CL070780,"395,806.10",Capital grants - Local Government
Department for Education,Core,20/11/2023,Grants Expenditure,Capital Directorate,South Gloucestershire Council,CL070781,"76,771.40",Capital grants - Local Government
Department for Education,Core,20/11/2023,Grants Expenditure,Capital Directorate,South Tyneside Council,CL070782,"270,212.93",Capital grants - Local Government
Department for Education,Core,20/11/2023,Grants Expenditure,Capital Directorate,Southend On Sea Borough Council,CL070783,"102,392.24",Capital grants - Local Government
Department for Education,Core,20/11/2023,Grants Expenditure,Capital Directorate,Staffordshire County Council,CL070784,"1,420,527.41",Capital grants - Local Government
Department for Education,Core,20/11/2023,Grants Expenditure,Capital Directorate,Stockport Metro Borough Council,CL070785,"719,104.10",Capital grants - Local Government
Department for Education,Core,20/11/2023,Grants Expenditure,Capital Directorate,Surrey County Council,CL070786,"2,767,446.80",Capital grants - Local Government
Department for Education,Core,20/11/2023,Grants Expenditure,Capital Directorate,Swindon Borough Council,CL070787,"43,311.49",Capital grants - Local Government
Department for Education,Core,20/11/2023,Grants Expenditure,Capital Directorate,Telford And Wrekin Council,CL070788,"1,566,379.35",Capital grants - Local Government
Department for Education,Core,20/11/2023,Grants Expenditure,Capital Directorate,Trafford Borough Council,CL070789,"945,537.53",Capital grants - Local Government
Department for Education,Core,20/11/2023,Grants Expenditure,Capital Directorate,Walsall Metro Borough Council,CL070790,"1,194,250.16",Capital grants - Local Government
Department for Education,Core,20/11/2023,Grants Expenditure,Capital Directorate,Waltham Forest London Borough Council,CL070791,"170,004.36",Capital grants - Local Government
Department for Education,Core,20/11/2023,Grants Expenditure,Capital Directorate,Warrington Borough Council,CL070793,"589,888.60",Capital grants - Local Government
Department for Education,Core,20/11/2023,Grants Expenditure,Capital Directorate,Warwickshire County Council,CL070794,"4,538,919.56",Capital grants - Local Government
Department for Education,Core,20/11/2023,Grants Expenditure,Capital Directorate,West Berkshire Council,CL070795,"751,596.20",Capital grants - Local Government
Department for Education,Core,20/11/2023,Grants Expenditure,Capital Directorate,West Sussex County Council,CL070796,"2,201,080.35",Capital grants - Local Government
Department for Education,Core,20/11/2023,Grants Expenditure,Capital Directorate,Westminster City Council,CL070797,"452,940.01",Capital grants - Local Government
Department for Education,Core,20/11/2023,Grants Expenditure,Capital Directorate,Wigan Metropolitan Borough Council,CL070798,"1,522,242.62",Capital grants - Local Government
Department for Education,Core,20/11/2023,Grants Expenditure,Capital Directorate,Wirral Metro Borough Council,CL070799,"42,338.78",Capital grants - Local Government
Department for Education,Core,20/11/2023,Grants Expenditure,Capital Directorate,Wokingham Council,CL070800,"80,477.10",Capital grants - Local Government
Department for Education,Core,20/11/2023,Grants Expenditure,Capital Directorate,Worcestershire County Council,CL070801,"791,963.92",Capital grants - Local Government
Department for Education,Core,20/11/2023,Grants Expenditure,Capital Directorate,North Northamptonshire Council,CL070802,"603,771.11",Capital grants - Local Government
Department for Education,Core,20/11/2023,Grants Expenditure,Capital Directorate,West Northamptonshire Council,CL070803,"985,239.32",Capital grants - Local Government
Department for Education,Core,20/11/2023,Grants Expenditure,Capital Directorate,Kent County Council,CL070953,"4,750,287.25",Capital grants - Local Government
Department for Education,Core,20/11/2023,Grants Expenditure,Capital Directorate,Westmorland And Furness Council,CL070954,"103,865.18",Capital grants - Local Government
Department for Education,Core,10/11/2023,Grants Expenditure,Capital Directorate,Hasmonean Primary School Capital Reserve,D-CINV005565,"35,640.00",Capital grants - Local Government
Department for Education,Core,13/11/2023,Grants Expenditure,Capital Directorate,Menorah Foundation School,D-CINV005566,"40,500.00",Capital grants - Local Government
Department for Education,Core,22/11/2023,Grants Expenditure,Capital Directorate,Manchester Mesivta School,D-CINV005610,"41,830.63",Capital grants - Local Government
Department for Education,Core,20/11/2023,Grants Expenditure,Capital Directorate,Camden London Borough Council,CL070804,"197,361.50",Capital grants - Local Government
Department for Education,Core,20/11/2023,Grants Expenditure,Capital Directorate,Greenwich London Borough Council,CL070805,"321,838.02",Capital grants - Local Government
Department for Education,Core,20/11/2023,Grants Expenditure,Capital Directorate,Hackney London Borough Council,CL070806,"370,520.44",Capital grants - Local Government
Department for Education,Core,20/11/2023,Grants Expenditure,Capital Directorate,Hammersmith And Fulham London Borough Council,CL070807,"157,454.35",Capital grants - Local Government
Department for Education,Core,20/11/2023,Grants Expenditure,Capital Directorate,Islington London Borough Council,CL070808,"219,254.12",Capital grants - Local Government
Department for Education,Core,20/11/2023,Grants Expenditure,Capital Directorate,Royal Borough Of Kensington And Chelsea Council,CL070809,"76,939.30",Capital grants - Local Government
Department for Education,Core,20/11/2023,Grants Expenditure,Capital Directorate,Lambeth London Borough Council,CL070810,"344,958.61",Capital grants - Local Government
Department for Education,Core,20/11/2023,Grants Expenditure,Capital Directorate,Lewisham London Borough Council,CL070811,"444,931.24",Capital grants - Local Government
Department for Education,Core,20/11/2023,Grants Expenditure,Capital Directorate,Southwark London Borough Council,CL070812,"232,088.26",Capital grants - Local Government
Department for Education,Core,20/11/2023,Grants Expenditure,Capital Directorate,London Borough Of Tower Hamlets,CL070813,"526,277.60",Capital grants - Local Government
Department for Education,Core,20/11/2023,Grants Expenditure,Capital Directorate,Wandsworth Borough Council,CL070814,"189,528.14",Capital grants - Local Government
Department for Education,Core,20/11/2023,Grants Expenditure,Capital Directorate,Westminster City Council,CL070815,"37,236.40",Capital grants - Local Government
Department for Education,Core,20/11/2023,Grants Expenditure,Capital Directorate,Barking And Dagenham London Borough Council,CL070816,"583,355.04",Capital grants - Local Government
Department for Education,Core,20/11/2023,Grants Expenditure,Capital Directorate,Barnet London Borough Council,CL070817,"385,912.27",Capital grants - Local Government
Department for Education,Core,20/11/2023,Grants Expenditure,Capital Directorate,Bexley London Borough Council,CL070818,"75,975.55",Capital grants - Local Government
Department for Education,Core,20/11/2023,Grants Expenditure,Capital Directorate,Brent London Borough Council,CL070819,"269,722.33",Capital grants - Local Government
Department for Education,Core,20/11/2023,Grants Expenditure,Capital Directorate,Bromley London Borough Council,CL070820,"43,164.59",Capital grants - Local Government
Department for Education,Core,20/11/2023,Grants Expenditure,Capital Directorate,Croydon London Borough Council,CL070821,"221,947.45",Capital grants - Local Government
Department for Education,Core,20/11/2023,Grants Expenditure,Capital Directorate,Ealing London Borough Council,CL070822,"661,094.26",Capital grants - Local Government
Department for Education,Core,20/11/2023,Grants Expenditure,Capital Directorate,Enfield London Borough Council,CL070823,"548,660.69",Capital grants - Local Government
Department for Education,Core,20/11/2023,Grants Expenditure,Capital Directorate,Haringey London Borough Council,CL070824,"480,996.34",Capital grants - Local Government
Department for Education,Core,20/11/2023,Grants Expenditure,Capital Directorate,Harrow London Borough Council,CL070825,"299,483.84",Capital grants - Local Government
Department for Education,Core,20/11/2023,Grants Expenditure,Capital Directorate,Havering London Borough Council,CL070826,"280,220.89",Capital grants - Local Government
Department for Education,Core,20/11/2023,Grants Expenditure,Capital Directorate,London Borough Of Hillingdon,CL070827,"364,496.95",Capital grants - Local Government
Department for Education,Core,20/11/2023,Grants Expenditure,Capital Directorate,Hounslow London Borough Council,CL070828,"476,548.69",Capital grants - Local Government
Department for Education,Core,20/11/2023,Grants Expenditure,Capital Directorate,Royal Borough Of Kingston Upon Thames Council,CL070829,"93,362.41",Capital grants - Local Government
Department for Education,Core,20/11/2023,Grants Expenditure,Capital Directorate,Merton Borough Council,CL070830,"264,603.34",Capital grants - Local Government
Department for Education,Core,20/11/2023,Grants Expenditure,Capital Directorate,Newham London Borough Council,CL070831,"388,731.86",Capital grants - Local Government
Department for Education,Core,20/11/2023,Grants Expenditure,Capital Directorate,Redbridge London Borough Council,CL070832,"810,514.97",Capital grants - Local Government
Department for Education,Core,20/11/2023,Grants Expenditure,Capital Directorate,Richmond Upon Thames London Borough Council,CL070833,"130,914.12",Capital grants - Local Government
Department for Education,Core,20/11/2023,Grants Expenditure,Capital Directorate,London Borough Of Sutton,CL070834,"97,037.38",Capital grants - Local Government
Department for Education,Core,20/11/2023,Grants Expenditure,Capital Directorate,Waltham Forest London Borough Council,CL070835,"307,020.28",Capital grants - Local Government
Department for Education,Core,20/11/2023,Grants Expenditure,Capital Directorate,Birmingham City Council,CL070836,"1,384,246.27",Capital grants - Local Government
Department for Education,Core,20/11/2023,Grants Expenditure,Capital Directorate,Coventry City Council,CL070837,"389,613.17",Capital grants - Local Government
Department for Education,Core,20/11/2023,Grants Expenditure,Capital Directorate,Dudley Metropolitan Borough Council,CL070838,"427,174.36",Capital grants - Local Government
Department for Education,Core,20/11/2023,Grants Expenditure,Capital Directorate,Sandwell Metro Borough Council,CL070839,"599,833.21",Capital grants - Local Government
Department for Education,Core,20/11/2023,Grants Expenditure,Capital Directorate,Solihull Metro Borough Council,CL070840,"203,381.94",Capital grants - Local Government
Department for Education,Core,20/11/2023,Grants Expenditure,Capital Directorate,Walsall Metro Borough Council,CL070841,"440,623.94",Capital grants - Local Government
Department for Education,Core,20/11/2023,Grants Expenditure,Capital Directorate,Wolverhampton City Council,CL070842,"328,964.46",Capital grants - Local Government
Department for Education,Core,20/11/2023,Grants Expenditure,Capital Directorate,Knowsley Metro Borough Council,CL070843,"98,959.89",Capital grants - Local Government
Department for Education,Core,20/11/2023,Grants Expenditure,Capital Directorate,Liverpool City Council,CL070844,"444,825.49",Capital grants - Local Government
Department for Education,Core,20/11/2023,Grants Expenditure,Capital Directorate,St Helens Metro Borough Council,CL070845,"204,615.56",Capital grants - Local Government
Department for Education,Core,20/11/2023,Grants Expenditure,Capital Directorate,Sefton Metropolitan Borough Council,CL070846,"245,326.02",Capital grants - Local Government
Department for Education,Core,20/11/2023,Grants Expenditure,Capital Directorate,Wirral Metro Borough Council,CL070847,"459,143.57",Capital grants - Local Government
Department for Education,Core,20/11/2023,Grants Expenditure,Capital Directorate,Bolton Metro Borough Council,CL070848,"397,763.33",Capital grants - Local Government
Department for Education,Core,20/11/2023,Grants Expenditure,Capital Directorate,Bury Metro Borough Council,CL070849,"224,994.64",Capital grants - Local Government
Department for Education,Core,20/11/2023,Grants Expenditure,Capital Directorate,Manchester City Council,CL070850,"477,221.45",Capital grants - Local Government
Department for Education,Core,20/11/2023,Grants Expenditure,Capital Directorate,Oldham Metro Borough Council,CL070851,"224,506.00",Capital grants - Local Government
Department for Education,Core,20/11/2023,Grants Expenditure,Capital Directorate,Rochdale Borough Council,CL070852,"292,639.22",Capital grants - Local Government
Department for Education,Core,20/11/2023,Grants Expenditure,Capital Directorate,Salford City Council,CL070853,"235,224.11",Capital grants - Local Government
Department for Education,Core,20/11/2023,Grants Expenditure,Capital Directorate,Stockport Metro Borough Council,CL070854,"551,340.68",Capital grants - Local Government
Department for Education,Core,20/11/2023,Grants Expenditure,Capital Directorate,Tameside Metro Borough Council,CL070855,"171,270.41",Capital grants - Local Government
Department for Education,Core,20/11/2023,Grants Expenditure,Capital Directorate,Trafford Borough Council,CL070856,"284,903.01",Capital grants - Local Government
Department for Education,Core,20/11/2023,Grants Expenditure,Capital Directorate,Wigan Metropolitan Borough Council,CL070857,"321,956.33",Capital grants - Local Government
Department for Education,Core,20/11/2023,Grants Expenditure,Capital Directorate,Barnsley Metropolitan Borough Council,CL070858,"68,635.72",Capital grants - Local Government
Department for Education,Core,20/11/2023,Grants Expenditure,Capital Directorate,Doncaster Metro Borough Council,CL070859,"109,132.27",Capital grants - Local Government
Department for Education,Core,20/11/2023,Grants Expenditure,Capital Directorate,Rotherham Borough Council,CL070860,"99,702.07",Capital grants - Local Government
Department for Education,Core,20/11/2023,Grants Expenditure,Capital Directorate,Sheffield City Council,CL070861,"399,183.92",Capital grants - Local Government
Department for Education,Core,20/11/2023,Grants Expenditure,Capital Directorate,Bradford City Council,CL070862,"327,060.94",Capital grants - Local Government
Department for Education,Core,20/11/2023,Grants Expenditure,Capital Directorate,Calderdale Metro Borough Council,CL070863,"201,780.70",Capital grants - Local Government
Department for Education,Core,20/11/2023,Grants Expenditure,Capital Directorate,Kirklees Metro Council,CL070864,"398,331.26",Capital grants - Local Government
Department for Education,Core,20/11/2023,Grants Expenditure,Capital Directorate,Leeds City Council,CL070865,"762,853.28",Capital grants - Local Government
Department for Education,Core,20/11/2023,Grants Expenditure,Capital Directorate,Wakefield City Council,CL070866,"303,668.97",Capital grants - Local Government
Department for Education,Core,20/11/2023,Grants Expenditure,Capital Directorate,Gateshead Council,CL070867,"202,970.35",Capital grants - Local Government
Department for Education,Core,20/11/2023,Grants Expenditure,Capital Directorate,Newcastle Upon Tyne City Council,CL070868,"164,752.24",Capital grants - Local Government
Department for Education,Core,20/11/2023,Grants Expenditure,Capital Directorate,North Tyneside Metro Borough Council,CL070869,"435,606.06",Capital grants - Local Government
Department for Education,Core,20/11/2023,Grants Expenditure,Capital Directorate,South Tyneside Council,CL070870,"169,761.58",Capital grants - Local Government
Department for Education,Core,20/11/2023,Grants Expenditure,Capital Directorate,Sunderland City Metro Borough Council,CL070871,"166,704.24",Capital grants - Local Government
Department for Education,Core,20/11/2023,Grants Expenditure,Capital Directorate,Bristol City Council,CL070873,"200,958.38",Capital grants - Local Government
Department for Education,Core,20/11/2023,Grants Expenditure,Capital Directorate,South Gloucestershire Council,CL070875,"232,586.98",Capital grants - Local Government
Department for Education,Core,20/11/2023,Grants Expenditure,Capital Directorate,Hartlepool Borough Council,CL070876,"68,222.95",Capital grants - Local Government
Department for Education,Core,20/11/2023,Grants Expenditure,Capital Directorate,Middlesbrough Council,CL070877,"70,528.84",Capital grants - Local Government
Department for Education,Core,20/11/2023,Grants Expenditure,Capital Directorate,Redcar And Cleveland Borough Council,CL070878,"42,724.18",Capital grants - Local Government
Department for Education,Core,20/11/2023,Grants Expenditure,Capital Directorate,Stockton On Tees Borough Council,CL070879,"129,119.36",Capital grants - Local Government
Department for Education,Core,20/11/2023,Grants Expenditure,Capital Directorate,East Riding Of Yorkshire Council,CL070881,"474,217.91",Capital grants - Local Government
Department for Education,Core,20/11/2023,Grants Expenditure,Capital Directorate,North Lincolnshire Council,CL070883,"226,061.74",Capital grants - Local Government
Department for Education,Core,20/11/2023,Grants Expenditure,Capital Directorate,North Yorkshire County Council,CL070884,"671,582.13",Capital grants - Local Government
Department for Education,Core,20/11/2023,Grants Expenditure,Capital Directorate,City Of York Council,CL070885,"163,770.00",Capital grants - Local Government
Department for Education,Core,20/11/2023,Grants Expenditure,Capital Directorate,Luton Borough Council,CL070886,"394,870.26",Capital grants - Local Government
Department for Education,Core,20/11/2023,Grants Expenditure,Capital Directorate,Bedford Borough Council,CL070887,"200,669.64",Capital grants - Local Government
Department for Education,Core,20/11/2023,Grants Expenditure,Capital Directorate,Central Bedfordshire Council,CL070888,"316,830.34",Capital grants - Local Government
Department for Education,Core,20/11/2023,Grants Expenditure,Capital Directorate,Buckinghamshire Council,CL070889,"747,681.62",Capital grants - Local Government
Department for Education,Core,20/11/2023,Grants Expenditure,Capital Directorate,Milton Keynes Council,CL070890,"309,121.20",Capital grants - Local Government
Department for Education,Core,20/11/2023,Grants Expenditure,Capital Directorate,Derbyshire County Council,CL070891,"1,049,435.00",Capital grants - Local Government
Department for Education,Core,20/11/2023,Grants Expenditure,Capital Directorate,Derby City Council,CL070892,"352,558.43",Capital grants - Local Government
Department for Education,Core,20/11/2023,Grants Expenditure,Capital Directorate,Dorset Council,CL070893,"254,184.68",Capital grants - Local Government
Department for Education,Core,20/11/2023,Grants Expenditure,Capital Directorate,"Bournemouth, Christchurch And Poole Council",CL070894,"148,318.53",Capital grants - Local Government
Department for Education,Core,20/11/2023,Grants Expenditure,Capital Directorate,Durham County Council,CL070895,"719,831.92",Capital grants - Local Government
Department for Education,Core,20/11/2023,Grants Expenditure,Capital Directorate,East Sussex County Council,CL070897,"516,523.34",Capital grants - Local Government
Department for Education,Core,20/11/2023,Grants Expenditure,Capital Directorate,Brighton And Hove City Council,CL070898,"430,138.16",Capital grants - Local Government
Department for Education,Core,20/11/2023,Grants Expenditure,Capital Directorate,Hampshire County Council,CL070899,"2,573,732.01",Capital grants - Local Government
Department for Education,Core,20/11/2023,Grants Expenditure,Capital Directorate,Portsmouth City Council,CL070900,"90,556.21",Capital grants - Local Government
Department for Education,Core,20/11/2023,Grants Expenditure,Capital Directorate,Southampton City Council,CL070901,"313,059.08",Capital grants - Local Government
Department for Education,Core,20/11/2023,Grants Expenditure,Capital Directorate,Leicestershire County Council,CL070902,"422,142.18",Capital grants - Local Government
Department for Education,Core,20/11/2023,Grants Expenditure,Capital Directorate,Leicester City Council,CL070903,"794,247.17",Capital grants - Local Government
Department for Education,Core,20/11/2023,Grants Expenditure,Capital Directorate,Staffordshire County Council,CL070905,"787,653.58",Capital grants - Local Government
Department for Education,Core,20/11/2023,Grants Expenditure,Capital Directorate,Stoke On Trent City Council,CL070906,"38,907.29",Capital grants - Local Government
Department for Education,Core,20/11/2023,Grants Expenditure,Capital Directorate,Wiltshire County Council,CL070907,"267,081.26",Capital grants - Local Government
Department for Education,Core,20/11/2023,Grants Expenditure,Capital Directorate,Swindon Borough Council,CL070908,"69,553.67",Capital grants - Local Government
Department for Education,Core,20/11/2023,Grants Expenditure,Capital Directorate,Bracknell Forest Borough Council,CL070909,"197,241.27",Capital grants - Local Government
Department for Education,Core,20/11/2023,Grants Expenditure,Capital Directorate,Royal Borough Of Windsor And Maidenhead,CL070910,"130,061.43",Capital grants - Local Government
Department for Education,Core,20/11/2023,Grants Expenditure,Capital Directorate,West Berkshire Council,CL070911,"292,900.39",Capital grants - Local Government
Department for Education,Core,20/11/2023,Grants Expenditure,Capital Directorate,Reading Borough Council,CL070912,"179,165.76",Capital grants - Local Government
Department for Education,Core,20/11/2023,Grants Expenditure,Capital Directorate,Slough Borough Council,CL070913,"86,017.84",Capital grants - Local Government
Department for Education,Core,20/11/2023,Grants Expenditure,Capital Directorate,Wokingham Council,CL070914,"241,217.28",Capital grants - Local Government
Department for Education,Core,20/11/2023,Grants Expenditure,Capital Directorate,Cambridgeshire County Council,CL070915,"428,303.43",Capital grants - Local Government
Department for Education,Core,20/11/2023,Grants Expenditure,Capital Directorate,Peterborough City Council,CL070916,"114,260.12",Capital grants - Local Government
Department for Education,Core,20/11/2023,Grants Expenditure,Capital Directorate,Halton Borough Council,CL070917,"83,175.95",Capital grants - Local Government
Department for Education,Core,20/11/2023,Grants Expenditure,Capital Directorate,Warrington Borough Council,CL070918,"107,398.74",Capital grants - Local Government
Department for Education,Core,20/11/2023,Grants Expenditure,Capital Directorate,Devon County Council,CL070919,"388,198.91",Capital grants - Local Government
Department for Education,Core,20/11/2023,Grants Expenditure,Capital Directorate,Plymouth City Council,CL070920,"63,780.36",Capital grants - Local Government
Department for Education,Core,20/11/2023,Grants Expenditure,Capital Directorate,Torbay Council,CL070921,"38,234.01",Capital grants - Local Government
Department for Education,Core,20/11/2023,Grants Expenditure,Capital Directorate,Essex County Council,CL070922,"876,034.71",Capital grants - Local Government
Department for Education,Core,20/11/2023,Grants Expenditure,Capital Directorate,Southend On Sea Borough Council,CL070923,"74,386.80",Capital grants - Local Government
Department for Education,Core,20/11/2023,Grants Expenditure,Capital Directorate,Herefordshire Council,CL070924,"136,477.94",Capital grants - Local Government
Department for Education,Core,20/11/2023,Grants Expenditure,Capital Directorate,Worcestershire County Council,CL070925,"427,292.13",Capital grants - Local Government
Department for Education,Core,20/11/2023,Grants Expenditure,Capital Directorate,Kent County Council,CL070926,"1,643,005.30",Capital grants - Local Government
Department for Education,Core,20/11/2023,Grants Expenditure,Capital Directorate,Medway Council,CL070927,"86,067.56",Capital grants - Local Government
Department for Education,Core,20/11/2023,Grants Expenditure,Capital Directorate,Lancashire County Council,CL070928,"1,687,875.17",Capital grants - Local Government
Department for Education,Core,20/11/2023,Grants Expenditure,Capital Directorate,Blackburn With Darwen Borough Council,CL070929,"146,366.90",Capital grants - Local Government
Department for Education,Core,20/11/2023,Grants Expenditure,Capital Directorate,Blackpool Borough Council,CL070930,"62,578.47",Capital grants - Local Government
Department for Education,Core,20/11/2023,Grants Expenditure,Capital Directorate,Nottinghamshire County Council,CL070931,"1,055,565.65",Capital grants - Local Government
Department for Education,Core,20/11/2023,Grants Expenditure,Capital Directorate,Nottingham City Council,CL070932,"304,845.35",Capital grants - Local Government
Department for Education,Core,20/11/2023,Grants Expenditure,Capital Directorate,Shropshire Council,CL070933,"234,247.86",Capital grants - Local Government
Department for Education,Core,20/11/2023,Grants Expenditure,Capital Directorate,Telford And Wrekin Council,CL070934,"312,241.70",Capital grants - Local Government
Department for Education,Core,20/11/2023,Grants Expenditure,Capital Directorate,Cheshire East Council,CL070935,"213,987.47",Capital grants - Local Government
Department for Education,Core,20/11/2023,Grants Expenditure,Capital Directorate,Cheshire West And Chester Council,CL070936,"549,760.68",Capital grants - Local Government
Department for Education,Core,20/11/2023,Grants Expenditure,Capital Directorate,Cornwall Council,CL070937,"184,242.53",Capital grants - Local Government
Department for Education,Core,20/11/2023,Grants Expenditure,Capital Directorate,Gloucestershire County Council,CL070938,"488,727.77",Capital grants - Local Government
Department for Education,Core,20/11/2023,Grants Expenditure,Capital Directorate,Hertfordshire County Council,CL070939,"1,698,119.49",Capital grants - Local Government
Department for Education,Core,20/11/2023,Grants Expenditure,Capital Directorate,Isle Of Wight Council,CL070940,"241,423.58",Capital grants - Local Government
Department for Education,Core,20/11/2023,Grants Expenditure,Capital Directorate,Lincolnshire County Council,CL070941,"543,125.30",Capital grants - Local Government
Department for Education,Core,20/11/2023,Grants Expenditure,Capital Directorate,Norfolk County Council,CL070942,"542,565.37",Capital grants - Local Government
Department for Education,Core,20/11/2023,Grants Expenditure,Capital Directorate,Northumberland County Council,CL070943,"433,465.77",Capital grants - Local Government
Department for Education,Core,20/11/2023,Grants Expenditure,Capital Directorate,Oxfordshire County Council,CL070944,"503,976.33",Capital grants - Local Government
Department for Education,Core,20/11/2023,Grants Expenditure,Capital Directorate,Somerset County Council,CL070945,"295,958.25",Capital grants - Local Government
Department for Education,Core,20/11/2023,Grants Expenditure,Capital Directorate,Suffolk County Council,CL070946,"418,866.35",Capital grants - Local Government
Department for Education,Core,20/11/2023,Grants Expenditure,Capital Directorate,Surrey County Council,CL070947,"788,535.62",Capital grants - Local Government
Department for Education,Core,20/11/2023,Grants Expenditure,Capital Directorate,Warwickshire County Council,CL070948,"564,709.20",Capital grants - Local Government
Department for Education,Core,20/11/2023,Grants Expenditure,Capital Directorate,West Sussex County Council,CL070949,"977,522.70",Capital grants - Local Government
Department for Education,Core,20/11/2023,Grants Expenditure,Capital Directorate,North Northamptonshire Council,CL070950,"206,059.26",Capital grants - Local Government
Department for Education,Core,20/11/2023,Grants Expenditure,Capital Directorate,West Northamptonshire Council,CL070951,"173,826.47",Capital grants - Local Government
Department for Education,Core,20/11/2023,Grants Expenditure,Capital Directorate,Cumberland Council,CL070955,"347,763.61",Capital grants - Local Government
Department for Education,Core,20/11/2023,Grants Expenditure,Capital Directorate,Westmorland And Furness Council,CL070956,"279,191.42",Capital grants - Local Government
Department for Education,Core,06/11/2023,Grants Expenditure,Capital Directorate,Salford City Council,D-CINV005517,"61,340.00",Capital Grant - Local Government
Department for Education,Core,13/11/2023,Grants Expenditure,Capital Directorate,Lincolnshire County Council,D-CINV005549,"98,492.32",Capital Grant - Local Government
Department for Education,Core,13/11/2023,Grants Expenditure,Capital Directorate,Lincolnshire County Council,D-CINV005550,"86,676.03",Capital Grant - Local Government
Department for Education,Core,27/11/2023,Grants Expenditure,Capital Directorate,Lincolnshire County Council,D-CINV005637,"157,508.39",Capital Grant - Local Government
Department for Education,Core,27/11/2023,Grants Expenditure,Capital Directorate,Southwark London Borough Council,D-CINV005644,"98,699.67",Capital Grant - Local Government
Department for Education,Core,27/11/2023,Grants Expenditure,Capital Directorate,Southwark London Borough Council,D-CINV005645,"27,354.60",Capital Grant - Local Government
Department for Education,Core,27/11/2023,Grants Expenditure,Capital Directorate,Lincolnshire County Council,D-CINV005649,"71,891.70",Capital Grant - Local Government
Department for Education,Core,27/11/2023,Grants Expenditure,Capital Directorate,Newcastle Upon Tyne City Council,D-CINV005650,"125,726.80",Capital Grant - Local Government
Department for Education,Core,17/11/2023,IS/IT,Capital Directorate,Cognizant Worldwide Limited,D-PINV060035,"67,210.26",Systems Development
Department for Education,Core,17/11/2023,IS/IT,Capital Directorate,Cognizant Worldwide Limited,D-PINV060036,"86,469.48",Systems Development
Department for Education,Core,13/11/2023,Grants Income,Capital Directorate,Yorkshire Learning Partnership (Project Co) Ltd,D-PINV060098,"28,718.02",Capital Contribution
Department for Education,Core,28/11/2023,Grants Income,Capital Directorate,Psbp Nw Projectco Limited,D-PINV060271,"40,462.06",Capital Contribution
Department for Education,Core,28/11/2023,Grants Income,Capital Directorate,Hlr Schools Limited,D-PINV059231,"31,790.21",Capital Contribution
Department for Education,Core,28/11/2023,Grants Income,Capital Directorate,Psbp Nw Projectco Limited,D-PINV059304,"106,194.61",Capital Contribution
Department for Education,Core,20/11/2023,Other Goods and Services,Capital Directorate,Bishop'S Hatfield Girls' School,PSFM002495,"-30,759.00",Service element of lease
Department for Education,Core,20/11/2023,Other Goods and Services,Capital Directorate,Goffs Academy,PSFM002496,"-43,110.00",Service element of lease
Department for Education,Core,20/11/2023,Other Goods and Services,Capital Directorate,Kings Langley School,PSFM002497,"-38,508.00",Service element of lease
Department for Education,Core,20/11/2023,Other Goods and Services,Capital Directorate,Longdean School,PSFM002498,"-45,045.00",Service element of lease
Department for Education,Core,20/11/2023,Other Goods and Services,Capital Directorate,Reading Girls' School,PSFM002499,"-34,956.00",Service element of lease
Department for Education,Core,20/11/2023,Other Goods and Services,Capital Directorate,Stopsley High School,PSFM002500,"-40,923.00",Service element of lease
Department for Education,Core,20/11/2023,Other Goods and Services,Capital Directorate,Westfield Academy,PSFM002501,"-45,975.00",Service element of lease
Department for Education,Core,20/11/2023,Other Goods and Services,Capital Directorate,David Nieper Academy,PSFM002502,"-28,914.00",Service element of lease
Department for Education,Core,20/11/2023,Other Goods and Services,Capital Directorate,Ark Kings Academy,PSFM002503,"-27,969.00",Service element of lease
Department for Education,Core,20/11/2023,Other Goods and Services,Capital Directorate,Greenwood Academy,PSFM002504,"-35,853.00",Service element of lease
Department for Education,Core,20/11/2023,Other Goods and Services,Capital Directorate,Plantsbrook School,PSFM002505,"-47,433.00",Service element of lease
Department for Education,Core,20/11/2023,Other Goods and Services,Capital Directorate,President Kennedy School Academy,PSFM002506,"-46,269.00",Service element of lease
Department for Education,Core,20/11/2023,Other Goods and Services,Capital Directorate,Park Vale Academy,PSFM002509,"-29,205.00",Service element of lease
Department for Education,Core,20/11/2023,Other Goods and Services,Capital Directorate,Bedlington Academy,PSFM002510,"-30,108.00",Service element of lease
Department for Education,Core,20/11/2023,Other Goods and Services,Capital Directorate,Hetton Academy,PSFM002512,"-29,751.00",Service element of lease
Department for Education,Core,20/11/2023,Other Goods and Services,Capital Directorate,Laurence Jackson School,PSFM002514,"-41,328.00",Service element of lease
Department for Education,Core,20/11/2023,Other Goods and Services,Capital Directorate,Neston High School,PSFM002529,"-50,694.00",Service element of lease
Department for Education,Core,20/11/2023,Other Goods and Services,Capital Directorate,South Shore Academy,PSFM002532,"-29,034.00",Service element of lease
Department for Education,Core,20/11/2023,Other Goods and Services,Capital Directorate,Beckfoot Upper Heaton,PSFM002535,"-26,292.00",Service element of lease
Department for Education,Core,20/11/2023,Other Goods and Services,Capital Directorate,Carlton Bolling,PSFM002536,"-47,292.00",Service element of lease
Department for Education,Core,20/11/2023,Other Goods and Services,Capital Directorate,Harrogate High School,PSFM002537,"-29,601.00",Service element of lease
Department for Education,Core,20/11/2023,Other Goods and Services,Capital Directorate,Beckfoot Oakbank,PSFM002538,"-57,711.00",Service element of lease
Department for Education,Core,20/11/2023,Other Goods and Services,Capital Directorate,Dixons Cottingley Academy,PSFM002539,"-36,258.00",Service element of lease
Department for Education,Core,20/11/2023,Other Goods and Services,Capital Directorate,"Whitcliffe Mount, A Share Academy",PSFM002540,"-37,884.00",Service element of lease
Department for Education,Core,20/11/2023,Other Goods and Services,Capital Directorate,Harrogate High School,PSAD004537,"-32,018.10",Service element of lease
Department for Education,Core,20/11/2023,Other Goods and Services,Capital Directorate,Ark Kings Academy,DU00101004,"27,969.00",Service element of lease
Department for Education,Core,20/11/2023,Other Goods and Services,Capital Directorate,Beckfoot Upper Heaton,DU00101012,"26,292.00",Service element of lease
Department for Education,Core,20/11/2023,Other Goods and Services,Capital Directorate,Bishop'S Hatfield Girls' School,DU00101016,"30,759.00",Service element of lease
Department for Education,Core,20/11/2023,Other Goods and Services,Capital Directorate,Greenwood Academy,DU00101026,"35,853.00",Service element of lease
Department for Education,Core,20/11/2023,Other Goods and Services,Capital Directorate,Harrogate High School,DU00101029,"29,601.00",Service element of lease
Department for Education,Core,20/11/2023,Other Goods and Services,Capital Directorate,Harrogate High School,DU00101030,"32,018.10",Service element of lease
Department for Education,Core,20/11/2023,Other Goods and Services,Capital Directorate,Longdean School,DU00101040,"45,045.00",Service element of lease
Department for Education,Core,20/11/2023,Other Goods and Services,Capital Directorate,Neston High School,DU00101044,"50,694.00",Service element of lease
Department for Education,Core,20/11/2023,Other Goods and Services,Capital Directorate,Plantsbrook School,DU00101048,"47,433.00",Service element of lease
Department for Education,Core,20/11/2023,Other Goods and Services,Capital Directorate,South Shore Academy,DU00101058,"29,034.00",Service element of lease
Department for Education,Core,20/11/2023,Other Goods and Services,Capital Directorate,Park Vale Academy,DU00101065,"29,205.00",Service element of lease
Department for Education,Core,20/11/2023,Other Goods and Services,Capital Directorate,Bedlington Academy,DU00101072,"30,108.00",Service element of lease
Department for Education,Core,20/11/2023,Other Goods and Services,Capital Directorate,Carlton Bolling,DU00101078,"47,292.00",Service element of lease
Department for Education,Core,20/11/2023,Other Goods and Services,Capital Directorate,Laurence Jackson School,DU00101082,"41,328.00",Service element of lease
Department for Education,Core,20/11/2023,Other Goods and Services,Capital Directorate,"Whitcliffe Mount, A Share Academy",DU00101095,"37,884.00",Service element of lease
Department for Education,Core,20/11/2023,Other Goods and Services,Capital Directorate,Bishop'S Hatfield Girls' School,PSFM002541,"-30,759.00",Service element of lease
Department for Education,Core,20/11/2023,Other Goods and Services,Capital Directorate,Longdean School,PSFM002544,"-45,045.00",Service element of lease
Department for Education,Core,20/11/2023,Other Goods and Services,Capital Directorate,Ark Kings Academy,PSFM002549,"-27,969.00",Service element of lease
Department for Education,Core,20/11/2023,Other Goods and Services,Capital Directorate,Greenwood Academy,PSFM002550,"-35,853.00",Service element of lease
Department for Education,Core,20/11/2023,Other Goods and Services,Capital Directorate,Plantsbrook School,PSFM002551,"-47,433.00",Service element of lease
Department for Education,Core,20/11/2023,Other Goods and Services,Capital Directorate,Park Vale Academy,PSFM002555,"-29,205.00",Service element of lease
Department for Education,Core,20/11/2023,Other Goods and Services,Capital Directorate,Bedlington Academy,PSFM002556,"-30,108.00",Service element of lease
Department for Education,Core,20/11/2023,Other Goods and Services,Capital Directorate,Laurence Jackson School,PSFM002560,"-41,328.00",Service element of lease
Department for Education,Core,20/11/2023,Other Goods and Services,Capital Directorate,Neston High School,PSFM002575,"-50,694.00",Service element of lease
Department for Education,Core,20/11/2023,Other Goods and Services,Capital Directorate,South Shore Academy,PSFM002578,"-29,034.00",Service element of lease
Department for Education,Core,20/11/2023,Other Goods and Services,Capital Directorate,Beckfoot Upper Heaton,PSFM002581,"-26,292.00",Service element of lease
Department for Education,Core,20/11/2023,Other Goods and Services,Capital Directorate,Carlton Bolling,PSFM002582,"-47,292.00",Service element of lease
Department for Education,Core,20/11/2023,Other Goods and Services,Capital Directorate,Harrogate High School,PSFM002583,"-29,601.00",Service element of lease
Department for Education,Core,20/11/2023,Other Goods and Services,Capital Directorate,"Whitcliffe Mount, A Share Academy",PSFM002586,"-37,884.00",Service element of lease
Department for Education,Core,27/11/2023,Other Goods and Services,Capital Directorate,Psbp Midlands Limited,D-PINV060528,"-27,314.27",Service element of lease
Department for Education,Core,27/11/2023,Other Goods and Services,Capital Directorate,Psbp Midlands Limited,D-PINV060528,"-10,343.19",Service element of lease
Department for Education,Core,27/11/2023,Other Goods and Services,Capital Directorate,Psbp Midlands Limited,D-PINV060528,"4,563.65",Service element of lease
Department for Education,Core,27/11/2023,Other Goods and Services,Capital Directorate,Psbp Midlands Limited,D-PINV060528,"1,294,919.26",Service element of lease
Department for Education,Core,27/11/2023,Other Goods and Services,Capital Directorate,Hlr Schools Limited,D-PINV060526,"-23,192.40",Service element of lease
Department for Education,Core,27/11/2023,Other Goods and Services,Capital Directorate,Hlr Schools Limited,D-PINV060526,"-3,557.99",Service element of lease
Department for Education,Core,27/11/2023,Other Goods and Services,Capital Directorate,Hlr Schools Limited,D-PINV060526,-919.14,Service element of lease
Department for Education,Core,27/11/2023,Other Goods and Services,Capital Directorate,Hlr Schools Limited,D-PINV060526,"4,015.56",Service element of lease
Department for Education,Core,27/11/2023,Other Goods and Services,Capital Directorate,Hlr Schools Limited,D-PINV060526,"4,605.12",Service element of lease
Department for Education,Core,27/11/2023,Other Goods and Services,Capital Directorate,Hlr Schools Limited,D-PINV060526,"1,279,128.55",Service element of lease
Department for Education,Core,27/11/2023,Other Goods and Services,Capital Directorate,Psbp Nw Projectco Limited,D-PINV060529,"-26,819.91",Service element of lease
Department for Education,Core,27/11/2023,Other Goods and Services,Capital Directorate,Psbp Nw Projectco Limited,D-PINV060529,"-6,530.36",Service element of lease
Department for Education,Core,27/11/2023,Other Goods and Services,Capital Directorate,Psbp Nw Projectco Limited,D-PINV060529,"1,805.28",Service element of lease
Department for Education,Core,27/11/2023,Other Goods and Services,Capital Directorate,Psbp Nw Projectco Limited,D-PINV060529,"4,169.20",Service element of lease
Department for Education,Core,27/11/2023,Other Goods and Services,Capital Directorate,Psbp Nw Projectco Limited,D-PINV060529,"1,080,185.05",Service element of lease
Department for Education,Core,27/11/2023,Other Goods and Services,Capital Directorate,Gt Neps Limited,D-PINV060525,"-10,617.26",Service element of lease
Department for Education,Core,27/11/2023,Other Goods and Services,Capital Directorate,Gt Neps Limited,D-PINV060525,-961.12,Service element of lease
Department for Education,Core,27/11/2023,Other Goods and Services,Capital Directorate,Gt Neps Limited,D-PINV060525,656.02,Service element of lease
Department for Education,Core,27/11/2023,Other Goods and Services,Capital Directorate,Gt Neps Limited,D-PINV060525,"3,078.74",Service element of lease
Department for Education,Core,27/11/2023,Other Goods and Services,Capital Directorate,Gt Neps Limited,D-PINV060525,"1,183,339.37",Service element of lease
Department for Education,Core,27/11/2023,Other Goods and Services,Capital Directorate,Yorkshire Learning Partnership (Project Co) Ltd,D-PINV060530,"-6,855.73",Service element of lease
Department for Education,Core,27/11/2023,Other Goods and Services,Capital Directorate,Yorkshire Learning Partnership (Project Co) Ltd,D-PINV060530,201.9,Service element of lease
Department for Education,Core,27/11/2023,Other Goods and Services,Capital Directorate,Yorkshire Learning Partnership (Project Co) Ltd,D-PINV060530,"1,662.31",Service element of lease
Department for Education,Core,27/11/2023,Other Goods and Services,Capital Directorate,Yorkshire Learning Partnership (Project Co) Ltd,D-PINV060530,"1,134,591.02",Service element of lease
Department for Education,Core,20/11/2023,Other Goods and Services,Capital Directorate,Harrogate High School,DU00102733,"32,018.10",Service element of lease
Department for Education,Core,20/11/2023,Other Goods and Services,Capital Directorate,Stopsley High School,DU00102792,"40,923.00",Service element of lease
Department for Education,Core,20/11/2023,Other Goods and Services,Capital Directorate,"Whitcliffe Mount, A Share Academy",DU00102798,"37,884.00",Service element of lease
Department for Education,Core,27/11/2023,Other Goods and Services,Capital Directorate,Psbp Nw Projectco Limited,PSAD004694,"-93,498.04",Service element of lease
Department for Education,Core,10/11/2023,Grants Expenditure,Capital Directorate,Jfs - Unitary Charge Account,D-CINV005551,"337,978.95",Current grants - Local Government
Department for Education,Core,13/11/2023,Grants Expenditure,Capital Directorate,Redcar Pfi,D-CINV005552,"194,251.02",Current grants - Local Government
Department for Education,Core,10/11/2023,Grants Expenditure,Capital Directorate,Rcd Hexham And Newcastle - St Josephs,D-CINV005553,"67,460.83",Current grants - Local Government
Department for Education,Core,17/11/2023,Grants Expenditure,Capital Directorate,Cardinal Heenan School Services Ltd (Jar,D-CINV005579,"84,127.05",Current grants - Local Government
Department for Education,Core,20/11/2023,Grants Expenditure,Capital Directorate,Exeter Diocesan Board Of Finance Church,D-CINV005603,"211,753.42",Current grants - Local Government
Department for Education,Core,22/11/2023,Grants Expenditure,Capital Directorate,Stmc Birmingham Diocese Account,D-CINV005614,"110,292.99",Current grants - Local Government
Department for Education,Core,10/11/2023,Other Goods and Services,Capital Directorate,Rider Levett Bucknall Uk Limited,D-PINV060110,"171,865.36",Professional Services - Property Services
Department for Education,Core,22/11/2023,Other Goods and Services,Capital Directorate,Faithful And Gould,D-PINV060493,"160,818.21",Professional Services - Property Services
Department for Education,Core,30/11/2023,Other Goods and Services,Capital Directorate,Rider Levett Bucknall Uk Limited,D-PINV060719,"148,495.92",Professional Services - Property Services
Department for Education,Core,21/11/2023,Other Goods and Services,Capital Directorate,Valuation Office Agency,D-PINV060463,"645,438.00",Professional Services - Property Services
Department for Education,Core,13/11/2023,Grants Expenditure,Capital Directorate,Algeco Uk Limited,D-PINV060212,"87,211.15",Capital grants - Academy Trust
Department for Education,Core,01/11/2023,Grants Expenditure,Capital Directorate,Quantock Education Trust,D-CINV005516,"59,497.76",Capital grants - Academy Trust
Department for Education,Core,01/11/2023,Grants Expenditure,Capital Directorate,Quantock Education Trust,D-CINV005516,"19,329.87",Current grants - Academy Trust
Department for Education,Core,03/11/2023,Grants Expenditure,Capital Directorate,Galliford Try Building Ltd,D-PINV059872,"72,809.26",Capital grants - Academy Trust
Department for Education,Core,03/11/2023,Grants Expenditure,Capital Directorate,Galliford Try Building Ltd,D-PINV059874,"103,623.67",Capital grants - Academy Trust
Department for Education,Core,03/11/2023,Grants Expenditure,Capital Directorate,Galliford Try Building Ltd,D-PINV059875,"40,169.98",Capital grants - Academy Trust
Department for Education,Core,10/11/2023,Grants Expenditure,Capital Directorate,Monk'S Walk School,D-CINV005537,"26,925.00",Capital grants - Academy Trust
Department for Education,Core,09/11/2023,Grants Expenditure,Capital Directorate,Bowmer And Kirkland Limited,D-PINV060024,"508,615.66",Capital grants - Academy Trust
Department for Education,Core,09/11/2023,Grants Expenditure,Capital Directorate,Faithful And Gould,D-PINV058247,"82,993.20",Capital grants - Academy Trust
Department for Education,Core,13/11/2023,Grants Expenditure,Capital Directorate,Kier Construction Southern,D-PINV060215,"95,462.06",Capital grants - Academy Trust
Department for Education,Core,16/11/2023,Grants Expenditure,Capital Directorate,Bowmer And Kirkland Limited,D-PINV060241,"376,261.28",Capital grants - Academy Trust
Department for Education,Core,14/11/2023,Grants Expenditure,Capital Directorate,Bam Construction Limited,D-PINV060257,"199,634.22",Capital grants - Academy Trust
Department for Education,Core,16/11/2023,Grants Expenditure,Capital Directorate,Portakabin Limited,D-PINV060372,"279,315.32",Capital grants - Academy Trust
Department for Education,Core,21/11/2023,Grants Expenditure,Capital Directorate,Kier Construction Southern,D-PINV060386,"605,821.57",Capital grants - Academy Trust
Department for Education,Core,17/11/2023,Grants Expenditure,Capital Directorate,Portakabin Limited,D-PINV060442,"1,060,627.84",Capital grants - Academy Trust
Department for Education,Core,21/11/2023,Grants Expenditure,Capital Directorate,Faithful And Gould,D-PINV058268,"51,825.60",Capital grants - Academy Trust
Department for Education,Core,22/11/2023,Grants Expenditure,Capital Directorate,Isg Construction Limited,D-PINV060481,"60,007.97",Capital grants - Academy Trust
Department for Education,Core,21/11/2023,Grants Expenditure,Capital Directorate,Bowmer And Kirkland Limited,D-PINV060470,"978,685.63",Capital grants - Academy Trust
Department for Education,Core,23/11/2023,Grants Expenditure,Capital Directorate,Isg Construction Limited,D-PINV060401,"452,930.90",Capital grants - Academy Trust
Department for Education,Core,27/11/2023,Grants Expenditure,Capital Directorate,Wates Construction Limited,D-PINV060573,"510,861.77",Capital grants - Academy Trust
Department for Education,Core,24/11/2023,Grants Expenditure,Capital Directorate,Morgan Sindall Construction And Infrastructure Ltd,D-PINV059785,"135,848.20",Capital grants - Academy Trust
Department for Education,Core,30/11/2023,Grants Expenditure,Capital Directorate,Morgan Sindall Construction And Infrastructure Ltd,D-PINV060624,"2,050,607.78",Capital grants - Academy Trust
Department for Education,Core,30/11/2023,Grants Expenditure,Capital Directorate,Morgan Sindall Construction And Infrastructure Ltd,D-PINV060715,"944,991.53",Capital grants - Academy Trust
Department for Education,Core,02/11/2023,Grants Expenditure,Capital Directorate,Kier Construction Eastern,D-PINV059591,"214,199.10",Capital grants - Academy Trust
Department for Education,Core,02/11/2023,Grants Expenditure,Capital Directorate,Mace Limited,D-PINV059637,"87,535.60",Capital grants - Academy Trust
Department for Education,Core,02/11/2023,Grants Expenditure,Capital Directorate,Wsp Uk Limited,D-PINV059649,"75,631.51",Capital grants - Academy Trust
Department for Education,Core,02/11/2023,Grants Expenditure,Capital Directorate,Faithful And Gould,D-PINV059767,"36,476.57",Capital grants - Academy Trust
Department for Education,Core,03/11/2023,Grants Expenditure,Capital Directorate,Faithful And Gould,D-PINV059778,"48,732.00",Capital grants - Academy Trust
Department for Education,Core,03/11/2023,Grants Expenditure,Capital Directorate,Arcadis Llp,D-PINV059853,"41,735.95",Capital grants - Academy Trust
Department for Education,Core,02/11/2023,Grants Expenditure,Capital Directorate,Mace Limited,D-PINV059267,"57,579.00",Capital grants - Academy Trust
Department for Education,Core,02/11/2023,Grants Expenditure,Capital Directorate,Faithful And Gould,D-PINV057790,"72,140.40",Capital grants - Academy Trust
Department for Education,Core,02/11/2023,Grants Expenditure,Capital Directorate,Wsp Uk Limited,D-PINV057601,"38,903.74",Capital grants - Academy Trust
Department for Education,Core,03/11/2023,Grants Expenditure,Capital Directorate,Mace Limited,D-PINV059775,"33,576.70",Capital grants - Academy Trust
Department for Education,Core,09/11/2023,Grants Expenditure,Capital Directorate,Mott Macdonald Limited,D-PINV059946,"30,254.40",Capital grants - Academy Trust
Department for Education,Core,09/11/2023,Grants Expenditure,Capital Directorate,Mott Macdonald Limited,D-PINV059947,"38,964.00",Capital grants - Academy Trust
Department for Education,Core,09/11/2023,Grants Expenditure,Capital Directorate,Mott Macdonald Limited,D-PINV059943,"28,003.36",Capital grants - Academy Trust
Department for Education,Core,07/11/2023,Grants Expenditure,Capital Directorate,Conlon Construction Ltd,D-PINV059952,"79,257.60",Capital grants - Academy Trust
Department for Education,Core,08/11/2023,Grants Expenditure,Capital Directorate,Tilbury Douglas Construction Limited,D-PINV059964,"219,254.45",Capital grants - Academy Trust
Department for Education,Core,07/11/2023,Grants Expenditure,Capital Directorate,Portakabin Limited,D-PINV059854,"55,660.80",Capital grants - Academy Trust
Department for Education,Core,07/11/2023,Grants Expenditure,Capital Directorate,Portakabin Limited,D-PINV059855,"31,601.31",Capital grants - Academy Trust
Department for Education,Core,07/11/2023,Grants Expenditure,Capital Directorate,Bowmer And Kirkland Limited,D-PINV058427,"400,016.40",Capital grants - Academy Trust
Department for Education,Core,07/11/2023,Grants Expenditure,Capital Directorate,Bowmer And Kirkland Limited,D-PINV058869,"660,873.30",Capital grants - Academy Trust
Department for Education,Core,10/11/2023,Grants Expenditure,Capital Directorate,Faithful And Gould,D-PINV060028,"27,672.00",Capital grants - Academy Trust
Department for Education,Core,22/11/2023,Grants Expenditure,Capital Directorate,Mace Limited,D-PINV060083,"27,292.80",Capital grants - Academy Trust
Department for Education,Core,09/11/2023,Grants Expenditure,Capital Directorate,Willmott Dixon Construction Limited,D-PINV059782,"554,861.38",Capital grants - Academy Trust
Department for Education,Core,10/11/2023,Grants Expenditure,Capital Directorate,Bam Construction Limited,D-PINV060056,"1,080,211.43",Capital grants - Academy Trust
Department for Education,Core,10/11/2023,Grants Expenditure,Capital Directorate,Arcadis Llp,D-PINV060064,"25,769.82",Capital grants - Academy Trust
Department for Education,Core,13/11/2023,Grants Expenditure,Capital Directorate,Mills And Reeve Llp,D-PINV060164,"13,867.88",Capital grants - Academy Trust
Department for Education,Core,13/11/2023,Grants Expenditure,Capital Directorate,Mills And Reeve Llp,D-PINV060164,"57,459.60",Capital Grants - Academy Trusts
Department for Education,Core,10/11/2023,Grants Expenditure,Capital Directorate,Wring Group Ltd,D-PINV059590,"37,212.73",Capital grants - Academy Trust
Department for Education,Core,10/11/2023,Grants Expenditure,Capital Directorate,Mace Limited,D-PINV059620,"25,638.00",Capital grants - Academy Trust
Department for Education,Core,10/11/2023,Grants Expenditure,Capital Directorate,Faithful And Gould,D-PINV055202,"26,941.20",Capital grants - Academy Trust
Department for Education,Core,10/11/2023,Grants Expenditure,Capital Directorate,Faithful And Gould,D-PINV058952,"45,811.92",Capital grants - Academy Trust
Department for Education,Core,13/11/2023,Grants Expenditure,Capital Directorate,Tilbury Douglas Construction Limited,D-PINV060203,"369,929.77",Capital grants - Academy Trust
Department for Education,Core,14/11/2023,Grants Expenditure,Capital Directorate,Galliford Try Building Ltd,D-PINV060125,"409,261.81",Capital grants - Academy Trust
Department for Education,Core,16/11/2023,Grants Expenditure,Capital Directorate,Galliford Try Building Ltd,D-PINV060124,"1,454,044.03",Capital grants - Academy Trust
Department for Education,Core,15/11/2023,Grants Expenditure,Capital Directorate,Galliford Try Building Ltd,D-PINV060123,"288,119.51",Capital grants - Academy Trust
Department for Education,Core,15/11/2023,Grants Expenditure,Capital Directorate,Gleeds Advisory Limited,D-PINV060177,"33,639.00",Capital grants - Academy Trust
Department for Education,Core,16/11/2023,Grants Expenditure,Capital Directorate,Kier Construction Southern,D-PINV060263,"696,571.13",Capital grants - Academy Trust
Department for Education,Core,14/11/2023,Grants Expenditure,Capital Directorate,Kier - Northern,D-PINV060258,"325,784.88",Capital grants - Academy Trust
Department for Education,Core,15/11/2023,Grants Expenditure,Capital Directorate,Bowmer And Kirkland Limited,D-PINV060261,"119,585.23",Capital grants - Academy Trust
Department for Education,Core,14/11/2023,Grants Expenditure,Capital Directorate,Bowmer And Kirkland Limited,D-PINV059746,"456,558.61",Capital grants - Academy Trust
Department for Education,Core,17/11/2023,Grants Expenditure,Capital Directorate,Kier Western And Wales,D-PINV060365,"1,052,777.69",Capital grants - Academy Trust
Department for Education,Core,17/11/2023,Grants Expenditure,Capital Directorate,Kier Construction Scotland,D-PINV060368,"3,341,232.28",Capital grants - Academy Trust
Department for Education,Core,23/11/2023,Grants Expenditure,Capital Directorate,Mace Limited,D-PINV060339,"26,717.23",Capital grants - Academy Trust
Department for Education,Core,16/11/2023,Grants Expenditure,Capital Directorate,Faithful And Gould,D-PCR001386,"-48,672.00",Capital grants - Academy Trust
Department for Education,Core,24/11/2023,Grants Expenditure,Capital Directorate,Morgan Sindall Construction And Infrastructure Ltd,D-PINV060367,"1,988,308.24",Capital grants - Academy Trust
Department for Education,Core,17/11/2023,Grants Expenditure,Capital Directorate,Tilbury Douglas Construction Limited,D-PINV060366,"879,879.01",Capital grants - Academy Trust
Department for Education,Core,17/11/2023,Grants Expenditure,Capital Directorate,Bam Construction Limited,D-PINV060364,"957,619.42",Capital grants - Academy Trust
Department for Education,Core,16/11/2023,Grants Expenditure,Capital Directorate,Baxall Construction Limited,D-PINV060355,"975,764.18",Capital grants - Academy Trust
Department for Education,Core,17/11/2023,Grants Expenditure,Capital Directorate,Wates Construction Limited,D-PINV060373,"626,590.01",Capital grants - Academy Trust
Department for Education,Core,16/11/2023,Grants Expenditure,Capital Directorate,Wring Group Ltd,D-PINV059632,"65,788.43",Capital grants - Academy Trust
Department for Education,Core,16/11/2023,Grants Expenditure,Capital Directorate,Faithful And Gould,D-PINV055280,"53,335.20",Capital grants - Academy Trust
Department for Education,Core,16/11/2023,Grants Expenditure,Capital Directorate,Morgan Sindall Construction And Infrastructure Ltd,D-PINV060381,"1,069,318.39",Capital grants - Academy Trust
Department for Education,Core,22/11/2023,Grants Expenditure,Capital Directorate,Bam Construction Limited,D-PINV060374,"1,933,372.85",Capital grants - Academy Trust
Department for Education,Core,17/11/2023,Grants Expenditure,Capital Directorate,Kier Construction Eastern,D-PINV060416,"673,839.34",Capital grants - Academy Trust
Department for Education,Core,21/11/2023,Grants Expenditure,Capital Directorate,Tilbury Douglas Construction Limited,D-PINV060392,"176,691.97",Capital grants - Academy Trust
Department for Education,Core,17/11/2023,Grants Expenditure,Capital Directorate,Tilbury Douglas Construction Limited,D-PINV060393,"136,903.20",Capital grants - Academy Trust
Department for Education,Core,17/11/2023,Grants Expenditure,Capital Directorate,Tilbury Douglas Construction Limited,D-PINV060385,"762,268.66",Capital grants - Academy Trust
Department for Education,Core,17/11/2023,Grants Expenditure,Capital Directorate,Bam Construction Limited,D-PINV060390,"1,337,134.75",Capital grants - Academy Trust
Department for Education,Core,21/11/2023,Grants Expenditure,Capital Directorate,Baxall Construction Limited,D-PINV060387,"149,811.95",Capital grants - Academy Trust
Department for Education,Core,17/11/2023,Grants Expenditure,Capital Directorate,Reds10 Uk Limited,D-PINV060389,"275,831.33",Capital grants - Academy Trust
Department for Education,Core,17/11/2023,Grants Expenditure,Capital Directorate,Computer Systems In Education Limited,D-PINV060395,"81,866.94",Capital grants - Academy Trust
Department for Education,Core,17/11/2023,Grants Expenditure,Capital Directorate,Bowmer And Kirkland Limited,D-PINV060440,"724,038.58",Capital grants - Academy Trust
Department for Education,Core,23/11/2023,Grants Expenditure,Capital Directorate,Computeam Limited,D-PINV060451,"46,901.20",Capital grants - Academy Trust
Department for Education,Core,21/11/2023,Grants Expenditure,Capital Directorate,Mott Macdonald Limited,D-PINV058020,"27,155.94",Capital grants - Academy Trust
Department for Education,Core,21/11/2023,Grants Expenditure,Capital Directorate,Wates Construction Limited,D-PINV060459,"778,512.00",Capital grants - Academy Trust
Department for Education,Core,21/11/2023,Grants Expenditure,Capital Directorate,Galliford Try Building Ltd,D-PINV060472,"212,632.37",Capital grants - Academy Trust
Department for Education,Core,23/11/2023,Grants Expenditure,Capital Directorate,Galliford Try Building Ltd,D-PINV060482,"181,330.55",Capital grants - Academy Trust
Department for Education,Core,21/11/2023,Grants Expenditure,Capital Directorate,Bam Construction Limited,D-PINV060466,"120,241.20",Capital grants - Academy Trust
Department for Education,Core,22/11/2023,Grants Expenditure,Capital Directorate,Bowmer And Kirkland Limited,D-PINV060483,"1,807,426.91",Capital grants - Academy Trust
Department for Education,Core,22/11/2023,Grants Expenditure,Capital Directorate,Mace Limited,D-PINV060152,"32,932.85",Capital grants - Academy Trust
Department for Education,Core,22/11/2023,Grants Expenditure,Capital Directorate,Mace Limited,D-PINV060082,"27,847.20",Capital grants - Academy Trust
Department for Education,Core,22/11/2023,Grants Expenditure,Capital Directorate,Mace Limited,D-PINV060155,"56,760.00",Capital grants - Academy Trust
Department for Education,Core,27/11/2023,Grants Expenditure,Capital Directorate,Wsp Uk Limited,D-PINV060585,"74,056.38",Capital grants - Academy Trust
Department for Education,Core,23/11/2023,Grants Expenditure,Capital Directorate,Mott Macdonald Limited,D-PINV060352,"29,173.20",Capital grants - Academy Trust
Department for Education,Core,23/11/2023,Grants Expenditure,Capital Directorate,Kier Western And Wales,D-PINV060369,"1,316,816.14",Capital grants - Academy Trust
Department for Education,Core,23/11/2023,Grants Expenditure,Capital Directorate,Wates Construction Limited,D-PINV060492,"265,443.11",Capital grants - Academy Trust
Department for Education,Core,24/11/2023,Grants Expenditure,Capital Directorate,Wates Construction Limited,D-PINV060560,"1,856,641.93",Capital grants - Academy Trust
Department for Education,Core,23/11/2023,Grants Expenditure,Capital Directorate,Mace Limited,D-PINV060412,"31,287.90",Capital grants - Academy Trust
Department for Education,Core,24/11/2023,Grants Expenditure,Capital Directorate,Tilbury Douglas Construction Limited,D-PINV060559,"30,537.35",Capital grants - Academy Trust
Department for Education,Core,23/11/2023,Grants Expenditure,Capital Directorate,Galliford Try Building Ltd,D-PINV060536,"2,799,882.25",Capital grants - Academy Trust
Department for Education,Core,27/11/2023,Grants Expenditure,Capital Directorate,Wsp Uk Limited,D-PINV060583,"44,142.49",Capital grants - Academy Trust
Department for Education,Core,27/11/2023,Grants Expenditure,Capital Directorate,Wsp Uk Limited,D-PINV060578,"51,481.73",Capital grants - Academy Trust
Department for Education,Core,24/11/2023,Grants Expenditure,Capital Directorate,Wsp Uk Limited,D-PINV060566,"36,646.85",Capital grants - Academy Trust
Department for Education,Core,23/11/2023,Grants Expenditure,Capital Directorate,Baxall Construction Limited,D-PINV060384,"75,962.00",Capital grants - Academy Trust
Department for Education,Core,23/11/2023,Grants Expenditure,Capital Directorate,Bowmer And Kirkland Limited,D-PINV060535,"606,619.06",Capital grants - Academy Trust
Department for Education,Core,23/11/2023,Grants Expenditure,Capital Directorate,Bowmer And Kirkland Limited,D-PINV060485,"395,858.05",Capital grants - Academy Trust
Department for Education,Core,28/11/2023,Grants Expenditure,Capital Directorate,Kier Construction Eastern,D-PINV060568,"2,425,223.27",Capital grants - Academy Trust
Department for Education,Core,29/11/2023,Grants Expenditure,Capital Directorate,Wsp Uk Limited,D-PINV060642,"35,110.42",Capital grants - Academy Trust
Department for Education,Core,30/11/2023,Grants Expenditure,Capital Directorate,Wates Construction Limited,D-PINV060630,"94,725.30",Capital grants - Academy Trust
Department for Education,Core,27/11/2023,Grants Expenditure,Capital Directorate,Mace Limited,D-PINV060116,"29,036.65",Capital grants - Academy Trust
Department for Education,Core,29/11/2023,Grants Expenditure,Capital Directorate,Bam Construction Limited,D-PINV060619,"656,237.63",Capital grants - Academy Trust
Department for Education,Core,28/11/2023,Grants Expenditure,Capital Directorate,Bowmer And Kirkland Limited,D-PINV060632,"225,071.23",Capital grants - Academy Trust
Department for Education,Core,30/11/2023,Grants Expenditure,Capital Directorate,Kier Construction Scotland,D-PINV060652,"492,051.25",Capital grants - Academy Trust
Department for Education,Core,30/11/2023,Grants Expenditure,Capital Directorate,Tilbury Douglas Construction Limited,D-PINV060676,"325,335.64",Capital grants - Academy Trust
Department for Education,Core,29/11/2023,Grants Expenditure,Capital Directorate,Galliford Try Building Ltd,D-PINV060711,"336,727.36",Capital grants - Academy Trust
Department for Education,Core,28/11/2023,Grants Expenditure,Capital Directorate,Dac Beachcroft Llp (Client Account),D-PCR001400,"-43,175.00",Capital grants - Academy Trust
Department for Education,Core,20/11/2023,Grants Expenditure,Capital Directorate,Barking And Dagenham London Borough Council,CL070952,"1,300,018.80",Capital grants - Local Government
Department for Education,Core,20/11/2023,Grants Expenditure,Capital Directorate,North Somerset Council,CL070957,"74,703.78",Capital grants - Local Government
Department for Education,Core,20/11/2023,Grants Expenditure,Capital Directorate,Medway Council,CL070958,"781,110.00",Capital grants - Local Government
Department for Education,Core,20/11/2023,Grants Expenditure,Capital Directorate,Manchester City Council,CL070959,"505,253.73",Capital grants - Local Government
Department for Education,Core,30/11/2023,Grants Expenditure,Capital Directorate,London Borough Of Tower Hamlets,DU00103009,"37,286,223.19",Capital grants - Local Government
Department for Education,Core,28/11/2023,Grants Expenditure,Capital Directorate,Transport For London Surface Transport,D-PINV059067,"203,712.73",Capital grants - Academy Trust
Department for Education,Core,03/11/2023,Grant Expenditure,Capital Directorate,Lancaster University School Of Mathematics,D-CINV005388,"6,001.31",Capital grants - Academy Trust
Department for Education,Core,03/11/2023,Grants Expenditure,Capital Directorate,Lancaster University School Of Mathematics,D-CINV005388,"30,006.54",Capital grants - Academy Trust
Department for Education,Core,02/11/2023,Grants Expenditure,Capital Directorate,Isg Construction Limited,D-PINV059401,"824,422.10",Capital grants - Academy Trust
Department for Education,Core,02/11/2023,Grants Expenditure,Capital Directorate,Randr Contracts-Renovation And Refurbishment Specialists Limited,D-PINV059532,"147,261.30",Capital grants - Academy Trust
Department for Education,Core,02/11/2023,Grants Expenditure,Capital Directorate,Galliford Try Building Ltd,D-PINV059589,"505,778.24",Capital grants - Academy Trust
Department for Education,Core,01/11/2023,Grant Expenditure,Capital Directorate,Star Academies,D-CINV005430,"40,039.02",Capital grants - Academy Trust
Department for Education,Core,01/11/2023,Grants Expenditure,Capital Directorate,Star Academies,D-CINV005430,"200,195.09",Capital grants - Academy Trust
Department for Education,Core,03/11/2023,Grants Expenditure,Capital Directorate,Morgan Sindall Construction And Infrastructure Ltd,D-PINV059737,"323,071.87",Capital grants - Academy Trust
Department for Education,Core,03/11/2023,Grants Expenditure,Capital Directorate,Kier Construction Eastern,D-PINV059748,"775,716.05",Capital grants - Academy Trust
Department for Education,Core,02/11/2023,Grants Expenditure,Capital Directorate,Wates Construction Limited,D-PINV059761,"52,818.80",Capital grants - Academy Trust
Department for Education,Core,01/11/2023,Grants Expenditure,Capital Directorate,The Beckmead Trust,D-CINV005496,"34,306.92",Capital grants - Academy Trust
Department for Education,Core,03/11/2023,Grants Expenditure,Capital Directorate,Kier Construction Southern,D-PINV059783,"1,600,225.33",Capital grants - Academy Trust
Department for Education,Core,03/11/2023,Grants Expenditure,Capital Directorate,Tilbury Douglas Construction Limited,D-PINV059784,"293,183.10",Capital grants - Academy Trust
Department for Education,Core,01/11/2023,Grants Expenditure,Capital Directorate,Gleeds Advisory Limited,D-PINV059833,"27,796.72",Capital grants - Academy Trust
Department for Education,Core,03/11/2023,Grants Expenditure,Capital Directorate,Wellspring Academy Trust,D-CINV005511,"78,834.00",Capital grants - Academy Trust
Department for Education,Core,03/11/2023,Grants Expenditure,Capital Directorate,Isg Construction Limited,D-PINV059889,"435,043.03",Capital grants - Academy Trust
Department for Education,Core,01/11/2023,Grant Expenditure,Capital Directorate,The Heights Primary School,D-CINV003739,"7,252.36",Capital grants - Academy Trust
Department for Education,Core,01/11/2023,Grants Expenditure,Capital Directorate,The Heights Primary School,D-CINV003739,"36,261.82",Capital grants - Academy Trust
Department for Education,Core,03/11/2023,Grant Expenditure,Capital Directorate,The Pilgrim Multi Academy Trust,D-CINV005526,"4,656.95",Capital grants - Academy Trust
Department for Education,Core,03/11/2023,Grants Expenditure,Capital Directorate,The Pilgrim Multi Academy Trust,D-CINV005526,"23,284.77",Capital grants - Academy Trust
Department for Education,Core,03/11/2023,Grant Expenditure,Capital Directorate,The Delta Education Trust,D-CINV005527,"6,222.00",Capital grants - Academy Trust
Department for Education,Core,03/11/2023,Grants Expenditure,Capital Directorate,The Delta Education Trust,D-CINV005527,"39,055.00",Capital grants - Academy Trust
Department for Education,Core,06/11/2023,Grants Expenditure,Capital Directorate,Mace Limited,D-PINV059928,"49,002.14",Capital grants - Academy Trust
Department for Education,Core,21/11/2023,Grants Expenditure,Capital Directorate,Ove Arup And Partners Limited,D-PINV059950,"39,600.00",Capital grants - Academy Trust
Department for Education,Core,06/11/2023,Grants Expenditure,Capital Directorate,Isg Construction Limited,D-PINV059860,"398,927.90",Capital grants - Academy Trust
Department for Education,Core,08/11/2023,Grants Expenditure,Capital Directorate,Morgan Sindall Construction And Infrastructure Ltd,D-PINV059972,"90,098.10",Capital grants - Academy Trust
Department for Education,Core,08/11/2023,Grants Expenditure,Capital Directorate,Vinci Construction Uk Limited,D-PINV059965,"944,505.64",Capital grants - Academy Trust
Department for Education,Core,14/11/2023,Grants Expenditure,Capital Directorate,T And B (Contractors) Limited,D-PINV059971,"658,482.79",Capital grants - Academy Trust
Department for Education,Core,15/11/2023,Grants Expenditure,Capital Directorate,Algeco Uk Limited,D-PINV059978,"1,873,587.31",Capital grants - Academy Trust
Department for Education,Core,13/11/2023,Grants Expenditure,Capital Directorate,Reds10 Uk Limited,D-PINV059977,"250,484.83",Capital grants - Academy Trust
Department for Education,Core,07/11/2023,Grants Expenditure,Capital Directorate,Ove Arup And Partners Limited,D-PINV059963,"43,080.00",Capital grants - Academy Trust
Department for Education,Core,07/11/2023,Grants Expenditure,Capital Directorate,Bowmer And Kirkland Limited,D-PINV059890,"2,946,014.10",Capital grants - Academy Trust
Department for Education,Core,08/11/2023,Grants Expenditure,Capital Directorate,Mace Limited,D-PINV059958,"44,388.00",Capital grants - Academy Trust
Department for Education,Core,09/11/2023,Grants Expenditure,Capital Directorate,Morgan Sindall Construction And Infrastructure Ltd,D-PINV060054,"1,416,499.98",Capital grants - Academy Trust
Department for Education,Core,08/11/2023,Grants Expenditure,Capital Directorate,Spatial Initiative Ltd,D-PINV059688,"51,807.80",Capital grants - Academy Trust
Department for Education,Core,08/11/2023,Grants Expenditure,Capital Directorate,Bowmer And Kirkland Limited,D-PINV059364,"303,074.08",Capital grants - Academy Trust
Department for Education,Core,10/11/2023,Grants Expenditure,Capital Directorate,Randr Contracts-Renovation And Refurbishment Specialists Limited,D-PINV060062,"26,448.28",Capital grants - Academy Trust
Department for Education,Core,14/11/2023,Grants Expenditure,Capital Directorate,Galliford Try Building Ltd,D-PINV060090,"711,779.08",Capital grants - Academy Trust
Department for Education,Core,09/11/2023,Grants Expenditure,Capital Directorate,Reds10 Uk Limited,D-PINV059825,"792,698.71",Capital grants - Academy Trust
Department for Education,Core,09/11/2023,Grants Expenditure,Capital Directorate,Jacobs Uk Ltd,D-PINV059901,"26,434.66",Capital grants - Academy Trust
Department for Education,Core,09/11/2023,Grants Expenditure,Capital Directorate,Diamond Build Plc,D-PINV060059,"577,425.35",Capital grants - Academy Trust
Department for Education,Core,09/11/2023,Grants Expenditure,Capital Directorate,Isg Construction Limited,D-PINV059861,"175,033.79",Capital grants - Academy Trust
Department for Education,Core,09/11/2023,Grants Expenditure,Capital Directorate,Isg Construction Limited,D-PINV060060,"1,134,363.23",Capital grants - Academy Trust
Department for Education,Core,09/11/2023,Grants Expenditure,Capital Directorate,Bowmer And Kirkland Limited,D-PINV060057,"820,694.94",Capital grants - Academy Trust
Department for Education,Core,09/11/2023,Grants Expenditure,Capital Directorate,Bowmer And Kirkland Limited,D-PINV060058,"2,485,281.01",Capital grants - Academy Trust
Department for Education,Core,21/11/2023,Grants Expenditure,Capital Directorate,Kier Construction Southern,D-PINV060122,"339,868.69",Capital grants - Academy Trust
Department for Education,Core,13/11/2023,Grants Expenditure,Capital Directorate,Tilbury Douglas Construction Limited,D-PCR001377,"-227,973.60",Capital grants - Academy Trust
Department for Education,Core,16/11/2023,Grants Expenditure,Capital Directorate,Countryside Properties (Uk) Ltd,D-PINV060211,"310,506.00",Capital grants - Academy Trust
Department for Education,Core,16/11/2023,Grants Expenditure,Capital Directorate,Countryside Properties (Uk) Ltd,D-PINV060210,"465,277.70",Capital grants - Academy Trust
Department for Education,Core,13/11/2023,Grants Expenditure,Capital Directorate,Ridge Partnership,D-PCR001378,"-35,329.66",Capital grants - Academy Trust
Department for Education,Core,10/11/2023,Grants Expenditure,Capital Directorate,Isg Construction Limited,D-PINV060199,"261,776.63",Capital grants - Academy Trust
Department for Education,Core,10/11/2023,Grant Expenditure,Capital Directorate,Wembley Multi Academy Trust ,D-CINV005561,"27,941.31",Capital grants - Academy Trust
Department for Education,Core,10/11/2023,Grants Expenditure,Capital Directorate,Wembley Multi Academy Trust ,D-CINV005561,"139,706.55",Capital grants - Academy Trust
Department for Education,Core,17/11/2023,Grant Expenditure,Capital Directorate,Star Academies,D-CINV005563,"4,945.53",Capital grants - Academy Trust
Department for Education,Core,17/11/2023,Grants Expenditure,Capital Directorate,Star Academies,D-CINV005563,"24,727.63",Capital grants - Academy Trust
Department for Education,Core,15/11/2023,Grants Expenditure,Capital Directorate,Gleeds Management Services Limited,D-PINV060194,"39,288.56",Capital grants - Academy Trust
Department for Education,Core,15/11/2023,Grants Expenditure,Capital Directorate,Morgan Sindall Construction And Infrastructure Ltd,D-PINV060253,"225,388.25",Capital grants - Academy Trust
Department for Education,Core,13/11/2023,Grants Expenditure,Capital Directorate,Isg Construction Limited,D-PINV060230,"1,129,685.46",Capital grants - Academy Trust
Department for Education,Core,15/11/2023,Grant Expenditure,Capital Directorate,Aspirations Academies Trust,D-CINV005570,"4,270.34",Capital grants - Academy Trust
Department for Education,Core,15/11/2023,Grants Expenditure,Capital Directorate,Aspirations Academies Trust,D-CINV005570,"21,351.69",Capital grants - Academy Trust
Department for Education,Core,17/11/2023,Grants Expenditure,Capital Directorate,Bowmer And Kirkland Limited,D-PINV060252,"867,807.17",Capital grants - Academy Trust
Department for Education,Core,15/11/2023,Grants Expenditure,Capital Directorate,Kier London,D-PINV060262,"700,537.38",Capital grants - Academy Trust
Department for Education,Core,15/11/2023,Grants Expenditure,Capital Directorate,Tilbury Douglas Construction Limited,D-PINV060276,"747,587.60",Capital grants - Academy Trust
Department for Education,Core,15/11/2023,Grants Expenditure,Capital Directorate,Galliford Try Building Ltd,D-PINV060260,"27,691.09",Capital grants - Academy Trust
Department for Education,Core,17/11/2023,Grants Expenditure,Capital Directorate,Algeco Uk Limited,D-PINV060313,"367,393.14",Capital grants - Academy Trust
Department for Education,Core,15/11/2023,Grants Expenditure,Capital Directorate,Reds10 Uk Limited,D-PINV060259,"1,215,474.53",Capital grants - Academy Trust
Department for Education,Core,17/11/2023,Grants Expenditure,Capital Directorate,Bonsers Restoration Limited,D-PINV060256,"45,600.00",Capital grants - Academy Trust
Department for Education,Core,13/11/2023,Grants Expenditure,Capital Directorate,Victoria Academies Trust,D-CINV005429,"86,878.92",Capital grants - Academy Trust
Department for Education,Core,13/11/2023,Grant Expenditure,Capital Directorate,The Mead Educational Trust,D-CINV005501,"66,937.51",Capital grants - Academy Trust
Department for Education,Core,13/11/2023,Grants Expenditure,Capital Directorate,The Mead Educational Trust,D-CINV005501,"334,687.53",Capital grants - Academy Trust
Department for Education,Core,28/11/2023,Grants Expenditure,Capital Directorate,Bowmer And Kirkland Limited,D-PINV060270,"1,090,427.17",Capital grants - Academy Trust
Department for Education,Core,15/11/2023,Grants Expenditure,Capital Directorate,Cushman And Wakefield Debenham Tie Leung Limited,D-PINV060320,"215,847.51",Capital grants - Academy Trust
Department for Education,Core,16/11/2023,Grants Expenditure,Capital Directorate,Tilbury Douglas Construction Limited,D-PINV060323,"956,458.78",Capital grants - Academy Trust
Department for Education,Core,17/11/2023,Grants Expenditure,Capital Directorate,Isg Construction Limited,D-PINV060319,"174,201.53",Capital grants - Academy Trust
Department for Education,Core,16/11/2023,Grants Expenditure,Capital Directorate,Bowmer And Kirkland Limited,D-PINV060316,"969,836.50",Capital grants - Academy Trust
Department for Education,Core,16/11/2023,Grants Expenditure,Capital Directorate,Bowmer And Kirkland Limited,D-PINV060324,"1,344,295.26",Capital grants - Academy Trust
Department for Education,Core,15/11/2023,Grants Expenditure,Capital Directorate,Turner And Townsend,D-PINV060362,"74,616.12",Capital grants - Academy Trust
Department for Education,Core,17/11/2023,Grants Expenditure,Capital Directorate,Kier London,D-PINV060371,"501,279.80",Capital grants - Academy Trust
Department for Education,Core,17/11/2023,Grants Expenditure,Capital Directorate,Randr Contracts-Renovation And Refurbishment Specialists Limited,D-PINV060382,"130,000.09",Capital grants - Academy Trust
Department for Education,Core,17/11/2023,Grants Expenditure,Capital Directorate,Mcavoy Modular Offsite Limited,D-PINV060370,"4,768,268.50",Capital grants - Academy Trust
Department for Education,Core,17/11/2023,Grants Expenditure,Capital Directorate,Isg Construction Limited,D-PINV060375,"513,898.27",Capital grants - Academy Trust
Department for Education,Core,15/11/2023,Grants Expenditure,Capital Directorate,Nishkam School West London,D-CINV005169,"26,586.88",Capital grants - Academy Trust
Department for Education,Core,24/11/2023,Grants Expenditure,Capital Directorate,Willmott Dixon Construction Limited,D-PINV060437,"558,161.28",Capital grants - Academy Trust
Department for Education,Core,17/11/2023,Grants Expenditure,Capital Directorate,Wates Construction Limited,D-PINV060376,"257,513.08",Capital grants - Academy Trust
Department for Education,Core,24/11/2023,Grants Expenditure,Capital Directorate,Morgan Sindall Construction And Infrastructure Ltd,D-PINV060439,"2,164,692.98",Capital grants - Academy Trust
Department for Education,Core,17/11/2023,Grants Expenditure,Capital Directorate,Tilbury Douglas Construction Limited,D-PINV060419,"681,102.77",Capital grants - Academy Trust
Department for Education,Core,20/11/2023,Grant Expenditure,Capital Directorate,Star Academies,D-CINV005583,"72,133.91",Capital grants - Academy Trust
Department for Education,Core,20/11/2023,Grants Expenditure,Capital Directorate,Star Academies,D-CINV005583,"360,669.53",Capital grants - Academy Trust
Department for Education,Core,17/11/2023,Grants Expenditure,Capital Directorate,Dac Beachcroft Llp (Client Account),D-PINV060399,"40,000.00",Capital grants - Academy Trust
Department for Education,Core,27/11/2023,Grants Expenditure,Capital Directorate,Bowmer And Kirkland Limited,D-PINV060388,"1,158,630.72",Capital grants - Academy Trust
Department for Education,Core,17/11/2023,Grants Expenditure,Capital Directorate,Bowmer And Kirkland Limited,D-PINV060426,"838,502.10",Capital grants - Academy Trust
Department for Education,Core,17/11/2023,Grants Expenditure,Capital Directorate,Bowmer And Kirkland Limited,D-PINV060418,"230,540.54",Capital grants - Academy Trust
Department for Education,Core,24/11/2023,Grants Expenditure,Capital Directorate,Kier Construction Southern,D-PINV060484,"176,899.57",Capital grants - Academy Trust
Department for Education,Core,23/11/2023,Grants Expenditure,Capital Directorate,Kier Construction Southern,D-PINV060479,"186,156.91",Capital grants - Academy Trust
Department for Education,Core,21/11/2023,Grants Expenditure,Capital Directorate,Mace Limited,D-PINV060410,"46,222.10",Capital grants - Academy Trust
Department for Education,Core,21/11/2023,Grants Expenditure,Capital Directorate,Mace Limited,D-PINV060409,"44,265.32",Capital grants - Academy Trust
Department for Education,Core,22/11/2023,Grants Expenditure,Capital Directorate,Tilbury Douglas Construction Limited,D-PINV060474,"820,952.22",Capital grants - Academy Trust
Department for Education,Core,22/11/2023,Grants Expenditure,Capital Directorate,Bam Construction Limited,D-PINV060473,"414,666.49",Capital grants - Academy Trust
Department for Education,Core,23/11/2023,Grants Expenditure,Capital Directorate,Reds10 Uk Limited,D-PINV060487,"673,775.44",Capital grants - Academy Trust
Department for Education,Core,23/11/2023,Grants Expenditure,Capital Directorate,Portakabin Limited,D-PINV060475,"541,440.39",Capital grants - Academy Trust
Department for Education,Core,22/11/2023,Grants Expenditure,Capital Directorate,Portakabin Limited,D-PINV060476,"1,835,874.99",Capital grants - Academy Trust
Department for Education,Core,22/11/2023,Grants Expenditure,Capital Directorate,Spatial Initiative Ltd,D-PINV060489,"201,259.96",Capital grants - Academy Trust
Department for Education,Core,22/11/2023,Grant Expenditure,Capital Directorate,Alpha Trust,D-CINV005617,"9,187.10",Capital grants - Academy Trust
Department for Education,Core,22/11/2023,Grants Expenditure,Capital Directorate,Alpha Trust,D-CINV005617,"45,935.50",Capital grants - Academy Trust
Department for Education,Core,22/11/2023,Grant Expenditure,Capital Directorate,Star Academies,D-CINV005621,"20,023.80",Capital grants - Academy Trust
Department for Education,Core,22/11/2023,Grants Expenditure,Capital Directorate,Star Academies,D-CINV005621,"100,119.00",Capital grants - Academy Trust
Department for Education,Core,22/11/2023,Grants Expenditure,Capital Directorate,Bowmer And Kirkland Limited,D-PINV060488,"741,855.52",Capital grants - Academy Trust
Department for Education,Core,22/11/2023,Grants Expenditure,Capital Directorate,Bowmer And Kirkland Limited,D-PINV060490,"2,417,040.00",Capital grants - Academy Trust
Department for Education,Core,27/11/2023,Grants Expenditure,Capital Directorate,Kier London,D-PINV060523,"1,118,194.52",Capital grants - Academy Trust
Department for Education,Core,24/11/2023,Grants Expenditure,Capital Directorate,Morgan Sindall Construction And Infrastructure Ltd,D-PINV060556,"545,642.56",Capital grants - Academy Trust
Department for Education,Core,27/11/2023,Grants Expenditure,Capital Directorate,Isg Construction Limited,D-PINV060534,"1,459,052.39",Capital grants - Academy Trust
Department for Education,Core,24/11/2023,Grant Expenditure,Capital Directorate,Barton Court Grammar School,D-CINV005623,"17,208.25",Capital grants - Academy Trust
Department for Education,Core,24/11/2023,Grants Expenditure,Capital Directorate,Barton Court Grammar School,D-CINV005623,"86,041.25",Capital grants - Academy Trust
Department for Education,Core,23/11/2023,Grants Expenditure,Capital Directorate,Bowmer And Kirkland Limited,D-PINV060531,"86,831.21",Capital grants - Academy Trust
Department for Education,Core,23/11/2023,Grants Expenditure,Capital Directorate,Mott Macdonald Limited,D-PINV060468,"48,433.06",Capital grants - Academy Trust
Department for Education,Core,23/11/2023,Grants Expenditure,Capital Directorate,Kier - Northern,D-PINV060527,"223,091.27",Capital grants - Academy Trust
Department for Education,Core,23/11/2023,Grants Expenditure,Capital Directorate,Mace Limited,D-PINV060413,"48,167.72",Capital grants - Academy Trust
Department for Education,Core,23/11/2023,Grants Expenditure,Capital Directorate,Faithful And Gould,D-PINV060317,"75,775.68",Capital grants - Academy Trust
Department for Education,Core,23/11/2023,Grants Expenditure,Capital Directorate,Galliford Try Building Ltd,D-PINV060532,"510,455.86",Capital grants - Academy Trust
Department for Education,Core,23/11/2023,Grants Expenditure,Capital Directorate,Khosla Investments Limited,D-PINV060539,"42,500.00",Current grants - Academy Trust
Department for Education,Core,27/11/2023,Grants Expenditure,Capital Directorate,Bowmer And Kirkland Limited,D-PINV060564,"1,242,168.92",Capital grants - Academy Trust
Department for Education,Core,23/11/2023,Grants Expenditure,Capital Directorate,Turner And Townsend,D-PINV060345,"39,854.06",Capital grants - Academy Trust
Department for Education,Core,28/11/2023,Grants Expenditure,Capital Directorate,Kier Construction Eastern,D-PINV060631,"540,760.75",Capital grants - Academy Trust
Department for Education,Core,29/11/2023,Grants Expenditure,Capital Directorate,Morgan Sindall Construction And Infrastructure Ltd,D-PINV060600,"1,038,883.36",Capital grants - Academy Trust
Department for Education,Core,29/11/2023,Grants Expenditure,Capital Directorate,Aecom (Was Davis Langdon Llp),D-PINV060602,"57,415.50",Capital grants - Academy Trust
Department for Education,Core,29/11/2023,Grants Expenditure,Capital Directorate,Wsp Uk Limited,D-PINV060641,"36,841.90",Capital grants - Academy Trust
Department for Education,Core,28/11/2023,Grants Expenditure,Capital Directorate,Mcavoy Modular Offsite Limited,D-PINV060644,"93,491.40",Capital grants - Academy Trust
Department for Education,Core,27/11/2023,Grants Expenditure,Capital Directorate,Spatial Initiative Ltd,D-PINV059397,"136,680.32",Capital grants - Academy Trust
Department for Education,Core,27/11/2023,Grants Expenditure,Capital Directorate,Womble Bond Dickinson (Uk) Llp (Client Account) ,D-PINV060615,"25,000.00",Capital grants - Academy Trust
Department for Education,Core,30/11/2023,Grants Expenditure,Capital Directorate,Bam Construction Limited,D-PINV060716,"659,775.00",Capital grants - Academy Trust
Department for Education,Core,30/11/2023,Grants Expenditure,Capital Directorate,Bam Construction Limited,D-PINV060714,"636,757.04",Capital grants - Academy Trust
Department for Education,Core,07/11/2023,Grants Expenditure,Capital Directorate,Portakabin Limited,D-PINV059859,"38,259.00",Capital grants - Academy Trust
Department for Education,Core,10/11/2023,Grants Expenditure,Capital Directorate,Eric Wright Construction Limited,D-PINV060074,"180,450.06",Current grants - Academy Trust
Department for Education,Core,17/11/2023,Grants Expenditure,Capital Directorate,Portakabin Limited,D-PINV058996,"1,431,807.52",Capital grants - Academy Trust
Department for Education,Core,27/11/2023,Grants Expenditure,Capital Directorate,Eric Wright Construction Limited,D-PINV060441,"116,149.75",Current grants - Academy Trust
Department for Education,Core,30/11/2023,Grants Expenditure,Capital Directorate,Sibcas Limited,D-PINV060657,"28,516.80",Current grants - Academy Trust
Department for Education,Core,01/11/2023,Grants Expenditure,Capital Directorate,The Charter School Bermonsey,DU00102240,"42,332.62",Current grants - Academy Trust
Department for Education,Core,01/11/2023,Grants Expenditure,Capital Directorate,Trinity Academy St. Edwards,DU00102245,"69,600.00",Current grants - Academy Trust
Department for Education,Core,01/11/2023,Grants Expenditure,Capital Directorate,Trinity Academy St. Edwards,DU00102246,"59,160.00",Current grants - Academy Trust
Department for Education,Core,01/11/2023,Grants Expenditure,Capital Directorate,The Jubilee Academy,DU00102248,"33,015.92",Current grants - Academy Trust
Department for Education,Core,01/11/2023,Grants Expenditure,Capital Directorate,Rimon Jewish Primary School,DU00102252,"29,750.00",Current grants - Academy Trust
Department for Education,Core,16/11/2023,Grants Expenditure,Capital Directorate,Ridgeland Properties Ltd,D-PINV060061,"122,364.00",Current grants - Academy Trust
Department for Education,Core,20/11/2023,Grants Expenditure,Capital Directorate,Oasis Academy Silvertown,DU00102801,"169,213.16",Current grants - Academy Trust
Department for Education,Core,27/11/2023,Grants Expenditure,Capital Directorate,University Of Cambridge,D-PINV060628,"216,741.50",Current grants - Academy Trust
Department for Education,Core,20/11/2023,Grants Expenditure,Capital Directorate,St Mary'S Cofe Academy Stotfold,DU00102805,"270,000.00",Capital grants - Academy Trust
Department for Education,Core,20/11/2023,Grants Expenditure,Capital Directorate,Brinsworth Academy,CAY161621,"96,546.00",Capital grants - Academy Trust
Department for Education,Core,20/11/2023,Grants Expenditure,Capital Directorate,Clitheroe Royal Grammar School,CAY161622,"25,597.00",Capital grants - Academy Trust
Department for Education,Core,20/11/2023,Grants Expenditure,Capital Directorate,Poole Grammar School,CAY161623,"190,945.00",Capital grants - Academy Trust
Department for Education,Core,20/11/2023,Grants Expenditure,Capital Directorate,St Stephens Community Academy,CAY161624,"27,130.00",Capital grants - Academy Trust
Department for Education,Core,20/11/2023,Grants Expenditure,Capital Directorate,Ellesmere Primary School,CAY161626,"174,715.00",Capital grants - Academy Trust
Department for Education,Core,20/11/2023,Grants Expenditure,Capital Directorate,North Beckton Primary School,CAY161627,"59,021.00",Capital grants - Academy Trust
Department for Education,Core,20/11/2023,Grants Expenditure,Capital Directorate,Ripley St Thomas Church Of England Academy,CAY161631,"58,137.00",Capital grants - Academy Trust
Department for Education,Core,20/11/2023,Grants Expenditure,Capital Directorate,Preston Primary School,CAY161632,"33,612.00",Capital grants - Academy Trust
Department for Education,Core,20/11/2023,Grants Expenditure,Capital Directorate,Malvern Parish Cofe Primary School,CAY161633,"29,127.00",Capital grants - Academy Trust
Department for Education,Core,20/11/2023,Grants Expenditure,Capital Directorate,Treviglas Academy,CAY161634,"55,259.00",Capital grants - Academy Trust
Department for Education,Core,20/11/2023,Grants Expenditure,Capital Directorate,Brinsworth Academy,CAY161635,"61,343.00",Capital grants - Academy Trust
Department for Education,Core,20/11/2023,Grants Expenditure,Capital Directorate,The Misbourne School,CAY161636,"43,482.00",Capital grants - Academy Trust
Department for Education,Core,20/11/2023,Grants Expenditure,Capital Directorate,The Mountbatten School,CAY161637,"178,941.00",Capital grants - Academy Trust
Department for Education,Core,20/11/2023,Grants Expenditure,Capital Directorate,Chestnut Grove School,CAY161639,"62,894.00",Capital grants - Academy Trust
Department for Education,Core,20/11/2023,Grants Expenditure,Capital Directorate,The Macclesfield Academy,CAY161640,"29,179.00",Capital grants - Academy Trust
Department for Education,Core,20/11/2023,Grants Expenditure,Capital Directorate,Park High School,CAY161641,"68,430.00",Capital grants - Academy Trust
Department for Education,Core,20/11/2023,Grants Expenditure,Capital Directorate,Park High School,CAY161642,"42,219.00",Capital grants - Academy Trust
Department for Education,Core,20/11/2023,Grants Expenditure,Capital Directorate,Bentley Wood High School,CAY161643,"208,090.00",Capital grants - Academy Trust
Department for Education,Core,20/11/2023,Grants Expenditure,Capital Directorate,Bentley Wood High School,CAY161644,"121,694.00",Capital grants - Academy Trust
Department for Education,Core,20/11/2023,Grants Expenditure,Capital Directorate,Dr Challoner'S High School,CAY161645,"102,334.00",Capital grants - Academy Trust
Department for Education,Core,20/11/2023,Grants Expenditure,Capital Directorate,Hazelwick School,CAY161646,"133,265.00",Capital grants - Academy Trust
Department for Education,Core,20/11/2023,Grants Expenditure,Capital Directorate,Hadrian Academy,CAY161647,"96,787.00",Capital grants - Academy Trust
Department for Education,Core,20/11/2023,Grants Expenditure,Capital Directorate,Applecroft School,CAY161648,"75,991.00",Capital grants - Academy Trust
Department for Education,Core,20/11/2023,Grants Expenditure,Capital Directorate,Applecroft School,CAY161649,"124,250.00",Capital grants - Academy Trust
Department for Education,Core,20/11/2023,Grants Expenditure,Capital Directorate,Robert May'S School,CAY161650,"212,175.00",Capital grants - Academy Trust
Department for Education,Core,20/11/2023,Grants Expenditure,Capital Directorate,Wyvern College,CAY161651,"195,404.00",Capital grants - Academy Trust
Department for Education,Core,20/11/2023,Grants Expenditure,Capital Directorate,Heron Park Primary Academy,CAY161652,"33,709.00",Capital grants - Academy Trust
Department for Education,Core,20/11/2023,Grants Expenditure,Capital Directorate,Glenleigh Park Primary Academy,CAY161653,"261,778.00",Capital grants - Academy Trust
Department for Education,Core,20/11/2023,Grants Expenditure,Capital Directorate,The James Hornsby School,CAY161655,"53,183.00",Capital grants - Academy Trust
Department for Education,Core,20/11/2023,Grants Expenditure,Capital Directorate,Calday Grange Grammar School,CAY161656,"118,932.00",Capital grants - Academy Trust
Department for Education,Core,20/11/2023,Grants Expenditure,Capital Directorate,Seer Green Church Of England School,CAY161657,"37,014.00",Capital grants - Academy Trust
Department for Education,Core,20/11/2023,Grants Expenditure,Capital Directorate,Richard Hale School,CAY161659,"46,482.00",Capital grants - Academy Trust
Department for Education,Core,20/11/2023,Grants Expenditure,Capital Directorate,Bursted Wood Primary School,CAY161661,"25,849.00",Capital grants - Academy Trust
Department for Education,Core,20/11/2023,Grants Expenditure,Capital Directorate,Woodfield School,CAY161662,"87,700.00",Capital grants - Academy Trust
Department for Education,Core,20/11/2023,Grants Expenditure,Capital Directorate,Sawley Infant And Nursery School,CAY161663,"109,774.00",Capital grants - Academy Trust
Department for Education,Core,20/11/2023,Grants Expenditure,Capital Directorate,Sawley Junior School,CAY161664,"66,365.00",Capital grants - Academy Trust
Department for Education,Core,20/11/2023,Grants Expenditure,Capital Directorate,Roughwood Primary School,CAY161666,"56,186.00",Capital grants - Academy Trust
Department for Education,Core,20/11/2023,Grants Expenditure,Capital Directorate,West Wycombe School,CAY161667,"46,065.00",Capital grants - Academy Trust
Department for Education,Core,20/11/2023,Grants Expenditure,Capital Directorate,Edlington Victoria Academy,CAY161668,"137,383.00",Capital grants - Academy Trust
Department for Education,Core,20/11/2023,Grants Expenditure,Capital Directorate,Belleville Wix Academy,CAY161669,"103,257.00",Capital grants - Academy Trust
Department for Education,Core,20/11/2023,Grants Expenditure,Capital Directorate,Goose Green Primary And Nursery School,CAY161670,"68,326.00",Capital grants - Academy Trust
Department for Education,Core,20/11/2023,Grants Expenditure,Capital Directorate,Tonge Moor Primary Academy,CAY161671,"27,898.00",Capital grants - Academy Trust
Department for Education,Core,20/11/2023,Grants Expenditure,Capital Directorate,Worcesters Primary School,CAY161672,"51,166.00",Capital grants - Academy Trust
Department for Education,Core,20/11/2023,Grants Expenditure,Capital Directorate,Bedgrove Junior School,CAY161673,"70,816.00",Capital grants - Academy Trust
Department for Education,Core,20/11/2023,Grants Expenditure,Capital Directorate,Thorp Primary School,CAY161674,"46,850.00",Capital grants - Academy Trust
Department for Education,Core,20/11/2023,Grants Expenditure,Capital Directorate,Spaxton Cofe Primary School,CAY161676,"55,850.00",Capital grants - Academy Trust
Department for Education,Core,20/11/2023,Grants Expenditure,Capital Directorate,Dogsthorpe Infant School,CAY161677,"96,905.00",Capital grants - Academy Trust
Department for Education,Core,20/11/2023,Grants Expenditure,Capital Directorate,Woodside High School,CAY161679,"91,149.00",Capital grants - Academy Trust
Department for Education,Core,20/11/2023,Grants Expenditure,Capital Directorate,The Green School For Girls,CAY161680,"47,955.00",Capital grants - Academy Trust
Department for Education,Core,20/11/2023,Grants Expenditure,Capital Directorate,Endeavour Academy Bexley,CAY161682,"57,496.00",Capital grants - Academy Trust
Department for Education,Core,20/11/2023,Grants Expenditure,Capital Directorate,Chesterton Primary School,CAY161683,"91,573.00",Capital grants - Academy Trust
Department for Education,Core,20/11/2023,Grants Expenditure,Capital Directorate,Tytherington School,CAY161688,"42,266.00",Capital grants - Academy Trust
Department for Education,Core,20/11/2023,Grants Expenditure,Capital Directorate,Hope Valley College,CAY161689,"72,948.00",Capital grants - Academy Trust
Department for Education,Core,20/11/2023,Grants Expenditure,Capital Directorate,St Anselm'S College,CAY161690,"84,491.00",Capital grants - Academy Trust
Department for Education,Core,20/11/2023,Grants Expenditure,Capital Directorate,Cannock Chase High School,CAY161691,"134,233.00",Capital grants - Academy Trust
Department for Education,Core,20/11/2023,Grants Expenditure,Capital Directorate,Mill Hill County High School,CAY161692,"251,475.00",Capital grants - Academy Trust
Department for Education,Core,20/11/2023,Grants Expenditure,Capital Directorate,Christ'S College Finchley,CAY161693,"203,002.00",Capital grants - Academy Trust
Department for Education,Core,20/11/2023,Grants Expenditure,Capital Directorate,Tubbenden Primary School,CAY161694,"88,063.00",Capital grants - Academy Trust
Department for Education,Core,20/11/2023,Grants Expenditure,Capital Directorate,Northgate Primary School,CAY161695,"90,577.00",Capital grants - Academy Trust
Department for Education,Core,20/11/2023,Grants Expenditure,Capital Directorate,Copley Academy,CAY161696,"195,669.00",Capital grants - Academy Trust
Department for Education,Core,20/11/2023,Grants Expenditure,Capital Directorate,Beck Primary School,CAY161697,"80,464.00",Capital grants - Academy Trust
Department for Education,Core,20/11/2023,Grants Expenditure,Capital Directorate,Temple Hill Primary Academy,CAY161698,"132,550.00",Capital grants - Academy Trust
Department for Education,Core,20/11/2023,Grants Expenditure,Capital Directorate,Thomas Alleyne'S High School,CAY161699,"166,364.00",Capital grants - Academy Trust
Department for Education,Core,20/11/2023,Grants Expenditure,Capital Directorate,Marshbrook First School,CAY161700,"78,872.00",Capital grants - Academy Trust
Department for Education,Core,20/11/2023,Grants Expenditure,Capital Directorate,Gosfield Community Primary School,CAY161701,"31,930.00",Capital grants - Academy Trust
Department for Education,Core,20/11/2023,Grants Expenditure,Capital Directorate,Outwoods Primary School,CAY161702,"37,747.00",Capital grants - Academy Trust
Department for Education,Core,20/11/2023,Grants Expenditure,Capital Directorate,Monkwearmouth Academy,CAY161704,"119,330.00",Capital grants - Academy Trust
Department for Education,Core,20/11/2023,Grants Expenditure,Capital Directorate,Caistor Grammar School,CAY161705,"98,726.00",Capital grants - Academy Trust
Department for Education,Core,20/11/2023,Grants Expenditure,Capital Directorate,St Joseph'S College,CAY161706,"59,024.00",Capital grants - Academy Trust
Department for Education,Core,20/11/2023,Grants Expenditure,Capital Directorate,Ripley St Thomas Church Of England Academy,CAY161707,"61,898.00",Capital grants - Academy Trust
Department for Education,Core,20/11/2023,Grants Expenditure,Capital Directorate,Collingwood College,CAY161708,"73,357.00",Capital grants - Academy Trust
Department for Education,Core,20/11/2023,Grants Expenditure,Capital Directorate,"The King'S School, Grantham",CAY161709,"69,086.00",Capital grants - Academy Trust
Department for Education,Core,20/11/2023,Grants Expenditure,Capital Directorate,Alban City School,CAY161710,"63,441.00",Capital grants - Academy Trust
Department for Education,Core,20/11/2023,Grants Expenditure,Capital Directorate,The Phoenix Primary School,CAY161711,"128,343.00",Capital grants - Academy Trust
Department for Education,Core,20/11/2023,Grants Expenditure,Capital Directorate,Fairfax,CAY161713,"29,160.00",Capital grants - Academy Trust
Department for Education,Core,20/11/2023,Grants Expenditure,Capital Directorate,Ayresome Primary School,CAY161714,"50,729.00",Capital grants - Academy Trust
Department for Education,Core,20/11/2023,Grants Expenditure,Capital Directorate,Cirencester Deer Park School,CAY161715,"164,208.00",Capital grants - Academy Trust
Department for Education,Core,20/11/2023,Grants Expenditure,Capital Directorate,The Magna Carta School,CAY161716,"69,097.00",Capital grants - Academy Trust
Department for Education,Core,20/11/2023,Grants Expenditure,Capital Directorate,Hailsham Community College,CAY161717,"117,919.00",Capital grants - Academy Trust
Department for Education,Core,20/11/2023,Grants Expenditure,Capital Directorate,Heston Community School,CAY161718,"35,000.00",Capital grants - Academy Trust
Department for Education,Core,20/11/2023,Grants Expenditure,Capital Directorate,Raunds Park Infant School,CAY161720,"41,416.00",Capital grants - Academy Trust
Department for Education,Core,20/11/2023,Grants Expenditure,Capital Directorate,Calveley Primary Academy,CAY161740,"36,220.00",Capital grants - Academy Trust
Department for Education,Core,20/11/2023,Grants Expenditure,Capital Directorate,Wandle Valley Academy,CAY161741,"96,217.00",Capital grants - Academy Trust
Department for Education,Core,20/11/2023,Grants Expenditure,Capital Directorate,Kingsbury High School,CAY161742,"187,485.00",Capital grants - Academy Trust
Department for Education,Core,20/11/2023,Grants Expenditure,Capital Directorate,Scawby Academy,CAY161743,"28,144.00",Capital grants - Academy Trust
Department for Education,Core,20/11/2023,Grants Expenditure,Capital Directorate,Excalibur Primary School,CAY161744,"100,839.00",Capital grants - Academy Trust
Department for Education,Core,20/11/2023,Grants Expenditure,Capital Directorate,The Romsey School,CAY161758,"70,343.00",Capital grants - Academy Trust
Department for Education,Core,20/11/2023,Grants Expenditure,Capital Directorate,Brockhill Park Performing Arts College,CAY161759,"62,893.00",Capital grants - Academy Trust
Department for Education,Core,20/11/2023,Grants Expenditure,Capital Directorate,Mulberry Academy Shoreditch,CAY161760,"191,810.00",Capital grants - Academy Trust
Department for Education,Core,20/11/2023,Grants Expenditure,Capital Directorate,The Cowplain School,CAY161761,"59,671.00",Capital grants - Academy Trust
Department for Education,Core,20/11/2023,Grants Expenditure,Capital Directorate,Townfield Primary School,CAY161762,"45,101.00",Capital grants - Academy Trust
Department for Education,Core,20/11/2023,Grants Expenditure,Capital Directorate,Holy Trinity Lamorbey Church Of England School,CAY161763,"136,226.00",Capital grants - Academy Trust
Department for Education,Core,20/11/2023,Grants Expenditure,Capital Directorate,Central Lancaster High School,CAY161764,"152,996.00",Capital grants - Academy Trust
Department for Education,Core,20/11/2023,Grants Expenditure,Capital Directorate,Bournemouth School,CAY161765,"197,306.00",Capital grants - Academy Trust
Department for Education,Core,20/11/2023,Grants Expenditure,Capital Directorate,Whitefield Schools,CAY161766,"38,609.00",Capital grants - Academy Trust
Department for Education,Core,20/11/2023,Grants Expenditure,Capital Directorate,Whitefield Schools,CAY161767,"41,146.00",Capital grants - Academy Trust
Department for Education,Core,20/11/2023,Grants Expenditure,Capital Directorate,Newton Abbot College,CAY161772,"122,856.00",Capital grants - Academy Trust
Department for Education,Core,20/11/2023,Grants Expenditure,Capital Directorate,Stanley High School,CAY161775,"44,996.00",Capital grants - Academy Trust
Department for Education,Core,20/11/2023,Grants Expenditure,Capital Directorate,Starcross Primary School,CAY161776,"59,906.00",Capital grants - Academy Trust
Department for Education,Core,20/11/2023,Grants Expenditure,Capital Directorate,Grey Court School,CAY161778,"39,905.00",Capital grants - Academy Trust
Department for Education,Core,20/11/2023,Grants Expenditure,Capital Directorate,Falmouth School,CAY161781,"30,660.00",Capital grants - Academy Trust
Department for Education,Core,20/11/2023,Grants Expenditure,Capital Directorate,Haydon School,CAY161786,"80,000.00",Capital grants - Academy Trust
Department for Education,Core,20/11/2023,Grants Expenditure,Capital Directorate,Airedale Academy,CAY161787,"208,048.00",Capital grants - Academy Trust
Department for Education,Core,20/11/2023,Grants Expenditure,Capital Directorate,Rooks Heath School,CAY161788,"290,000.00",Capital grants - Academy Trust
Department for Education,Core,20/11/2023,Grants Expenditure,Capital Directorate,Chatham Grammar,CAY161789,"44,771.00",Capital grants - Academy Trust
Department for Education,Core,20/11/2023,Grants Expenditure,Capital Directorate,Burton Bradstock Church Of England Voluntary Controlled School,CAY161790,"32,255.00",Capital grants - Academy Trust
Department for Education,Core,20/11/2023,Grants Expenditure,Capital Directorate,St Peter'S Catholic Comprehensive School,CAY161791,"156,489.00",Capital grants - Academy Trust
Department for Education,Core,20/11/2023,Grants Expenditure,Capital Directorate,Hartsdown Academy,CAY161792,"78,722.00",Capital grants - Academy Trust
Department for Education,Core,20/11/2023,Grants Expenditure,Capital Directorate,Guru Nanak Sikh Academy,CAY161793,"117,259.00",Capital grants - Academy Trust
Department for Education,Core,20/11/2023,Grants Expenditure,Capital Directorate,The De Montfort School,CAY161794,"36,124.00",Capital grants - Academy Trust
Department for Education,Core,20/11/2023,Grants Expenditure,Capital Directorate,Southborough High School,CAY161795,"77,376.00",Capital grants - Academy Trust
Department for Education,Core,20/11/2023,Grants Expenditure,Capital Directorate,Barrow 1618 Cofe Free School,CAY161796,"166,795.00",Capital grants - Academy Trust
Department for Education,Core,20/11/2023,Grants Expenditure,Capital Directorate,Mill Hill County High School,CAY161797,"185,679.00",Capital grants - Academy Trust
Department for Education,Core,20/11/2023,Grants Expenditure,Capital Directorate,Biggleswade Academy,CAY161798,"100,247.00",Capital grants - Academy Trust
Department for Education,Core,20/11/2023,Grants Expenditure,Capital Directorate,Ortu Corringham Primary School And Nursery,CAY161799,"40,724.00",Capital grants - Academy Trust
Department for Education,Core,20/11/2023,Grants Expenditure,Capital Directorate,Shaw Primary Academy,CAY161800,"67,743.00",Capital grants - Academy Trust
Department for Education,Core,20/11/2023,Grants Expenditure,Capital Directorate,Chatham Grammar,CAY161801,"45,451.00",Capital grants - Academy Trust
Department for Education,Core,20/11/2023,Grants Expenditure,Capital Directorate,Sheep Dip Lane Academy,CAY161802,"85,897.00",Capital grants - Academy Trust
Department for Education,Core,20/11/2023,Grants Expenditure,Capital Directorate,Sandringham Primary School,CAY161803,"93,854.00",Capital grants - Academy Trust
Department for Education,Core,20/11/2023,Grants Expenditure,Capital Directorate,Robert May'S School,CAY161804,"50,006.00",Capital grants - Academy Trust
Department for Education,Core,20/11/2023,Grants Expenditure,Capital Directorate,St Anne'S Catholic School,CAY161805,"53,853.00",Capital grants - Academy Trust
Department for Education,Core,20/11/2023,Grants Expenditure,Capital Directorate,St Augustine'S Catholic College,CAY161806,"94,229.00",Capital grants - Academy Trust
Department for Education,Core,20/11/2023,Grants Expenditure,Capital Directorate,St Thomas More Catholic Comprehensive School,CAY161807,"84,807.00",Capital grants - Academy Trust
Department for Education,Core,20/11/2023,Grants Expenditure,Capital Directorate,The Holt School,CAY161808,"51,491.00",Capital grants - Academy Trust
Department for Education,Core,20/11/2023,Grants Expenditure,Capital Directorate,Sarratt Church Of England Primary School,CAY161809,"73,232.00",Capital grants - Academy Trust
Department for Education,Core,20/11/2023,Grants Expenditure,Capital Directorate,Sheep Dip Lane Academy,CAY161810,"81,585.00",Capital grants - Academy Trust
Department for Education,Core,20/11/2023,Grants Expenditure,Capital Directorate,Parkfield Community School,CAY161811,"60,248.00",Capital grants - Academy Trust
Department for Education,Core,20/11/2023,Grants Expenditure,Capital Directorate,Willow Primary School,CAY161812,"69,320.00",Capital grants - Academy Trust
Department for Education,Core,20/11/2023,Grants Expenditure,Capital Directorate,Liverpool College,CAY161813,"55,992.00",Capital grants - Academy Trust
Department for Education,Core,20/11/2023,Grants Expenditure,Capital Directorate,Chesterfield High School,CAY161814,"43,706.00",Capital grants - Academy Trust
Department for Education,Core,20/11/2023,Grants Expenditure,Capital Directorate,Great Berry Primary School,CAY161815,"70,198.00",Capital grants - Academy Trust
Department for Education,Core,20/11/2023,Grants Expenditure,Capital Directorate,The Highcrest Academy,CAY161816,"51,986.00",Capital grants - Academy Trust
Department for Education,Core,20/11/2023,Grants Expenditure,Capital Directorate,Langley Hall Primary Academy,CAY161817,"44,464.00",Capital grants - Academy Trust
Department for Education,Core,20/11/2023,Grants Expenditure,Capital Directorate,De Vere Primary School,CAY161818,"33,498.00",Capital grants - Academy Trust
Department for Education,Core,20/11/2023,Grants Expenditure,Capital Directorate,Penwortham Priory Academy,CAY161819,"64,695.00",Capital grants - Academy Trust
Department for Education,Core,20/11/2023,Grants Expenditure,Capital Directorate,King Charles I School,CAY161820,"70,727.00",Capital grants - Academy Trust
Department for Education,Core,20/11/2023,Grants Expenditure,Capital Directorate,Grange Community Primary School,CAY161821,"82,624.00",Capital grants - Academy Trust
Department for Education,Core,20/11/2023,Grants Expenditure,Capital Directorate,St Chad'S Catholic Primary School,CAY161822,"85,964.00",Capital grants - Academy Trust
Department for Education,Core,20/11/2023,Grants Expenditure,Capital Directorate,Ousedale School,CAY161823,"46,623.00",Capital grants - Academy Trust
Department for Education,Core,20/11/2023,Grants Expenditure,Capital Directorate,Wembley High Technology College,CAY161824,"67,161.00",Capital grants - Academy Trust
Department for Education,Core,20/11/2023,Grants Expenditure,Capital Directorate,Nunnery Wood Primary School,CAY161825,"84,331.00",Capital grants - Academy Trust
Department for Education,Core,20/11/2023,Grants Expenditure,Capital Directorate,Prior Pursglove And Stockton Sixth Form College,CAY161826,"86,113.00",Capital grants - Academy Trust
Department for Education,Core,20/11/2023,Grants Expenditure,Capital Directorate,Graveney Primary School,CAY161827,"83,465.00",Capital grants - Academy Trust
Department for Education,Core,20/11/2023,Grants Expenditure,Capital Directorate,St Thomas More Catholic Primary School,CAY161828,"76,283.00",Capital grants - Academy Trust
Department for Education,Core,20/11/2023,Grants Expenditure,Capital Directorate,Beamont Primary School,CAY161829,"129,536.00",Capital grants - Academy Trust
Department for Education,Core,20/11/2023,Grants Expenditure,Capital Directorate,The Giles Academy,CAY161830,"151,854.00",Capital grants - Academy Trust
Department for Education,Core,20/11/2023,Grants Expenditure,Capital Directorate,The Misbourne School,CAY161831,"68,649.00",Capital grants - Academy Trust
Department for Education,Core,20/11/2023,Grants Expenditure,Capital Directorate,Sir Christopher Hatton Academy,CAY161832,"268,987.00",Capital grants - Academy Trust
Department for Education,Core,20/11/2023,Grants Expenditure,Capital Directorate,Ashill Community Primary School,CAY161833,"45,239.00",Capital grants - Academy Trust
Department for Education,Core,20/11/2023,Grants Expenditure,Capital Directorate,Riverbridge Primary School,CAY161834,"82,572.00",Capital grants - Academy Trust
Department for Education,Core,20/11/2023,Grants Expenditure,Capital Directorate,Joydens Wood Junior School,CAY161835,"49,412.00",Capital grants - Academy Trust
Department for Education,Core,20/11/2023,Grants Expenditure,Capital Directorate,Sir Thomas Boughey Academy,CAY161836,"55,054.00",Capital grants - Academy Trust
Department for Education,Core,20/11/2023,Grants Expenditure,Capital Directorate,Alleyne'S Academy,CAY161837,"29,719.00",Capital grants - Academy Trust
Department for Education,Core,20/11/2023,Grants Expenditure,Capital Directorate,The Weston Road Academy,CAY161838,"44,667.00",Capital grants - Academy Trust
Department for Education,Core,20/11/2023,Grants Expenditure,Capital Directorate,James Bateman Middle School,CAY161839,"186,154.00",Capital grants - Academy Trust
Department for Education,Core,20/11/2023,Grants Expenditure,Capital Directorate,Outwoods Primary School,CAY161840,"57,905.00",Capital grants - Academy Trust
Department for Education,Core,20/11/2023,Grants Expenditure,Capital Directorate,Heathfields Infant Academy,CAY161841,"87,239.00",Capital grants - Academy Trust
Department for Education,Core,20/11/2023,Grants Expenditure,Capital Directorate,St Peter'S Cofe Primary School,CAY161842,"32,548.00",Capital grants - Academy Trust
Department for Education,Core,20/11/2023,Grants Expenditure,Capital Directorate,"St John'S Church Of England Primary School, Radcliffe",CAY161844,"95,034.00",Capital grants - Academy Trust
Department for Education,Core,20/11/2023,Grants Expenditure,Capital Directorate,Ranelagh School,CAY161845,"45,406.00",Capital grants - Academy Trust
Department for Education,Core,20/11/2023,Grants Expenditure,Capital Directorate,Ortu Hassenbrook Academy,CAY161846,"97,670.00",Capital grants - Academy Trust
Department for Education,Core,20/11/2023,Grants Expenditure,Capital Directorate,Sale Grammar School,CAY161847,"88,422.00",Capital grants - Academy Trust
Department for Education,Core,20/11/2023,Grants Expenditure,Capital Directorate,Firwood High School,CAY161848,"87,137.00",Capital grants - Academy Trust
Department for Education,Core,20/11/2023,Grants Expenditure,Capital Directorate,Aveley Primary School,CAY161849,"50,133.00",Capital grants - Academy Trust
Department for Education,Core,20/11/2023,Grants Expenditure,Capital Directorate,Wickham Common Primary School,CAY161850,"128,083.00",Capital grants - Academy Trust
Department for Education,Core,20/11/2023,Grants Expenditure,Capital Directorate,Hillsgrove Primary School,CAY161851,"25,244.00",Capital grants - Academy Trust
Department for Education,Core,20/11/2023,Grants Expenditure,Capital Directorate,Princes Risborough Primary School,CAY161853,"120,585.00",Capital grants - Academy Trust
Department for Education,Core,20/11/2023,Grants Expenditure,Capital Directorate,Pudsey Primrose Hill Primary School,CAY161854,"57,537.00",Capital grants - Academy Trust
Department for Education,Core,20/11/2023,Grants Expenditure,Capital Directorate,Linthorpe Community Primary School,CAY161855,"92,721.00",Capital grants - Academy Trust
Department for Education,Core,20/11/2023,Grants Expenditure,Capital Directorate,Coloma Convent Girls' School,CAY161856,"117,716.00",Capital grants - Academy Trust
Department for Education,Core,20/11/2023,Grants Expenditure,Capital Directorate,Newlands Spring Primary And Nursery School,CAY161857,"69,398.00",Capital grants - Academy Trust
Department for Education,Core,20/11/2023,Grants Expenditure,Capital Directorate,Chesterfield High School,CAY161858,"40,066.00",Capital grants - Academy Trust
Department for Education,Core,20/11/2023,Grants Expenditure,Capital Directorate,Hockerill Anglo-European College,CAY161860,"128,899.00",Capital grants - Academy Trust
Department for Education,Core,20/11/2023,Grants Expenditure,Capital Directorate,Huntcliff School,CAY161861,"81,402.00",Capital grants - Academy Trust
Department for Education,Core,20/11/2023,Grants Expenditure,Capital Directorate,St Francis Xavier'S College,CAY161862,"62,233.00",Capital grants - Academy Trust
Department for Education,Core,20/11/2023,Grants Expenditure,Capital Directorate,Southborough High School,CAY161863,"69,234.00",Capital grants - Academy Trust
Department for Education,Core,20/11/2023,Grants Expenditure,Capital Directorate,Sanders Draper,CAY161864,"95,000.00",Capital grants - Academy Trust
Department for Education,Core,20/11/2023,Grants Expenditure,Capital Directorate,Borden Grammar School,CAY161865,"129,783.00",Capital grants - Academy Trust
Department for Education,Core,20/11/2023,Grants Expenditure,Capital Directorate,St Michael'S Church Of England Primary School,CAY161866,"53,422.00",Capital grants - Academy Trust
Department for Education,Core,20/11/2023,Grants Expenditure,Capital Directorate,Deanshanger Primary School,CAY161867,"134,253.00",Capital grants - Academy Trust
Department for Education,Core,20/11/2023,Grants Expenditure,Capital Directorate,John Colet School,CAY161868,"189,063.00",Capital grants - Academy Trust
Department for Education,Core,20/11/2023,Grants Expenditure,Capital Directorate,Thurstable School Sports College And Sixth Form Centre,CAY161869,"274,057.00",Capital grants - Academy Trust
Department for Education,Core,20/11/2023,Grants Expenditure,Capital Directorate,Rickmansworth School,CAY161870,"37,820.00",Capital grants - Academy Trust
Department for Education,Core,20/11/2023,Grants Expenditure,Capital Directorate,Knaphill School,CAY161871,"105,573.00",Capital grants - Academy Trust
Department for Education,Core,20/11/2023,Grants Expenditure,Capital Directorate,Tring School,CAY161872,"31,560.00",Capital grants - Academy Trust
Department for Education,Core,20/11/2023,Grants Expenditure,Capital Directorate,Watford Grammar School For Girls,CAY161873,"41,036.00",Capital grants - Academy Trust
Department for Education,Core,20/11/2023,Grants Expenditure,Capital Directorate,"Harrogate, Bilton Grange Primary School",CAY161874,"65,932.00",Capital grants - Academy Trust
Department for Education,Core,20/11/2023,Grants Expenditure,Capital Directorate,Camps Hill Primary School,CAY161875,"73,538.00",Capital grants - Academy Trust
Department for Education,Core,20/11/2023,Grants Expenditure,Capital Directorate,Dane Court Grammar School,CAY161876,"52,795.00",Capital grants - Academy Trust
Department for Education,Core,20/11/2023,Grants Expenditure,Capital Directorate,Thamesmead School,CAY161877,"96,246.00",Capital grants - Academy Trust
Department for Education,Core,20/11/2023,Grants Expenditure,Capital Directorate,Northborough Primary School,CAY161879,"57,516.00",Capital grants - Academy Trust
Department for Education,Core,20/11/2023,Grants Expenditure,Capital Directorate,Knightsfield School,CAY161880,"38,356.00",Capital grants - Academy Trust
Department for Education,Core,20/11/2023,Grants Expenditure,Capital Directorate,Lampton Academy,CAY161881,"166,551.00",Capital grants - Academy Trust
Department for Education,Core,20/11/2023,Grants Expenditure,Capital Directorate,Whitelands Park Primary School,CAY161882,"75,504.00",Capital grants - Academy Trust
Department for Education,Core,20/11/2023,Grants Expenditure,Capital Directorate,Ralph Sadleir School,CAY161883,"94,622.00",Capital grants - Academy Trust
Department for Education,Core,20/11/2023,Grants Expenditure,Capital Directorate,Sherwood Park Primary School,CAY161884,"74,431.00",Capital grants - Academy Trust
Department for Education,Core,20/11/2023,Grants Expenditure,Capital Directorate,The Burgate School And Sixth Form,CAY161885,"127,100.00",Capital grants - Academy Trust
Department for Education,Core,20/11/2023,Grants Expenditure,Capital Directorate,St Albans Girls' School,CAY161886,"116,743.00",Capital grants - Academy Trust
Department for Education,Core,20/11/2023,Grants Expenditure,Capital Directorate,Range High School,CAY161887,"109,231.00",Capital grants - Academy Trust
Department for Education,Core,20/11/2023,Grants Expenditure,Capital Directorate,Fulford School,CAY161888,"91,005.00",Capital grants - Academy Trust
Department for Education,Core,20/11/2023,Grants Expenditure,Capital Directorate,Emerson Park Academy,CAY161890,"79,459.00",Capital grants - Academy Trust
Department for Education,Core,20/11/2023,Grants Expenditure,Capital Directorate,Blenheim High School,CAY161891,"165,314.00",Capital grants - Academy Trust
Department for Education,Core,20/11/2023,Grants Expenditure,Capital Directorate,Amersham School,CAY161892,"56,450.00",Capital grants - Academy Trust
Department for Education,Core,20/11/2023,Grants Expenditure,Capital Directorate,Denbigh School,CAY161893,"140,425.00",Capital grants - Academy Trust
Department for Education,Core,20/11/2023,Grants Expenditure,Capital Directorate,The Piggott School,CAY161894,"69,772.00",Capital grants - Academy Trust
Department for Education,Core,20/11/2023,Grants Expenditure,Capital Directorate,Foxborough Primary School,CAY161895,"91,453.00",Capital grants - Academy Trust
Department for Education,Core,20/11/2023,Grants Expenditure,Capital Directorate,Great Baddow High School,CAY161896,"93,251.00",Capital grants - Academy Trust
Department for Education,Core,20/11/2023,Grants Expenditure,Capital Directorate,Locking Primary School,CAY161897,"78,674.00",Capital grants - Academy Trust
Department for Education,Core,20/11/2023,Grants Expenditure,Capital Directorate,Hedingham School And Sixth Form,CAY161898,"84,566.00",Capital grants - Academy Trust
Department for Education,Core,20/11/2023,Grants Expenditure,Capital Directorate,Blue Coat Church Of England Academy,CAY161900,"41,255.00",Capital grants - Academy Trust
Department for Education,Core,20/11/2023,Grants Expenditure,Capital Directorate,St Bartholomew'S Church Of England Primary School,CAY161901,"26,823.00",Capital grants - Academy Trust
Department for Education,Core,20/11/2023,Grants Expenditure,Capital Directorate,Parkfield Primary School,CAY161902,"25,752.00",Capital grants - Academy Trust
Department for Education,Core,20/11/2023,Grants Expenditure,Capital Directorate,Mayville Primary School,CAY161903,"61,313.00",Capital grants - Academy Trust
Department for Education,Core,20/11/2023,Grants Expenditure,Capital Directorate,Emmanuel Community School,CAY161904,"49,101.00",Capital grants - Academy Trust
Department for Education,Core,20/11/2023,Grants Expenditure,Capital Directorate,Borden Grammar School,CAY161905,"50,239.00",Capital grants - Academy Trust
Department for Education,Core,20/11/2023,Grants Expenditure,Capital Directorate,Fulston Manor School,CAY161906,"44,300.00",Capital grants - Academy Trust
Department for Education,Core,20/11/2023,Grants Expenditure,Capital Directorate,Francis Baily Primary School,CAY161907,"165,263.00",Capital grants - Academy Trust
Department for Education,Core,20/11/2023,Grants Expenditure,Capital Directorate,Homewood School And Sixth Form Centre,CAY161908,"87,593.00",Capital grants - Academy Trust
Department for Education,Core,20/11/2023,Grants Expenditure,Capital Directorate,Heckmondwike Grammar School,CAY161909,"169,805.00",Capital grants - Academy Trust
Department for Education,Core,20/11/2023,Grants Expenditure,Capital Directorate,Green Lane Infant School,CAY161910,"112,801.00",Capital grants - Academy Trust
Department for Education,Core,20/11/2023,Grants Expenditure,Capital Directorate,Queen'S Park High School,CAY161911,"82,806.00",Capital grants - Academy Trust
Department for Education,Core,20/11/2023,Grants Expenditure,Capital Directorate,Range High School,CAY161912,"163,943.00",Capital grants - Academy Trust
Department for Education,Core,20/11/2023,Grants Expenditure,Capital Directorate,Tubbenden Primary School,CAY161913,"113,840.00",Capital grants - Academy Trust
Department for Education,Core,20/11/2023,Grants Expenditure,Capital Directorate,Ranskill Primary School,CAY161914,"64,616.00",Capital grants - Academy Trust
Department for Education,Core,20/11/2023,Grants Expenditure,Capital Directorate,Whitemoor Academy (Primary And Nursery),CAY161915,"127,037.00",Capital grants - Academy Trust
Department for Education,Core,20/11/2023,Grants Expenditure,Capital Directorate,Brayton Academy,CAY161917,"122,725.00",Capital grants - Academy Trust
Department for Education,Core,20/11/2023,Grants Expenditure,Capital Directorate,Codsall Middle School,CAY161918,"79,157.00",Capital grants - Academy Trust
Department for Education,Core,20/11/2023,Grants Expenditure,Capital Directorate,Two Rivers Primary School,CAY161919,"44,048.00",Capital grants - Academy Trust
Department for Education,Core,20/11/2023,Grants Expenditure,Capital Directorate,St Nicholas Church Of England First School,CAY161920,"46,899.00",Capital grants - Academy Trust
Department for Education,Core,20/11/2023,Grants Expenditure,Capital Directorate,Copthall School,CAY161921,"247,694.00",Capital grants - Academy Trust
Department for Education,Core,20/11/2023,Grants Expenditure,Capital Directorate,Brayton Academy,CAY161922,"62,347.00",Capital grants - Academy Trust
Department for Education,Core,20/11/2023,Grants Expenditure,Capital Directorate,Scotholme Primary And Nursery School,CAY161923,"37,541.00",Capital grants - Academy Trust
Department for Education,Core,20/11/2023,Grants Expenditure,Capital Directorate,Darrick Wood Junior School,CAY161924,"132,900.00",Capital grants - Academy Trust
Department for Education,Core,20/11/2023,Grants Expenditure,Capital Directorate,The Romsey School,CAY161925,"106,567.00",Capital grants - Academy Trust
Department for Education,Core,20/11/2023,Grants Expenditure,Capital Directorate,West View Primary School,CAY161927,"34,377.00",Capital grants - Academy Trust
Department for Education,Core,20/11/2023,Grants Expenditure,Capital Directorate,Keston Primary School,CAY161928,"111,475.00",Capital grants - Academy Trust
Department for Education,Core,20/11/2023,Grants Expenditure,Capital Directorate,The Blue Coat School,CAY161929,"72,685.00",Capital grants - Academy Trust
Department for Education,Core,20/11/2023,Grants Expenditure,Capital Directorate,Gawthorpe Community Academy,CAY161930,"61,849.00",Capital grants - Academy Trust
Department for Education,Core,20/11/2023,Grants Expenditure,Capital Directorate,Franklin College,CAY161931,"58,057.00",Capital grants - Academy Trust
Department for Education,Core,20/11/2023,Grants Expenditure,Capital Directorate,Carlton Le Willows Academy,CAY161932,"103,767.00",Capital grants - Academy Trust
Department for Education,Core,20/11/2023,Grants Expenditure,Capital Directorate,Woodlands Primary School,CAY161933,"133,237.00",Capital grants - Academy Trust
Department for Education,Core,20/11/2023,Grants Expenditure,Capital Directorate,Queen Elizabeth'S Grammar School,CAY161934,"49,734.00",Capital grants - Academy Trust
Department for Education,Core,20/11/2023,Grants Expenditure,Capital Directorate,The Oldershaw School,CAY161935,"33,014.00",Capital grants - Academy Trust
Department for Education,Core,20/11/2023,Grants Expenditure,Capital Directorate,Colne Primet Academy,CAY161936,"51,777.00",Capital grants - Academy Trust
Department for Education,Core,20/11/2023,Grants Expenditure,Capital Directorate,Little Lever School,CAY161937,"45,791.00",Capital grants - Academy Trust
Department for Education,Core,20/11/2023,Grants Expenditure,Capital Directorate,Parmiter'S School,CAY161938,"245,240.00",Capital grants - Academy Trust
Department for Education,Core,20/11/2023,Grants Expenditure,Capital Directorate,The Norton Knatchbull School,CAY161939,"74,484.00",Capital grants - Academy Trust
Department for Education,Core,20/11/2023,Grants Expenditure,Capital Directorate,"Thorncombe, St Mary'S Church Of England Primary Academy",CAY161940,"49,945.00",Capital grants - Academy Trust
Department for Education,Core,20/11/2023,Grants Expenditure,Capital Directorate,Aston Manor Academy,CAY161941,"67,184.00",Capital grants - Academy Trust
Department for Education,Core,20/11/2023,Grants Expenditure,Capital Directorate,Rose Hill Primary,CAY161942,"195,699.00",Capital grants - Academy Trust
Department for Education,Core,20/11/2023,Grants Expenditure,Capital Directorate,Britannia Primary School And Nursery,CAY161943,"55,576.00",Capital grants - Academy Trust
Department for Education,Core,20/11/2023,Grants Expenditure,Capital Directorate,Southlands High School,CAY161944,"50,601.00",Capital grants - Academy Trust
Department for Education,Core,20/11/2023,Grants Expenditure,Capital Directorate,Hodgson Academy,CAY161945,"66,992.00",Capital grants - Academy Trust
Department for Education,Core,20/11/2023,Grants Expenditure,Capital Directorate,Harry Watts Academy,CAY161947,"179,440.00",Capital grants - Academy Trust
Department for Education,Core,20/11/2023,Grants Expenditure,Capital Directorate,Alec Reed Academy,CAY161948,"60,215.00",Capital grants - Academy Trust
Department for Education,Core,20/11/2023,Grants Expenditure,Capital Directorate,Fleetdown Primary Academy,CAY161949,"110,624.00",Capital grants - Academy Trust
Department for Education,Core,20/11/2023,Grants Expenditure,Capital Directorate,Langley Park Primary School,CAY161950,"59,365.00",Capital grants - Academy Trust
Department for Education,Core,20/11/2023,Grants Expenditure,Capital Directorate,South Stanley Infant And Nursery School,CAY161952,"180,763.00",Capital grants - Academy Trust
Department for Education,Core,20/11/2023,Grants Expenditure,Capital Directorate,Rossett School,CAY161953,"545,303.00",Capital grants - Academy Trust
Department for Education,Core,20/11/2023,Grants Expenditure,Capital Directorate,Holy Trinity Church Of England Junior School,CAY161954,"30,881.00",Capital grants - Academy Trust
Department for Education,Core,20/11/2023,Grants Expenditure,Capital Directorate,St Francis Xavier Sixth Form College,CAY161955,"117,784.00",Capital grants - Academy Trust
Department for Education,Core,20/11/2023,Grants Expenditure,Capital Directorate,St. Augustine'S Academy,CAY161956,"110,972.00",Capital grants - Academy Trust
Department for Education,Core,20/11/2023,Grants Expenditure,Capital Directorate,Little Hill Primary,CAY161957,"183,606.00",Capital grants - Academy Trust
Department for Education,Core,20/11/2023,Grants Expenditure,Capital Directorate,Fernvale Primary School,CAY161958,"210,315.00",Capital grants - Academy Trust
Department for Education,Core,20/11/2023,Grants Expenditure,Capital Directorate,Magdalen College School,CAY161959,"89,212.00",Capital grants - Academy Trust
Department for Education,Core,20/11/2023,Grants Expenditure,Capital Directorate,Chepping View Primary Academy,CAY161960,"105,703.00",Capital grants - Academy Trust
Department for Education,Core,20/11/2023,Grants Expenditure,Capital Directorate,Fernvale Primary School,CAY161961,"66,312.00",Capital grants - Academy Trust
Department for Education,Core,20/11/2023,Grants Expenditure,Capital Directorate,Bengeworth Ce Academy,CAY161962,"64,763.00",Capital grants - Academy Trust
Department for Education,Core,20/11/2023,Grants Expenditure,Capital Directorate,Glenmere Community Primary School,CAY161963,"62,245.00",Capital grants - Academy Trust
Department for Education,Core,20/11/2023,Grants Expenditure,Capital Directorate,Langmoor Primary School Oadby,CAY161964,"72,396.00",Capital grants - Academy Trust
Department for Education,Core,20/11/2023,Grants Expenditure,Capital Directorate,Joseph Leckie Academy,CAY161965,"55,660.00",Capital grants - Academy Trust
Department for Education,Core,20/11/2023,Grants Expenditure,Capital Directorate,The Lincoln Manor Leas Infants School,CAY161966,"74,241.00",Capital grants - Academy Trust
Department for Education,Core,20/11/2023,Grants Expenditure,Capital Directorate,Hightown Primary School,CAY161967,"94,828.00",Capital grants - Academy Trust
Department for Education,Core,20/11/2023,Grants Expenditure,Capital Directorate,The Axholme Academy,CAY161968,"59,518.00",Capital grants - Academy Trust
Department for Education,Core,20/11/2023,Grants Expenditure,Capital Directorate,Horbury Academy,CAY161970,"167,598.00",Capital grants - Academy Trust
Department for Education,Core,20/11/2023,Grants Expenditure,Capital Directorate,Lent Rise School,CAY161971,"193,704.00",Capital grants - Academy Trust
Department for Education,Core,20/11/2023,Grants Expenditure,Capital Directorate,Little Hill Primary,CAY161972,"93,268.00",Capital grants - Academy Trust
Department for Education,Core,20/11/2023,Grants Expenditure,Capital Directorate,Joseph Leckie Academy,CAY161973,"73,701.00",Capital grants - Academy Trust
Department for Education,Core,20/11/2023,Grants Expenditure,Capital Directorate,Middlestown Primary Academy,CAY161974,"141,183.00",Capital grants - Academy Trust
Department for Education,Core,20/11/2023,Grants Expenditure,Capital Directorate,Macmillan Academy,CAY161975,"60,435.00",Capital grants - Academy Trust
Department for Education,Core,20/11/2023,Grants Expenditure,Capital Directorate,Sixth Form College Colchester,CAY161976,"66,489.00",Capital grants - Academy Trust
Department for Education,Core,20/11/2023,Grants Expenditure,Capital Directorate,Greenhill Primary School,CAY161977,"45,256.00",Capital grants - Academy Trust
Department for Education,Core,20/11/2023,Grants Expenditure,Capital Directorate,Greenhill Primary School,CAY161978,"88,415.00",Capital grants - Academy Trust
Department for Education,Core,20/11/2023,Grants Expenditure,Capital Directorate,Archbishop Benson Cofe Primary School,CAY161979,"27,848.00",Capital grants - Academy Trust
Department for Education,Core,20/11/2023,Grants Expenditure,Capital Directorate,Sutton Coldfield Grammar School For Girls,CAY161980,"38,395.00",Capital grants - Academy Trust
Department for Education,Core,20/11/2023,Grants Expenditure,Capital Directorate,"Bishop Luffa School, Chichester",CAY161981,"61,413.00",Capital grants - Academy Trust
Department for Education,Core,20/11/2023,Grants Expenditure,Capital Directorate,Askern Littlemoor Infant Academy,CAY161982,"118,511.00",Capital grants - Academy Trust
Department for Education,Core,20/11/2023,Grants Expenditure,Capital Directorate,Bolton St Catherine'S Academy,CAY161983,"96,071.00",Capital grants - Academy Trust
Department for Education,Core,20/11/2023,Grants Expenditure,Capital Directorate,Oakwood Avenue Community Primary School,CAY161984,"53,156.00",Capital grants - Academy Trust
Department for Education,Core,20/11/2023,Grants Expenditure,Capital Directorate,The Hollins,CAY161986,"65,990.00",Capital grants - Academy Trust
Department for Education,Core,20/11/2023,Grants Expenditure,Capital Directorate,Colne Park High School,CAY161987,"47,977.00",Capital grants - Academy Trust
Department for Education,Core,20/11/2023,Grants Expenditure,Capital Directorate,Heathside School,CAY161988,"50,000.00",Capital grants - Academy Trust
Department for Education,Core,20/11/2023,Grants Expenditure,Capital Directorate,Clyst Vale Community College,CAY161989,"29,822.00",Capital grants - Academy Trust
Department for Education,Core,20/11/2023,Grants Expenditure,Capital Directorate,Leftwich Community Primary School,CAY161990,"65,945.00",Capital grants - Academy Trust
Department for Education,Core,20/11/2023,Grants Expenditure,Capital Directorate,Barnton Community Nursery And Primary School,CAY161991,"70,232.00",Capital grants - Academy Trust
Department for Education,Core,20/11/2023,Grants Expenditure,Capital Directorate,Goffs - Churchgate Academy,CAY161992,"88,442.00",Capital grants - Academy Trust
Department for Education,Core,20/11/2023,Grants Expenditure,Capital Directorate,Widecombe-In-The-Moor Primary,CAY161993,"31,382.00",Capital grants - Academy Trust
Department for Education,Core,20/11/2023,Grants Expenditure,Capital Directorate,Portswood Primary School,CAY161994,"80,884.00",Capital grants - Academy Trust
Department for Education,Core,20/11/2023,Grants Expenditure,Capital Directorate,Priory Primary School,CAY161996,"89,869.00",Capital grants - Academy Trust
Department for Education,Core,20/11/2023,Grants Expenditure,Capital Directorate,Comberbach Nursery And Primary School,CAY161997,"91,101.00",Capital grants - Academy Trust
Department for Education,Core,20/11/2023,Grants Expenditure,Capital Directorate,Simon Balle All-Through School,CAY161999,"100,164.00",Capital grants - Academy Trust
Department for Education,Core,20/11/2023,Grants Expenditure,Capital Directorate,St Nicholas Cofe Primary,CAY162000,"52,779.00",Capital grants - Academy Trust
Department for Education,Core,20/11/2023,Grants Expenditure,Capital Directorate,Wilmington Grammar School For Girls,CAY162001,"157,503.00",Capital grants - Academy Trust
Department for Education,Core,20/11/2023,Grants Expenditure,Capital Directorate,Wilmington Grammar School For Boys,CAY162002,"163,747.00",Capital grants - Academy Trust
Department for Education,Core,20/11/2023,Grants Expenditure,Capital Directorate,Sandbach School,CAY162003,"82,756.00",Capital grants - Academy Trust
Department for Education,Core,20/11/2023,Grants Expenditure,Capital Directorate,Twydall Primary School And Nursery,CAY162004,"25,216.00",Capital grants - Academy Trust
Department for Education,Core,20/11/2023,Grants Expenditure,Capital Directorate,Rainham Mark Grammar School,CAY162005,"108,710.00",Capital grants - Academy Trust
Department for Education,Core,20/11/2023,Grants Expenditure,Capital Directorate,Mount Grace School,CAY162006,"73,035.00",Capital grants - Academy Trust
Department for Education,Core,20/11/2023,Grants Expenditure,Capital Directorate,Furze Platt Senior School,CAY162007,"88,349.00",Capital grants - Academy Trust
Department for Education,Core,20/11/2023,Grants Expenditure,Capital Directorate,Fairfield High School For Girls,CAY162008,"73,912.00",Capital grants - Academy Trust
Department for Education,Core,20/11/2023,Grants Expenditure,Capital Directorate,St Winefride'S Rc Primary School,CAY162009,"67,877.00",Capital grants - Academy Trust
Department for Education,Core,20/11/2023,Grants Expenditure,Capital Directorate,Spa Academy Askern,CAY162010,"72,250.00",Capital grants - Academy Trust
Department for Education,Core,20/11/2023,Grants Expenditure,Capital Directorate,St Nicholas Cofe Primary,CAY162012,"61,701.00",Capital grants - Academy Trust
Department for Education,Core,20/11/2023,Grants Expenditure,Capital Directorate,Blaby Stokes Church Of England Primary School,CAY162013,"49,101.00",Capital grants - Academy Trust
Department for Education,Core,20/11/2023,Grants Expenditure,Capital Directorate,The Florence Nightingale Academy,CAY162014,"42,430.00",Capital grants - Academy Trust
Department for Education,Core,20/11/2023,Grants Expenditure,Capital Directorate,Springbank Academy,CAY162015,"26,283.00",Capital grants - Academy Trust
Department for Education,Core,20/11/2023,Grants Expenditure,Capital Directorate,Central Lancaster High School,CAY162016,"60,071.00",Capital grants - Academy Trust
Department for Education,Core,20/11/2023,Grants Expenditure,Capital Directorate,Barming Primary School,CAY162018,"82,840.00",Capital grants - Academy Trust
Department for Education,Core,20/11/2023,Grants Expenditure,Capital Directorate,Carlton Le Willows Academy,CAY162019,"70,106.00",Capital grants - Academy Trust
Department for Education,Core,20/11/2023,Grants Expenditure,Capital Directorate,John Leggott Sixth Form College,CAY162020,"161,920.00",Capital grants - Academy Trust
Department for Education,Core,20/11/2023,Grants Expenditure,Capital Directorate,Bishops Cleeve Primary Academy,CAY162021,"56,910.00",Capital grants - Academy Trust
Department for Education,Core,20/11/2023,Grants Expenditure,Capital Directorate,Welland Park Academy,CAY162024,"92,458.80",Capital grants - Academy Trust
Department for Education,Core,20/11/2023,Grants Expenditure,Capital Directorate,Treviglas Academy,CAY162028,"136,331.00",Capital grants - Academy Trust
Department for Education,Core,20/11/2023,Grants Expenditure,Capital Directorate,Cheltenham Bournside School And Sixth Form Centre,CAY162029,"36,363.00",Capital grants - Academy Trust
Department for Education,Core,20/11/2023,Grants Expenditure,Capital Directorate,Alder Tree Primary Academy,CAY162030,"56,218.00",Capital grants - Academy Trust
Department for Education,Core,20/11/2023,Grants Expenditure,Capital Directorate,Parklands High School,CAY162031,"64,977.00",Capital grants - Academy Trust
Department for Education,Core,20/11/2023,Grants Expenditure,Capital Directorate,The Mill Academy,CAY162032,"26,932.00",Capital grants - Academy Trust
Department for Education,Core,20/11/2023,Grants Expenditure,Capital Directorate,Hartwell Primary School,CAY162033,"28,205.00",Capital grants - Academy Trust
Department for Education,Core,20/11/2023,Grants Expenditure,Capital Directorate,Waterside Academy,CAY162034,"64,860.00",Capital grants - Academy Trust
Department for Education,Core,20/11/2023,Grants Expenditure,Capital Directorate,Rivermead School,CAY162035,"72,149.00",Capital grants - Academy Trust
Department for Education,Core,20/11/2023,Grants Expenditure,Capital Directorate,Cardinal Newman College,CAY162036,"371,249.00",Capital grants - Academy Trust
Department for Education,Core,20/11/2023,Grants Expenditure,Capital Directorate,Thomas Alleyne'S High School,CAY162037,"48,203.00",Capital grants - Academy Trust
Department for Education,Core,20/11/2023,Grants Expenditure,Capital Directorate,Kenton School,CAY162038,"65,235.00",Capital grants - Academy Trust
